{"text_format":"1","workbook":"xlsx","n_sheets":7,"sheets":["Instruccions - Instrucciones","Dades i com... - Datos y com...","Detall - Detalle","Pressupost - Pressupuesto","TDC_PMP","TDC_FIFO","Llista desplegable"],"not_rendered":{"charts":0,"images":2,"macros":1,"external_links":2,"defined_names":32,"comments":1,"pivot_tables":0},"unopened":[],"bounds":{"document_bytes":16777216,"sheet_cells":100000,"rows_first":2000,"rows_last":500,"rows_between":2000,"halvings":0,"cell_chars":16384,"cell_head_chars":4096},"cells_cut":0,"cells_raw":0,"read":"whole","date_system":"1900"}

{"sheet":"Instruccions - Instrucciones","index":0,"n_rows":30,"n_cols":7,"rows_kept":30,"cut":false,"hidden":false,"merged":[]}
[]
[null,"Instruccions d'ús del formulari",null,null,null,null,"Instrucciones de uso del formulario"]
[]
[null,"Aquest formulari de pressupost consta de 3 pestanyes:",null,null,null,null,"Este formulario de presupuesto consta de 3 pestañas:"]
[null,"1. Dades i comprovacions: s'introduiran les dades generals del projecte i també inclourà les verificacions per tal de comprovar que s'ha emplenat correctament.",null,null,null,null,"1. Datos y comprobaciones: se introducirán los datos generales del proyecto y también incluirá las verificaciones para comprobar que se ha rellenado correctamente."]
[null,"2. Detall: S'inclouran les dades relatives a les factures del projecte, així com la seva imputació als diferents projectes.",null,null,null,null,"2. Detalle: Se incluirán los datos relativos a las facturas del proyecto, así como su imputación a los diferentes proyectos."]
[null,"3. Pressupost: És la visualització en format compte de resultats de les factures que s'han introduït a la pestanya detall de factures. Es pot visualitzar les factures de la totalitat del projecte o per cada activitat. ",null,null,null,null,"3. Presupuesto: Es la visualización en formato cuenta de resultados de los facturas que se han introducido en la pestaña detalle de facturas. Se pueden visualizar los facturas de la totalidad del proyecto o por cada actividad. "]
[]
[null,"Com omplir el formulari de pressupost?",null,null,null,null,"Como rellenar el formulario de presupuesto?"]
[null,"Pas 1: Introduir la informació del projecte a la pestanya \"Dades i  comprovacions\"",null,null,null,null,"Paso 1: Introducir la información del proyecto en la pestaña \"Datos y comprobaciones\""]
[null,"En primer lloc, introduirem tota la informació relativa al projecte a la pestanya \"Dades i comprovacions\". Els camps a omplir estan ombrejats en gris.",null,null,null,null,"En primer lugar, introduciremos toda la información relativa al proyecto en la pestaña Datos y comprobaciones. Los campos a llenar están sombreados en gris."]
[null,"Aquest pas és molt important i s'ha d'emplenar tota la informació a l'inici, ja que posteriorment el que haurem introduït aquí, alimentarà la informació a introduir en la pestanya \"detall despesa\".",null,null,null,null,"Este paso es muy importante y debe rellenarse toda la información al inicio, ya que posteriormente lo que habremos introducido aquí, alimentará la información a introducir en la pestaña \"detalle gasto\"."]
[]
[null,"Pas 2: Introducció de les factures a la pestanya \"Detall - Detalle\"",null,null,null,null,"Paso 2: Introducción de los facturas en la pestaña \"Detall - Detalle\""]
[null,"A l'apartat \"Detall - Detalle\" anirem introduint les diferents factures del projecte en funció de la partida pressupostària detallada a les bases a la qual fan referència.",null,null,null,null,"En el apartado \"Detall -  Detalle\" iremos introduciendo los diferentes facturas del proyecto en función de la partida presupuestaria detallada en las bases a las que se refieren."]
[null,"Els camps a omplir són els que estan sombrejats en color gris.",null,null,null,null,"Los campos a rellenar son los que están sombreados en color gris."]
[null,"El camp valorització només l'omplirem amb \"Sí\" en cas que es tracti d'una despesa valoritzada, en cas contrari, el deixarem en blanc.",null,null,null,null,"El campo valorización sólo lo llenaremos con \"Sí\" en caso de que se trate de un gasto valorizado, de lo contrario, lo dejaremos en blanco."]
[null,"Detallarem el número d'activitats al que fa referència la despesa al camp \"núm d'activitats a imputar la despesa\", en cas que només faci referencia a una activitat o sigui una despesa transversal (p.ex. l'avaluació) en aquest apartat també indicarem \"1\".",null,null,null,null,"Detallaremos el número de actividades al que hace referencia el gasto en el campo \"número de actividades a imputar el gasto\", en caso de que sólo haga referencia a una actividad o se trate de un gasto transversal (p. ej. la evaluación) en este apartado también indicaremos \"1\"."]
[null,"Si hem indicat que la despesa fa referència a més d'una activitat, se'ns obriràn automàticament tantes files com activitats a imputar la despesa. ",null,null,null,null,"\nSi hemos indicado que el gasto hace referencia a más de una actividad, se nos abrirán automáticamente tantas filas como actividades a imputar el gasto."]
[null,"No s'haurà d'omplir res a les cel·les que canviïn a aquest format:",null,null,null,null,"No se tendrá que rellenar nada en las celdas que cambien a este formato:"]
[null,"Detallarem el % de despesa que s'ha d'imputar a cada activitat en cas que l'activitat n'afecti a varies, sinó deixarem el camp en blanc. La columna \"check\" ens indica si hem fet correctament la imputació.",null,null,null,null,"\nDetallaremos el % de gasto que debe imputarse a cada actividad en caso de que la actividad afecte a varias, sino dejaremos el campo en blanco. La columna \"check\" nos indica si hemos realizado correctamente la imputación."]
[null,"A les columnes que estan sota l'apartat \"filtres\" podrem filtrar i exportar la informació per treballar-la si ens fes falta.",null,null,null,null,"En las columnas que están debajo del apartado \"filtros\" podremos filtrar y exportar la información para trabajarla si nos hiciera falta."]
[null,"Comptabilitació Despeses Personal: \nLes Despeses de Personal només es poder expressar en termes anuals, p.e. si es volen imputar 2 mesos al projecte, serà 2/12, 0,167 anys.\nQuan el Cost Total empresa sigui superior a quaranta-nou mil euros l'any, el Salari Brut i les Despeses Salari Empresa s'hauran d'imputar en dues linees diferents.\n",null,null,null,null,"Contabilización de Gastos de Personal:\nLos Gastos de Personal solo pueden expresarse en términos anuales; p. ej., si se quieren imputar 2 meses al proyecto, será 2/12, es decir, 0,167 años.\nCuando el Coste Total empresa sea superior a cuarenta y nueve mil euros al año, el Salario Bruto y los Gastos de Salario Empresa deberán imputarse en dos líneas diferentes.\n"]
[null,"Pas 3: Comprovació d'errors",null,null,null,null,"Paso 3: Comprobación de errores"]
[null,"Comproveu a la pestanya \"Dades i comprovacions\" que no hi ha cap error marcat en vermell",null,null,null,null,"Compruebe en la pestaña \"Datos y comprobaciones\" que no hay ningún error marcado en rojo."]
[]
[null,"A tenir en compte en l'apartat \"Detall de despeses\":",null,null,null,null,"A tener en cuenta en el apartado \"Detalle de despeses\":"]
[null,"Quan afegim files, sempre s'afegeixen al final",null,null,null,null,"Cuando añadimos filas, siempre se añaden al final"]
[null,"En cas que haguem oblidat o vulguem imputar una despesa a una activitat addicional, haurem d'eliminar totes les linies que fan referencia a aquesta despesa i tornar-la a crear de nou a l'última fila buida, ja que no es permet inserir files.",null,null,null,null,"En caso de que hayamos olvidado o queramos imputar un gasto a una actividad adicional, deberemos eliminar todas las líneas que hacen referencia a este gasto y volver a crearlo de nuevo en la última fila vacía, ya que no se permite insertar filas."]
[null,"No s'han d'eliminar mai totes les files, ja que és bloquejarà el programa.",null,null,null,null,"Nunca se deben eliminar todas las filas, ya que se bloqueará el programa."]

{"sheet":"Dades i com... - Datos y com...","index":1,"n_rows":65,"n_cols":11,"rows_kept":65,"cut":false,"hidden":false,"merged":[[64,6,65,12],[12,7,12,8],[13,7,13,8],[14,7,14,8],[15,7,15,8],[55,7,55,8],[29,7,29,10],[52,7,52,8],[53,7,53,8],[54,7,54,8],[24,3,24,10],[27,7,27,10],[28,7,28,10],[40,1,40,5],[56,7,56,8],[57,7,57,8],[6,3,6,10],[50,7,50,10],[33,3,33,10],[13,3,13,5],[27,3,27,5],[28,3,28,5],[47,7,48,7],[40,6,40,12],[9,3,9,9],[29,3,29,5],[19,3,19,5],[35,4,35,6],[36,4,36,6],[16,3,16,5]]}
[]
[null,"Convocatòria 2025 / Convocatoria 2025"]
[null,"Formulari de pressupost / Formulario de presupuesto"]
[]
[]
[]
[null,null,null,"DADES GENERALS / DATOS GENERALES"]
[]
[null,null,null,"Nom del projecte / Nombre del proyecto:"]
[]
[]
[null,null,null,null,null,null,null,"Altres finançadors públics / Otros finanzadores públicos:",null,"Import / Importe:"]
[null,null,null,"Línia estratègica / Linea estratégica:"]
[]
[null,null,null,null,null,null,null,null,null,null,"Despeses:"]
[null,null,null,"Tipologia 1 / Tipologia 2",null,null,null,null,null,{"$f":"SUM(J13:J15)","v":0},{"$f":"+'Pressupost - Pressupuesto'!D30","v":0}]
[]
[]
[null,null,null,"Entitat líder / Entidad líder:"]
[]
[]
[]
[]
[]
[null,null,null,"ENTITATS PARTICIPANTS AL PROJECTE / ENTIDADES PARTICIPANTES DEL PROYECTO"]
[]
[null,null,null,"Agrupada / Agrupada",null,null,null,"Soci local / Socio Local"]
[null,null,1,null,null,null,1]
[null,null,2,null,null,null,2]
[null,null,3,null,null,null,3]
[]
[]
[]
[null,null,null,"RESUM ECONÒMIC DEL PROJECTE / RESUMEN ECONÓMICO DEL PROYECTO"]
[]
[null,null,null,"TOTAL DESPESES / TOTAL GASTOS","INDIRECTES / INDIRECTOS",null,null,"DIRECTES / DIRECTOS","SUBVENCIÓ SOLICITADA A L'ACCD","CAPÍTOL IV","CAPÍTOL VII"]
[null,null,null,{"$f":"+E37+H37","v":0},{"$f":"+'Pressupost - Pressupuesto'!B29","v":0},null,null,{"$f":"+'Pressupost - Pressupuesto'!B28","v":0},{"$f":"+'Pressupost - Pressupuesto'!C30","v":0},{"$f":"+'Pressupost - Pressupuesto'!C4+'Pressupost - Pressupuesto'!C29","v":0},{"$f":"+'Pressupost - Pressupuesto'!C26","v":0}]
[]
[]
[]
[null,"ACTIVITATS DEL PROJECTE / ACTIVIDADES DEL PROYECTO",null,null,null,null,"COMPROVACIONS / COMPROBACIONES"]
[]
[null,1,null,"Despeses transversals","% imputació despeses transversals"]
[null,2,"Activitat 1",null,null,null,null,"Pressupost total / pressupuesto total:",null,{"$f":"D37","v":0}]
[null,{"$f":"+IF(D45<>\"\",B44+1,\"\")","v":""},"Activitat 2",null,null,null,null,"Finançament ACCD / Financiación ACCD:",null,{"$f":"+I37","v":0}]
[null,{"$f":"+IF(D46<>\"\",B45+1,\"\")","v":""},"Activitat 3",null,null,null,null,"% Finançament ACCD / % Financiación ACCD:",null,{"$f":"IFERROR(J45/J44,0)","v":0},"Màxim 95% del total"]
[null,"","Activitat 4"]
[null,"","Activitat 5",null,null,null,null,"Import subvencionat\nsegons modalitat","Màxim","Import","Mínim"]
[null,"","Activitat 6",null,null,null,null,null,{"$f":"IF(D17=\"\",\"\",IF(D28=\"\",VLOOKUP(D14&D17,'Llista desplegable'!$K$12:$M$16,2,FALSE),VLOOKUP(D14&D17,'Llista desplegable'!$K$12:$M$16,3,FALSE)))","v":""},{"$f":"+I37","v":0},{"$f":"IF(D17=\"\",\"\",IF(D28=\"\",VLOOKUP(D14&D17,'Llista desplegable'!$K$19:$M$23,2,FALSE),VLOOKUP(D14&D17,'Llista desplegable'!$K$19:$M$23,3,FALSE)))","v":""}]
[null,"","Activitat 7"]
[null,"","Activitat 8",null,null,null,null,"Comprovacions de pressupost / Comprobaciones pressupuesto"]
[null,"","Activitat 9",null,null,null,null,"DESPESES INDIRECTES / GASTOS INDIRECTOS",null,"Màx 12%",{"$f":"+IFERROR('Pressupost - Pressupuesto'!C29/I37,\"\")","v":""}]
[null,"","Activitat 10",null,null,null,null,"a11 Identificació i formulació / Identificación y formulación",null,"Màx 10% ",{"$f":"+IFERROR(SUMIF('Detall - Detalle'!AF:AF,H53,'Detall - Detalle'!AB:AB)/$J$45,\"\")","v":""}]
[null,"","Activitat 11",null,null,null,null,"a12 Avaluació / Evaluación",null,"Mín 2% / Max 5% i > 5.000 euros",{"$f":"+IFERROR(SUMIF('Detall - Detalle'!AF:AF,H54,'Detall - Detalle'!AB:AB)/$J$45,\"\")","v":""}]
[null,"","Activitat 12",null,null,null,null,"a17 Beques / Becas",null,"Màx 10% ",{"$f":"+IFERROR(SUMIF('Detall - Detalle'!AF:AF,H55,'Detall - Detalle'!AB:AB)/$J$45,\"\")","v":""}]
[null,"","Activitat 13",null,null,null,null,"a18 Imprevistos / Imprevistos",null,"Màx. 5% ",{"$f":"+IFERROR(SUMIF('Detall - Detalle'!AF:AF,H56,'Detall - Detalle'!AB:AB)/$J$45,\"\")","v":""}]
[null,"","Activitat 14",null,null,null,null,"b1 Béns inventariables / Bienes inventariables",null,"Màx. 10%* ",{"$f":"+IFERROR(SUMIF('Detall - Detalle'!AF:AF,H57,'Detall - Detalle'!AB:AB)/$J$45,\"\")","v":""}]
[null,"","Activitat 15"]
[null,"","Activitat 16"]
[null,"","Activitat 17",null,null,null,null,"Subcontractació / Subcontratación",null,"Màx 20%",{"$f":"+IFERROR(SUMIF('Detall - Detalle'!E:E,\"Si\",'Detall - Detalle'!K:K)/J45,\"\")","v":""}]
[null,"","Activitat 18"]
[null,"","Activitat 19",null,null,null,"Altres comprovacions a tenir en compte:"]
[null,"","Activitat 20",null,null,null,"Microcrèdits: El cost de les accions destinades als crèdits no podrà ser superior al 10% de la subvenció de l'ACCD."]
[null,null,null,null,{"$f":"SUM(E44:E63)","v":0},null,"Salaris: El salari brut mensual màxim serà de 3.500 euros prorratejat en 14 pagues."]
[null,null,null,null,null,null,"* Béns inventariables: En el cas de projectes de desenvolupament, s'admetrà un 30% de l'import sol·licitat a l'ACCD per béns corresponents a infrastructures de salut i sanejament."]

{"sheet":"Detall - Detalle","index":2,"n_rows":53,"n_cols":36,"rows_kept":53,"cut":false,"hidden":false,"merged":[[1,0,2,2],[4,33,4,35],[4,15,4,20],[4,0,4,10],[4,21,4,29],[4,30,4,32],[4,11,4,14]]}
[]
["Introducció del detall de les despeses del projecte / \nIntoducción del detalle de los gastos del proyecto"]
[]
[]
["DADES DE LES DESPESES / DATOS DE LOS GASTOS",null,null,null,null,null,null,null,null,null,null,"COST EUROS / COSTE EUROS",null,null,null,"QUI FINANÇA LES DESPESES? / QUIEN FINANCIA LOS GASTOS?",null,null,null,null,null,"A QUINES ACTIVITATS AFECTA? / A QUE ACTIVIDADES AFECTAN LOS GASTOS?",null,null,null,null,null,null,null,null,"FILTRES / FILTROS",null,null,"AUXILIARS CÀLCULS"]
["ENTITAT QUE EXECUTA LA DESPESA / ENTIDAD EJECUTORA DEL GASTO","AGRUPADA-SOCIA LOCAL / AGRUPADA-SOCIA LOCAL","CONCEPTE PRESSUPOST / CONCEPTO PRESUPUESTO","DETALL DESPESA / DETALLE GASTO","SUBCONTRACTACIÓ / SUBCONTRATACIÓN","VALORITZACIÓ / VALORIZACIÓN","UNITATS / UNIDADES","QUANTITAT / CANTIDAD","PREU UNITARI / PRECIO UNITARIO","% IMPUTAT AL PROJECTE / % IMPUTADO AL PROYECTO","COST TOTAL / COSTE TOTAL","DIVISA","ACREDITACIÓN PAGO","TIPO DE CAMBIO APLICADO","IMPORT TOTAL DESPESA / IMPORTE TOTAL GASTO (€)","% ACCD / \n%  ACCD","TOTAL ACCD / TOTAL ACCD","% ALTRES FINANÇADORS / \n% OTROS FINANCIADORES","TOTAL ALTRES FINANÇADORS / TOTAL OTROS FINANCIADORES","% ENTITAT EXECUTORA / \n% ENTIDAD EJECUTORA","TOTAL ENTITAT EXECUTORA / TOTAL ENTIDAD EJECUTORA","NÚM. D'ACTIVITATS AFECTADES / NÚM. ACTIVIDADES AFECTADAS","CHECK","COMPTADOR / CONTADOR","ACTIVITAT / ACTIVIDAD","% IMPUTAT A LA ACTIVITAT / % IMPUTADO A LA ACTIVIDAD","IMPORT ACTIVITAT / IMPORTE ACTIVIDAD","IMPORT ACCD / IMPORTE ACCD","IMPORT ALTRES FINANÇADORS / IMPORTE OTROS FINANCIADORES","IMPORT ENTITAT / IMPORTE ENTIDAD","ENTITAT EXECUTORA / ENTIDAD EJECUTORA","CONCEPTE PRESSUPOST / CONCEPTO PRESSUPUESTO","DETALL DESPESA / DETALLE GASTO","IMPORT","% FINANÇAT ACCD","% IMPUTAT ALTRES FINANÇADORS"]
[null,null,null,null,null,null,null,null,null,null,{"$f":"+(H7*I7)*J7","v":0},"Euro (EUR)",null,1,{"$f":"+IFERROR(IF(ISBLANK(G7),0,K7/N7),\"\")","v":0},null,{"$f":"IFERROR(+O7*P7,\"\")","v":0},null,{"$f":"IFERROR(+O7*R7,\"\")","v":0},{"$f":"IF(K7<>0,1-P7-R7,\"\")","v":""},{"$f":"IFERROR(+O7*T7,\" \")","v":" "},null,{"$f":"IF(V7<>\"\",IF(SUM(OFFSET(AB7,0,0,V7,3))=O7,1,0),\"\")","v":""},{"$f":"+IFERROR(IF(V7<>\"\",V7,IF(X6>1,X6-1,\"\")),\"\")","v":""},null,null,{"$f":"+IFERROR(IF(V7=1,AH7,IF(Z7<>\"\",Z7*AH7,\"\")),\"\")","v":""},{"$f":"+IFERROR(IF(AA7<>\"\",AI7*AA7,\"\"),\"\")","v":""},{"$f":"+IFERROR(IF(AA7<>\"\",AA7*AJ7,\"\"),\"\")","v":""},{"$f":"+IFERROR(AA7-AB7-AC7,\"\")","v":""},{"$f":"+IF(X7<>\"\",IF(A7<>\"\",A7,AE6),\"\")","v":""},{"$f":"+IF(X7<>\"\",IF(C7<>\"\",C7,AF6),\"\")","v":""},{"$f":"+IF(X7<>\"\",IF(D7<>\"\",D7,AG6),\"\")","v":""},{"$f":"+IF(X7<>\"\",IF(O7<>0,O7,AH6),\"\")","v":""},{"$f":"+IF(X7<>\"\",IF(O7<>0,P7,AI6),\"\")","v":""},{"$f":"+IF(X7<>\"\",IF(O7<>0,R7,AJ6),\"\")","v":""}]
[null,null,null,null,null,null,null,null,null,null,{"$f":"+(H8*I8)*J8","v":0},"Euro (EUR)",null,1,{"$f":"+IFERROR(IF(ISBLANK(G8),0,K8/N8),\"\")","v":0},null,{"$f":"IFERROR(+O8*P8,\"\")","v":0},null,{"$f":"IFERROR(+O8*R8,\"\")","v":0},""," ",null,"","",null,null,{"$f":"+IFERROR(IF(V8=1,AH8,IF(Z8<>\"\",Z8*AH8,\"\")),\"\")","v":""},{"$f":"+IFERROR(IF(AA8<>\"\",AI8*AA8,\"\"),\"\")","v":""},{"$f":"+IFERROR(IF(AA8<>\"\",AA8*AJ8,\"\"),\"\")","v":""},{"$f":"+IFERROR(AA8-AB8-AC8,\"\")","v":""},{"$f":"+IF(X8<>\"\",IF(A8<>\"\",A8,AE7),\"\")","v":""},{"$f":"+IF(X8<>\"\",IF(C8<>\"\",C8,AF7),\"\")","v":""},{"$f":"+IF(X8<>\"\",IF(D8<>\"\",D8,AG7),\"\")","v":""},"","",""]
[null,null,null,null,null,null,null,null,null,null,0,"Euro (EUR)",null,1,0,null,0,null,0,""," ",null,"","",null,null,"","","","","","","",{"$f":"+IF(X9<>\"\",IF(O9<>0,O9,AH8),\"\")","v":""},{"$f":"+IF(X9<>\"\",IF(O9<>0,P9,AI8),\"\")","v":""},{"$f":"+IF(X9<>\"\",IF(O9<>0,R9,AJ8),\"\")","v":""}]
[null,null,null,null,null,null,null,null,null,null,0,"Euro (EUR)",null,1,0,null,0,null,0,""," ",null,"","",null,null,"","","","","","","",{"$f":"+IF(X10<>\"\",IF(O10<>0,O10,AH9),\"\")","v":""},{"$f":"+IF(X10<>\"\",IF(O10<>0,P10,AI9),\"\")","v":""},{"$f":"+IF(X10<>\"\",IF(O10<>0,R10,AJ9),\"\")","v":""}]
[null,null,null,null,null,null,null,null,null,null,0,"Euro (EUR)",null,1,0,null,0,null,0,""," ",null,"","",null,null,"","","","","","","","","",""]
[null,null,null,null,null,null,null,null,null,null,0,"Euro (EUR)",null,1,0,null,0,null,0,""," ",null,"","",null,null,"","","","","","","","","",""]
[null,null,null,null,null,null,null,null,null,null,0,"Euro (EUR)",null,1,0,null,0,null,0,""," ",null,"","",null,null,"","","","","","","","","",""]
[null,null,null,null,null,null,null,null,null,null,0,"Euro (EUR)",null,1,0,null,0,null,0,{"$f":"IF(K14<>0,1-P14-R14,\"\")","v":""}," ",null,"","",null,null,"","","","","","","","","",""]
[null,null,null,null,null,null,null,null,null,null,0,"Euro (EUR)",null,1,0,null,0,null,0,""," ",null,"","",null,null,"","","","","","","","","",""]
[null,null,null,null,null,null,null,null,null,null,0,"Euro (EUR)",null,1,0,null,0,null,0,""," ",null,"","",null,null,"","","","","","","","","",""]
[null,null,null,null,null,null,null,null,null,null,0,"Euro (EUR)",null,1,0,null,0,null,0,""," ",null,"","",null,null,"","","","","","","","","",""]
[null,null,null,null,null,null,null,null,null,null,0,"Euro (EUR)",null,1,0,null,0,null,0,""," ",null,"","",null,null,"","","","","","","","","",""]
[null,null,null,null,null,null,null,null,null,null,0,"Euro (EUR)",null,1,0,null,0,null,0,""," ",null,"","",null,null,"","","","","","","","","",""]
[null,null,null,null,null,null,null,null,null,null,0,"Euro (EUR)",null,1,0,null,0,null,0,""," ",null,"","",null,null,"","","","","","","","","",""]
[null,null,null,null,null,null,null,null,null,null,0,"Euro (EUR)",null,1,0,null,0,null,0,""," ",null,"","",null,null,"","","","","","","","","",""]
[null,null,null,null,null,null,null,null,null,null,0,"Euro (EUR)",null,1,0,null,0,null,0,""," ",null,"","",null,null,"","","","","","","","","",""]
[null,null,null,null,null,null,null,null,null,null,0,"Euro (EUR)",null,1,0,null,0,null,0,""," ",null,"","",null,null,"","","","","","","","","",""]
[null,null,null,null,null,null,null,null,null,null,0,"Euro (EUR)",null,1,0,null,0,null,0,""," ",null,"","",null,null,"","","","","","","","","",""]
[null,null,null,null,null,null,null,null,null,null,0,"Euro (EUR)",null,1,0,null,0,null,0,""," ",null,"","",null,null,"","","","","","","","","",""]
[null,null,null,null,null,null,null,null,null,null,0,"Euro (EUR)",null,1,0,null,0,null,0,""," ",null,"","",null,null,"","","","","","","","","",""]
[null,null,null,null,null,null,null,null,null,null,0,"Euro (EUR)",null,1,0,null,0,null,0,""," ",null,"","",null,null,"","","","","","","","","",""]
[null,null,null,null,null,null,null,null,null,null,0,"Euro (EUR)",null,1,0,null,0,null,0,""," ",null,"","",null,null,"","","","","","","","","",""]
[null,null,null,null,null,null,null,null,null,null,0,"Euro (EUR)",null,1,0,null,0,null,0,""," ",null,"","",null,null,"","","","","","","","","",""]
[null,null,null,null,null,null,null,null,null,null,0,"Euro (EUR)",null,1,0,null,0,null,0,""," ",null,"","",null,null,"","","","","","","","","",""]
[null,null,null,null,null,null,null,null,null,null,0,"Euro (EUR)",null,1,0,null,0,null,0,""," ",null,"","",null,null,"","","","",{"$f":"+IF(X31<>\"\",IF(A31<>\"\",A31,AE30),\"\")","v":""},{"$f":"+IF(X31<>\"\",IF(C31<>\"\",C31,AF30),\"\")","v":""},{"$f":"+IF(X31<>\"\",IF(D31<>\"\",D31,AG30),\"\")","v":""},{"$f":"+IF(X31<>\"\",IF(O31<>0,O31,AH30),\"\")","v":""},{"$f":"+IF(X31<>\"\",IF(O31<>0,P31,AI30),\"\")","v":""},{"$f":"+IF(X31<>\"\",IF(O31<>0,R31,AJ30),\"\")","v":""}]
[null,null,null,null,null,null,null,null,null,null,0,"Euro (EUR)",null,1,0,null,0,null,0,""," ",null,"","",null,null,"","","","","","","","","",""]
[null,null,null,null,null,null,null,null,null,null,{"$f":"+(H33*I33)*J33","v":0},"Euro (EUR)",null,1,{"$f":"+IFERROR(IF(ISBLANK(G33),0,K33/N33),\"\")","v":0},null,{"$f":"IFERROR(+O33*P33,\"\")","v":0},null,0,"",{"$f":"IFERROR(+O33*T33,\" \")","v":" "},null,{"$f":"IF(V33<>\"\",IF(SUM(OFFSET(AB33,0,0,V33,3))=O33,1,0),\"\")","v":""},"",null,null,"","","","","","","","","",""]
[null,null,null,null,null,null,null,null,null,null,0,"Euro (EUR)",null,1,0,null,0,null,0,""," ",null,"","",null,null,"","","","","","","","","",""]
[null,null,null,null,null,null,null,null,null,null,0,"Euro (EUR)",null,1,0,null,0,null,0,""," ",null,"","",null,null,"","","","","","","","","",""]
[null,null,null,null,null,null,null,null,null,null,0,"Euro (EUR)",null,1,0,null,0,null,0,""," ",null,"","",null,null,"","","","","","","","","",""]
[null,null,null,null,null,null,null,null,null,null,0,"Euro (EUR)",null,1,0,null,0,null,0,""," ",null,"","",null,null,"","","","","","","","","",""]
[null,null,null,null,null,null,null,null,null,null,0,"Euro (EUR)",null,1,0,null,0,null,0,""," ",null,"","",null,null,"","","","","","","","","",""]
[null,null,null,null,null,null,null,null,null,null,0,"Euro (EUR)",null,1,0,null,0,null,0,""," ",null,"","",null,null,"","","","","","","","","",""]
[null,null,null,null,null,null,null,null,null,null,0,"Euro (EUR)",null,1,0,null,0,null,0,""," ",null,"","",null,null,"","","","","","","","","",""]
[null,null,null,null,null,null,null,null,null,null,0,"Euro (EUR)",null,1,0,null,0,null,0,""," ",null,"","",null,null,"","","","",{"$f":"+IF(X41<>\"\",IF(A41<>\"\",A41,AE40),\"\")","v":""},{"$f":"+IF(X41<>\"\",IF(C41<>\"\",C41,AF40),\"\")","v":""},{"$f":"+IF(X41<>\"\",IF(D41<>\"\",D41,AG40),\"\")","v":""},"","",""]
[null,null,null,null,null,null,null,null,null,null,0,"Euro (EUR)",null,1,0,null,0,null,0,""," ",null,"","",null,null,"","","","","","","","","",""]
[null,null,null,null,null,null,null,null,null,null,0,"Euro (EUR)",null,1,0,null,0,null,0,""," ",null,"","",null,null,"","","","","","","","","",""]
[null,null,null,null,null,null,null,null,null,null,0,"Euro (EUR)",null,1,0,null,0,null,0,""," ",null,"","",null,null,"","","","","","","","","",""]
[null,null,null,null,null,null,null,null,null,null,0,"Euro (EUR)",null,1,0,null,0,null,0,""," ",null,"","",null,null,"","","","","","","","","",""]
[null,null,null,null,null,null,null,null,null,null,0,"Euro (EUR)",null,1,0,null,0,null,0,""," ",null,"","",null,null,"","","","",{"$f":"+IF(X46<>\"\",IF(A46<>\"\",A46,AE45),\"\")","v":""},{"$f":"+IF(X46<>\"\",IF(C46<>\"\",C46,AF45),\"\")","v":""},{"$f":"+IF(X46<>\"\",IF(D46<>\"\",D46,AG45),\"\")","v":""},"","",""]
[null,null,null,null,null,null,null,null,null,null,0,"Euro (EUR)",null,1,0,null,0,null,0,""," ",null,"","",null,null,"","","","","","","","","",""]
[null,null,null,null,null,null,null,null,null,null,{"$f":"+(H48*I48)*J48","v":0},"Euro (EUR)",null,1,{"$f":"+IFERROR(IF(ISBLANK(G48),0,K48/N48),\"\")","v":0},null,{"$f":"IFERROR(+O48*P48,\"\")","v":0},null,0,"",{"$f":"IFERROR(+O48*T48,\" \")","v":" "},null,"",{"$f":"+IFERROR(IF(V48<>\"\",V48,IF(X47>1,X47-1,\"\")),\"\")","v":""},null,null,"","","","",{"$f":"+IF(X48<>\"\",IF(A48<>\"\",A48,AE47),\"\")","v":""},{"$f":"+IF(X48<>\"\",IF(C48<>\"\",C48,AF47),\"\")","v":""},{"$f":"+IF(X48<>\"\",IF(D48<>\"\",D48,AG47),\"\")","v":""},"","",""]
[null,null,null,null,null,null,null,null,null,null,0,"Euro (EUR)",null,1,0,null,0,null,0,""," ",null,"","",null,null,"","","","","","","","","",""]
[null,null,null,null,null,null,null,null,null,null,0,"Euro (EUR)",null,1,0,null,0,null,0,""," ",null,"","",null,null,"","","","","","","","","",""]
[null,null,null,null,null,null,null,null,null,null,0,"Euro (EUR)",null,1,0,null,0,null,0,""," ",null,"","",null,null,"","","","","","","","","",""]
[null,null,null,null,null,null,null,null,null,null,0,"Euro (EUR)",null,1,0,null,0,null,0,""," ",null,"","",null,null,"","","","","","","","","",""]
[null,null,null,null,null,null,null,null,null,null,0,"Euro (EUR)",null,1,0,null,0,null,0,{"$f":"IF(Q53<>0,1-P53-R53,\"\")","v":""}," ",null,"","",null,null,"","","","","","","","","",""]

{"sheet":"Pressupost - Pressupuesto","index":3,"n_rows":63,"n_cols":22,"rows_kept":63,"cut":false,"hidden":false,"merged":[[1,2,1,8],[1,9,1,13]]}
[]
["PRESSUPOST GLOBAL",null,"DISTRIBUCIÓ PRESSUPOST PER ENTITAT FINANÇADORA",null,null,null,null,null,null,"DISTRIBUCIÓ PRESSUPOST PER ENTITAT EXECUTORA"]
[1,"TOTAL PROJECTE","ACCD","ALTRES FINANÇADORS","LÍDER","AGRUPADA","SOCI_LOCAL","COL·LECTIUS PROTAGONISTES","TERCER SECTOR","LÍDER","AGRUPADA","SOCI_LOCAL","COL·LECTIUS PROTAGONISTES","TERCER SECTOR"]
["DESPESES DIRECTES CORRENTS (Capítol IV) / GASTOS DIRECTOS CORRIENTES (Capítulo IV)",{"$f":"SUM(C4:I4)","v":0},{"$f":"+SUM(C5,C9:C25)","v":0},{"$f":"+SUM(D5,D9:D25)","v":0},{"$f":"+SUM(E5,E9:E25)","v":0},0,{"$f":"+SUM(G5,G9:G25)","v":0},{"$f":"+SUM(H5,H9:H25)","v":0},{"$f":"+SUM(I5,I9:I25)","v":0},{"$f":"+SUM(J5,J9:J25)","v":0},0,0,{"$f":"+SUM(M5,M9:M25)","v":0},0]
["a1. Remuneració  personal assalariat / Remuneracion personal asalariado",0,{"$f":"SUM(C6:C8)","v":0},{"$f":"SUM(D6:D8)","v":0},{"$f":"SUM(E6:E8)","v":0},0,{"$f":"SUM(G6:G8)","v":0},{"$f":"SUM(H6:H8)","v":0},{"$f":"SUM(I6:I8)","v":0},{"$f":"SUM(J6:J8)","v":0},0,0,{"$f":"SUM(M6:M8)","v":0},0]
["a1.1 Personal assalariat local / Personal asalariado local",0,{"$f":"+SUMIF('Detall - Detalle'!$AF:$AF,$A6,'Detall - Detalle'!$AB:$AB)","v":0},{"$f":"+SUMIF('Detall - Detalle'!$AF:$AF,$A6,'Detall - Detalle'!$AC:$AC)","v":0},{"$f":"+SUMIFS('Detall - Detalle'!$AD:$AD,'Detall - Detalle'!$AF:$AF,'Pressupost - Pressupuesto'!$A6,'Detall - Detalle'!$AE:$AE,E$3)","v":0},{"$f":"SUMIFS('Detall - Detalle'!$AD:$AD,'Detall - Detalle'!$AF:$AF,'Pressupost - Pressupuesto'!$A6,'Detall - Detalle'!$AE:$AE,F$3)","v":0},{"$f":"SUMIFS('Detall - Detalle'!$AD:$AD,'Detall - Detalle'!$AF:$AF,'Pressupost - Pressupuesto'!$A6,'Detall - Detalle'!$AE:$AE,G$3)","v":0},{"$f":"SUMIFS('Detall - Detalle'!$AD:$AD,'Detall - Detalle'!$AF:$AF,'Pressupost - Pressupuesto'!$A6,'Detall - Detalle'!$AE:$AE,H$3)","v":0},{"$f":"SUMIFS('Detall - Detalle'!$AD:$AD,'Detall - Detalle'!$AF:$AF,'Pressupost - Pressupuesto'!$A6,'Detall - Detalle'!$AE:$AE,I$3)","v":0},{"$f":"SUMIFS('Detall - Detalle'!$AA:$AA,'Detall - Detalle'!$AF:$AF,'Pressupost - Pressupuesto'!$A6,'Detall - Detalle'!$AE:$AE,J$3)","v":0},{"$f":"SUMIFS('Detall - Detalle'!$AA:$AA,'Detall - Detalle'!$AF:$AF,'Pressupost - Pressupuesto'!$A6,'Detall - Detalle'!$AE:$AE,K$3)","v":0},{"$f":"SUMIFS('Detall - Detalle'!$AA:$AA,'Detall - Detalle'!$AF:$AF,'Pressupost - Pressupuesto'!$A6,'Detall - Detalle'!$AE:$AE,L$3)","v":0},{"$f":"SUMIFS('Detall - Detalle'!$AA:$AA,'Detall - Detalle'!$AF:$AF,'Pressupost - Pressupuesto'!$A6,'Detall - Detalle'!$AE:$AE,M$3)","v":0},{"$f":"SUMIFS('Detall - Detalle'!$AA:$AA,'Detall - Detalle'!$AF:$AF,'Pressupost - Pressupuesto'!$A6,'Detall - Detalle'!$AE:$AE,N$3)","v":0}]
["a1.2 Personal assalariat expatriat / Personal asalariado expatriado",0,{"$f":"+SUMIF('Detall - Detalle'!$AF:$AF,$A7,'Detall - Detalle'!$AB:$AB)","v":0},{"$f":"+SUMIF('Detall - Detalle'!$AF:$AF,$A7,'Detall - Detalle'!$AC:$AC)","v":0},{"$f":"+SUMIFS('Detall - Detalle'!$AD:$AD,'Detall - Detalle'!$AF:$AF,'Pressupost - Pressupuesto'!$A7,'Detall - Detalle'!$AE:$AE,E$3)","v":0},{"$f":"SUMIFS('Detall - Detalle'!$AD:$AD,'Detall - Detalle'!$AF:$AF,'Pressupost - Pressupuesto'!$A7,'Detall - Detalle'!$AE:$AE,F$3)","v":0},{"$f":"SUMIFS('Detall - Detalle'!$AD:$AD,'Detall - Detalle'!$AF:$AF,'Pressupost - Pressupuesto'!$A7,'Detall - Detalle'!$AE:$AE,G$3)","v":0},{"$f":"SUMIFS('Detall - Detalle'!$AD:$AD,'Detall - Detalle'!$AF:$AF,'Pressupost - Pressupuesto'!$A7,'Detall - Detalle'!$AE:$AE,H$3)","v":0},{"$f":"SUMIFS('Detall - Detalle'!$AD:$AD,'Detall - Detalle'!$AF:$AF,'Pressupost - Pressupuesto'!$A7,'Detall - Detalle'!$AE:$AE,I$3)","v":0},{"$f":"SUMIFS('Detall - Detalle'!$AA:$AA,'Detall - Detalle'!$AF:$AF,'Pressupost - Pressupuesto'!$A7,'Detall - Detalle'!$AE:$AE,J$3)","v":0},{"$f":"SUMIFS('Detall - Detalle'!$AA:$AA,'Detall - Detalle'!$AF:$AF,'Pressupost - Pressupuesto'!$A7,'Detall - Detalle'!$AE:$AE,K$3)","v":0},{"$f":"SUMIFS('Detall - Detalle'!$AA:$AA,'Detall - Detalle'!$AF:$AF,'Pressupost - Pressupuesto'!$A7,'Detall - Detalle'!$AE:$AE,L$3)","v":0},{"$f":"SUMIFS('Detall - Detalle'!$AA:$AA,'Detall - Detalle'!$AF:$AF,'Pressupost - Pressupuesto'!$A7,'Detall - Detalle'!$AE:$AE,M$3)","v":0},{"$f":"SUMIFS('Detall - Detalle'!$AA:$AA,'Detall - Detalle'!$AF:$AF,'Pressupost - Pressupuesto'!$A7,'Detall - Detalle'!$AE:$AE,N$3)","v":0}]
["a1.3 Personal assalariat a Catalunya / Personal asalariado Cataluña",0,{"$f":"+SUMIF('Detall - Detalle'!$AF:$AF,$A8,'Detall - Detalle'!$AB:$AB)","v":0},{"$f":"+SUMIF('Detall - Detalle'!$AF:$AF,$A8,'Detall - Detalle'!$AC:$AC)","v":0},{"$f":"+SUMIFS('Detall - Detalle'!$AD:$AD,'Detall - Detalle'!$AF:$AF,'Pressupost - Pressupuesto'!$A8,'Detall - Detalle'!$AE:$AE,E$3)","v":0},{"$f":"SUMIFS('Detall - Detalle'!$AD:$AD,'Detall - Detalle'!$AF:$AF,'Pressupost - Pressupuesto'!$A8,'Detall - Detalle'!$AE:$AE,F$3)","v":0},{"$f":"SUMIFS('Detall - Detalle'!$AD:$AD,'Detall - Detalle'!$AF:$AF,'Pressupost - Pressupuesto'!$A8,'Detall - Detalle'!$AE:$AE,G$3)","v":0},{"$f":"SUMIFS('Detall - Detalle'!$AD:$AD,'Detall - Detalle'!$AF:$AF,'Pressupost - Pressupuesto'!$A8,'Detall - Detalle'!$AE:$AE,H$3)","v":0},{"$f":"SUMIFS('Detall - Detalle'!$AD:$AD,'Detall - Detalle'!$AF:$AF,'Pressupost - Pressupuesto'!$A8,'Detall - Detalle'!$AE:$AE,I$3)","v":0},{"$f":"SUMIFS('Detall - Detalle'!$AA:$AA,'Detall - Detalle'!$AF:$AF,'Pressupost - Pressupuesto'!$A8,'Detall - Detalle'!$AE:$AE,J$3)","v":0},{"$f":"SUMIFS('Detall - Detalle'!$AA:$AA,'Detall - Detalle'!$AF:$AF,'Pressupost - Pressupuesto'!$A8,'Detall - Detalle'!$AE:$AE,K$3)","v":0},{"$f":"SUMIFS('Detall - Detalle'!$AA:$AA,'Detall - Detalle'!$AF:$AF,'Pressupost - Pressupuesto'!$A8,'Detall - Detalle'!$AE:$AE,L$3)","v":0},{"$f":"SUMIFS('Detall - Detalle'!$AA:$AA,'Detall - Detalle'!$AF:$AF,'Pressupost - Pressupuesto'!$A8,'Detall - Detalle'!$AE:$AE,M$3)","v":0},{"$f":"SUMIFS('Detall - Detalle'!$AA:$AA,'Detall - Detalle'!$AF:$AF,'Pressupost - Pressupuesto'!$A8,'Detall - Detalle'!$AE:$AE,N$3)","v":0}]
["a2 Lloguers / Alquileres",0,{"$f":"+SUMIF('Detall - Detalle'!$AF:$AF,$A9,'Detall - Detalle'!$AB:$AB)","v":0},{"$f":"+SUMIF('Detall - Detalle'!$AF:$AF,$A9,'Detall - Detalle'!$AC:$AC)","v":0},{"$f":"+SUMIFS('Detall - Detalle'!$AD:$AD,'Detall - Detalle'!$AF:$AF,'Pressupost - Pressupuesto'!$A9,'Detall - Detalle'!$AE:$AE,E$3)","v":0},{"$f":"SUMIFS('Detall - Detalle'!$AD:$AD,'Detall - Detalle'!$AF:$AF,'Pressupost - Pressupuesto'!$A9,'Detall - Detalle'!$AE:$AE,F$3)","v":0},{"$f":"SUMIFS('Detall - Detalle'!$AD:$AD,'Detall - Detalle'!$AF:$AF,'Pressupost - Pressupuesto'!$A9,'Detall - Detalle'!$AE:$AE,G$3)","v":0},{"$f":"SUMIFS('Detall - Detalle'!$AD:$AD,'Detall - Detalle'!$AF:$AF,'Pressupost - Pressupuesto'!$A9,'Detall - Detalle'!$AE:$AE,H$3)","v":0},{"$f":"SUMIFS('Detall - Detalle'!$AD:$AD,'Detall - Detalle'!$AF:$AF,'Pressupost - Pressupuesto'!$A9,'Detall - Detalle'!$AE:$AE,I$3)","v":0},{"$f":"SUMIFS('Detall - Detalle'!$AA:$AA,'Detall - Detalle'!$AF:$AF,'Pressupost - Pressupuesto'!$A9,'Detall - Detalle'!$AE:$AE,J$3)","v":0},{"$f":"SUMIFS('Detall - Detalle'!$AA:$AA,'Detall - Detalle'!$AF:$AF,'Pressupost - Pressupuesto'!$A9,'Detall - Detalle'!$AE:$AE,K$3)","v":0},{"$f":"SUMIFS('Detall - Detalle'!$AA:$AA,'Detall - Detalle'!$AF:$AF,'Pressupost - Pressupuesto'!$A9,'Detall - Detalle'!$AE:$AE,L$3)","v":0},{"$f":"SUMIFS('Detall - Detalle'!$AA:$AA,'Detall - Detalle'!$AF:$AF,'Pressupost - Pressupuesto'!$A9,'Detall - Detalle'!$AE:$AE,M$3)","v":0},{"$f":"SUMIFS('Detall - Detalle'!$AA:$AA,'Detall - Detalle'!$AF:$AF,'Pressupost - Pressupuesto'!$A9,'Detall - Detalle'!$AE:$AE,N$3)","v":0}]
["a3 Manteniment, conservació i reparació / Mantenimiento, conservación y reparación",0,{"$f":"+SUMIF('Detall - Detalle'!$AF:$AF,$A10,'Detall - Detalle'!$AB:$AB)","v":0},{"$f":"+SUMIF('Detall - Detalle'!$AF:$AF,$A10,'Detall - Detalle'!$AC:$AC)","v":0},{"$f":"+SUMIFS('Detall - Detalle'!$AD:$AD,'Detall - Detalle'!$AF:$AF,'Pressupost - Pressupuesto'!$A10,'Detall - Detalle'!$AE:$AE,E$3)","v":0},{"$f":"SUMIFS('Detall - Detalle'!$AD:$AD,'Detall - Detalle'!$AF:$AF,'Pressupost - Pressupuesto'!$A10,'Detall - Detalle'!$AE:$AE,F$3)","v":0},{"$f":"SUMIFS('Detall - Detalle'!$AD:$AD,'Detall - Detalle'!$AF:$AF,'Pressupost - Pressupuesto'!$A10,'Detall - Detalle'!$AE:$AE,G$3)","v":0},{"$f":"SUMIFS('Detall - Detalle'!$AD:$AD,'Detall - Detalle'!$AF:$AF,'Pressupost - Pressupuesto'!$A10,'Detall - Detalle'!$AE:$AE,H$3)","v":0},{"$f":"SUMIFS('Detall - Detalle'!$AD:$AD,'Detall - Detalle'!$AF:$AF,'Pressupost - Pressupuesto'!$A10,'Detall - Detalle'!$AE:$AE,I$3)","v":0},{"$f":"SUMIFS('Detall - Detalle'!$AA:$AA,'Detall - Detalle'!$AF:$AF,'Pressupost - Pressupuesto'!$A10,'Detall - Detalle'!$AE:$AE,J$3)","v":0},{"$f":"SUMIFS('Detall - Detalle'!$AA:$AA,'Detall - Detalle'!$AF:$AF,'Pressupost - Pressupuesto'!$A10,'Detall - Detalle'!$AE:$AE,K$3)","v":0},{"$f":"SUMIFS('Detall - Detalle'!$AA:$AA,'Detall - Detalle'!$AF:$AF,'Pressupost - Pressupuesto'!$A10,'Detall - Detalle'!$AE:$AE,L$3)","v":0},{"$f":"SUMIFS('Detall - Detalle'!$AA:$AA,'Detall - Detalle'!$AF:$AF,'Pressupost - Pressupuesto'!$A10,'Detall - Detalle'!$AE:$AE,M$3)","v":0},{"$f":"SUMIFS('Detall - Detalle'!$AA:$AA,'Detall - Detalle'!$AF:$AF,'Pressupost - Pressupuesto'!$A10,'Detall - Detalle'!$AE:$AE,N$3)","v":0}]
["a4 Material ordinari / Material ordinario",0,{"$f":"+SUMIF('Detall - Detalle'!$AF:$AF,$A11,'Detall - Detalle'!$AB:$AB)","v":0},{"$f":"+SUMIF('Detall - Detalle'!$AF:$AF,$A11,'Detall - Detalle'!$AC:$AC)","v":0},{"$f":"+SUMIFS('Detall - Detalle'!$AD:$AD,'Detall - Detalle'!$AF:$AF,'Pressupost - Pressupuesto'!$A11,'Detall - Detalle'!$AE:$AE,E$3)","v":0},{"$f":"SUMIFS('Detall - Detalle'!$AD:$AD,'Detall - Detalle'!$AF:$AF,'Pressupost - Pressupuesto'!$A11,'Detall - Detalle'!$AE:$AE,F$3)","v":0},{"$f":"SUMIFS('Detall - Detalle'!$AD:$AD,'Detall - Detalle'!$AF:$AF,'Pressupost - Pressupuesto'!$A11,'Detall - Detalle'!$AE:$AE,G$3)","v":0},{"$f":"SUMIFS('Detall - Detalle'!$AD:$AD,'Detall - Detalle'!$AF:$AF,'Pressupost - Pressupuesto'!$A11,'Detall - Detalle'!$AE:$AE,H$3)","v":0},{"$f":"SUMIFS('Detall - Detalle'!$AD:$AD,'Detall - Detalle'!$AF:$AF,'Pressupost - Pressupuesto'!$A11,'Detall - Detalle'!$AE:$AE,I$3)","v":0},{"$f":"SUMIFS('Detall - Detalle'!$AA:$AA,'Detall - Detalle'!$AF:$AF,'Pressupost - Pressupuesto'!$A11,'Detall - Detalle'!$AE:$AE,J$3)","v":0},{"$f":"SUMIFS('Detall - Detalle'!$AA:$AA,'Detall - Detalle'!$AF:$AF,'Pressupost - Pressupuesto'!$A11,'Detall - Detalle'!$AE:$AE,K$3)","v":0},{"$f":"SUMIFS('Detall - Detalle'!$AA:$AA,'Detall - Detalle'!$AF:$AF,'Pressupost - Pressupuesto'!$A11,'Detall - Detalle'!$AE:$AE,L$3)","v":0},{"$f":"SUMIFS('Detall - Detalle'!$AA:$AA,'Detall - Detalle'!$AF:$AF,'Pressupost - Pressupuesto'!$A11,'Detall - Detalle'!$AE:$AE,M$3)","v":0},{"$f":"SUMIFS('Detall - Detalle'!$AA:$AA,'Detall - Detalle'!$AF:$AF,'Pressupost - Pressupuesto'!$A11,'Detall - Detalle'!$AE:$AE,N$3)","v":0}]
["a5 Subministraments / Suministros",0,{"$f":"+SUMIF('Detall - Detalle'!$AF:$AF,$A12,'Detall - Detalle'!$AB:$AB)","v":0},{"$f":"+SUMIF('Detall - Detalle'!$AF:$AF,$A12,'Detall - Detalle'!$AC:$AC)","v":0},{"$f":"+SUMIFS('Detall - Detalle'!$AD:$AD,'Detall - Detalle'!$AF:$AF,'Pressupost - Pressupuesto'!$A12,'Detall - Detalle'!$AE:$AE,E$3)","v":0},{"$f":"SUMIFS('Detall - Detalle'!$AD:$AD,'Detall - Detalle'!$AF:$AF,'Pressupost - Pressupuesto'!$A12,'Detall - Detalle'!$AE:$AE,F$3)","v":0},{"$f":"SUMIFS('Detall - Detalle'!$AD:$AD,'Detall - Detalle'!$AF:$AF,'Pressupost - Pressupuesto'!$A12,'Detall - Detalle'!$AE:$AE,G$3)","v":0},{"$f":"SUMIFS('Detall - Detalle'!$AD:$AD,'Detall - Detalle'!$AF:$AF,'Pressupost - Pressupuesto'!$A12,'Detall - Detalle'!$AE:$AE,H$3)","v":0},{"$f":"SUMIFS('Detall - Detalle'!$AD:$AD,'Detall - Detalle'!$AF:$AF,'Pressupost - Pressupuesto'!$A12,'Detall - Detalle'!$AE:$AE,I$3)","v":0},{"$f":"SUMIFS('Detall - Detalle'!$AA:$AA,'Detall - Detalle'!$AF:$AF,'Pressupost - Pressupuesto'!$A12,'Detall - Detalle'!$AE:$AE,J$3)","v":0},{"$f":"SUMIFS('Detall - Detalle'!$AA:$AA,'Detall - Detalle'!$AF:$AF,'Pressupost - Pressupuesto'!$A12,'Detall - Detalle'!$AE:$AE,K$3)","v":0},{"$f":"SUMIFS('Detall - Detalle'!$AA:$AA,'Detall - Detalle'!$AF:$AF,'Pressupost - Pressupuesto'!$A12,'Detall - Detalle'!$AE:$AE,L$3)","v":0},{"$f":"SUMIFS('Detall - Detalle'!$AA:$AA,'Detall - Detalle'!$AF:$AF,'Pressupost - Pressupuesto'!$A12,'Detall - Detalle'!$AE:$AE,M$3)","v":0},{"$f":"SUMIFS('Detall - Detalle'!$AA:$AA,'Detall - Detalle'!$AF:$AF,'Pressupost - Pressupuesto'!$A12,'Detall - Detalle'!$AE:$AE,N$3)","v":0}]
["a6 Comunicacions, despeses postals i missatgeria / Comunicaciones, gastos postales y mensajería",0,{"$f":"+SUMIF('Detall - Detalle'!$AF:$AF,$A13,'Detall - Detalle'!$AB:$AB)","v":0},{"$f":"+SUMIF('Detall - Detalle'!$AF:$AF,$A13,'Detall - Detalle'!$AC:$AC)","v":0},{"$f":"+SUMIFS('Detall - Detalle'!$AD:$AD,'Detall - Detalle'!$AF:$AF,'Pressupost - Pressupuesto'!$A13,'Detall - Detalle'!$AE:$AE,E$3)","v":0},{"$f":"SUMIFS('Detall - Detalle'!$AD:$AD,'Detall - Detalle'!$AF:$AF,'Pressupost - Pressupuesto'!$A13,'Detall - Detalle'!$AE:$AE,F$3)","v":0},{"$f":"SUMIFS('Detall - Detalle'!$AD:$AD,'Detall - Detalle'!$AF:$AF,'Pressupost - Pressupuesto'!$A13,'Detall - Detalle'!$AE:$AE,G$3)","v":0},{"$f":"SUMIFS('Detall - Detalle'!$AD:$AD,'Detall - Detalle'!$AF:$AF,'Pressupost - Pressupuesto'!$A13,'Detall - Detalle'!$AE:$AE,H$3)","v":0},{"$f":"SUMIFS('Detall - Detalle'!$AD:$AD,'Detall - Detalle'!$AF:$AF,'Pressupost - Pressupuesto'!$A13,'Detall - Detalle'!$AE:$AE,I$3)","v":0},{"$f":"SUMIFS('Detall - Detalle'!$AA:$AA,'Detall - Detalle'!$AF:$AF,'Pressupost - Pressupuesto'!$A13,'Detall - Detalle'!$AE:$AE,J$3)","v":0},{"$f":"SUMIFS('Detall - Detalle'!$AA:$AA,'Detall - Detalle'!$AF:$AF,'Pressupost - Pressupuesto'!$A13,'Detall - Detalle'!$AE:$AE,K$3)","v":0},{"$f":"SUMIFS('Detall - Detalle'!$AA:$AA,'Detall - Detalle'!$AF:$AF,'Pressupost - Pressupuesto'!$A13,'Detall - Detalle'!$AE:$AE,L$3)","v":0},{"$f":"SUMIFS('Detall - Detalle'!$AA:$AA,'Detall - Detalle'!$AF:$AF,'Pressupost - Pressupuesto'!$A13,'Detall - Detalle'!$AE:$AE,M$3)","v":0},{"$f":"SUMIFS('Detall - Detalle'!$AA:$AA,'Detall - Detalle'!$AF:$AF,'Pressupost - Pressupuesto'!$A13,'Detall - Detalle'!$AE:$AE,N$3)","v":0}]
["a7 Reunions, conferències i formacions / Reuniones, conferencias y formaciones",0,{"$f":"+SUMIF('Detall - Detalle'!$AF:$AF,$A14,'Detall - Detalle'!$AB:$AB)","v":0},{"$f":"+SUMIF('Detall - Detalle'!$AF:$AF,$A14,'Detall - Detalle'!$AC:$AC)","v":0},{"$f":"+SUMIFS('Detall - Detalle'!$AD:$AD,'Detall - Detalle'!$AF:$AF,'Pressupost - Pressupuesto'!$A14,'Detall - Detalle'!$AE:$AE,E$3)","v":0},{"$f":"SUMIFS('Detall - Detalle'!$AD:$AD,'Detall - Detalle'!$AF:$AF,'Pressupost - Pressupuesto'!$A14,'Detall - Detalle'!$AE:$AE,F$3)","v":0},{"$f":"SUMIFS('Detall - Detalle'!$AD:$AD,'Detall - Detalle'!$AF:$AF,'Pressupost - Pressupuesto'!$A14,'Detall - Detalle'!$AE:$AE,G$3)","v":0},{"$f":"SUMIFS('Detall - Detalle'!$AD:$AD,'Detall - Detalle'!$AF:$AF,'Pressupost - Pressupuesto'!$A14,'Detall - Detalle'!$AE:$AE,H$3)","v":0},{"$f":"SUMIFS('Detall - Detalle'!$AD:$AD,'Detall - Detalle'!$AF:$AF,'Pressupost - Pressupuesto'!$A14,'Detall - Detalle'!$AE:$AE,I$3)","v":0},{"$f":"SUMIFS('Detall - Detalle'!$AA:$AA,'Detall - Detalle'!$AF:$AF,'Pressupost - Pressupuesto'!$A14,'Detall - Detalle'!$AE:$AE,J$3)","v":0},{"$f":"SUMIFS('Detall - Detalle'!$AA:$AA,'Detall - Detalle'!$AF:$AF,'Pressupost - Pressupuesto'!$A14,'Detall - Detalle'!$AE:$AE,K$3)","v":0},{"$f":"SUMIFS('Detall - Detalle'!$AA:$AA,'Detall - Detalle'!$AF:$AF,'Pressupost - Pressupuesto'!$A14,'Detall - Detalle'!$AE:$AE,L$3)","v":0},{"$f":"SUMIFS('Detall - Detalle'!$AA:$AA,'Detall - Detalle'!$AF:$AF,'Pressupost - Pressupuesto'!$A14,'Detall - Detalle'!$AE:$AE,M$3)","v":0},{"$f":"SUMIFS('Detall - Detalle'!$AA:$AA,'Detall - Detalle'!$AF:$AF,'Pressupost - Pressupuesto'!$A14,'Detall - Detalle'!$AE:$AE,N$3)","v":0}]
["a8 Publicitat i difusió / Publicidad y difusión",0,{"$f":"+SUMIF('Detall - Detalle'!$AF:$AF,$A15,'Detall - Detalle'!$AB:$AB)","v":0},{"$f":"+SUMIF('Detall - Detalle'!$AF:$AF,$A15,'Detall - Detalle'!$AC:$AC)","v":0},{"$f":"+SUMIFS('Detall - Detalle'!$AD:$AD,'Detall - Detalle'!$AF:$AF,'Pressupost - Pressupuesto'!$A15,'Detall - Detalle'!$AE:$AE,E$3)","v":0},{"$f":"SUMIFS('Detall - Detalle'!$AD:$AD,'Detall - Detalle'!$AF:$AF,'Pressupost - Pressupuesto'!$A15,'Detall - Detalle'!$AE:$AE,F$3)","v":0},{"$f":"SUMIFS('Detall - Detalle'!$AD:$AD,'Detall - Detalle'!$AF:$AF,'Pressupost - Pressupuesto'!$A15,'Detall - Detalle'!$AE:$AE,G$3)","v":0},{"$f":"SUMIFS('Detall - Detalle'!$AD:$AD,'Detall - Detalle'!$AF:$AF,'Pressupost - Pressupuesto'!$A15,'Detall - Detalle'!$AE:$AE,H$3)","v":0},{"$f":"SUMIFS('Detall - Detalle'!$AD:$AD,'Detall - Detalle'!$AF:$AF,'Pressupost - Pressupuesto'!$A15,'Detall - Detalle'!$AE:$AE,I$3)","v":0},{"$f":"SUMIFS('Detall - Detalle'!$AA:$AA,'Detall - Detalle'!$AF:$AF,'Pressupost - Pressupuesto'!$A15,'Detall - Detalle'!$AE:$AE,J$3)","v":0},{"$f":"SUMIFS('Detall - Detalle'!$AA:$AA,'Detall - Detalle'!$AF:$AF,'Pressupost - Pressupuesto'!$A15,'Detall - Detalle'!$AE:$AE,K$3)","v":0},{"$f":"SUMIFS('Detall - Detalle'!$AA:$AA,'Detall - Detalle'!$AF:$AF,'Pressupost - Pressupuesto'!$A15,'Detall - Detalle'!$AE:$AE,L$3)","v":0},{"$f":"SUMIFS('Detall - Detalle'!$AA:$AA,'Detall - Detalle'!$AF:$AF,'Pressupost - Pressupuesto'!$A15,'Detall - Detalle'!$AE:$AE,M$3)","v":0},{"$f":"SUMIFS('Detall - Detalle'!$AA:$AA,'Detall - Detalle'!$AF:$AF,'Pressupost - Pressupuesto'!$A15,'Detall - Detalle'!$AE:$AE,N$3)","v":0}]
["a9 Publicacions / Publicaciones",0,{"$f":"+SUMIF('Detall - Detalle'!$AF:$AF,$A16,'Detall - Detalle'!$AB:$AB)","v":0},{"$f":"+SUMIF('Detall - Detalle'!$AF:$AF,$A16,'Detall - Detalle'!$AC:$AC)","v":0},{"$f":"+SUMIFS('Detall - Detalle'!$AD:$AD,'Detall - Detalle'!$AF:$AF,'Pressupost - Pressupuesto'!$A16,'Detall - Detalle'!$AE:$AE,E$3)","v":0},{"$f":"SUMIFS('Detall - Detalle'!$AD:$AD,'Detall - Detalle'!$AF:$AF,'Pressupost - Pressupuesto'!$A16,'Detall - Detalle'!$AE:$AE,F$3)","v":0},{"$f":"SUMIFS('Detall - Detalle'!$AD:$AD,'Detall - Detalle'!$AF:$AF,'Pressupost - Pressupuesto'!$A16,'Detall - Detalle'!$AE:$AE,G$3)","v":0},{"$f":"SUMIFS('Detall - Detalle'!$AD:$AD,'Detall - Detalle'!$AF:$AF,'Pressupost - Pressupuesto'!$A16,'Detall - Detalle'!$AE:$AE,H$3)","v":0},{"$f":"SUMIFS('Detall - Detalle'!$AD:$AD,'Detall - Detalle'!$AF:$AF,'Pressupost - Pressupuesto'!$A16,'Detall - Detalle'!$AE:$AE,I$3)","v":0},{"$f":"SUMIFS('Detall - Detalle'!$AA:$AA,'Detall - Detalle'!$AF:$AF,'Pressupost - Pressupuesto'!$A16,'Detall - Detalle'!$AE:$AE,J$3)","v":0},{"$f":"SUMIFS('Detall - Detalle'!$AA:$AA,'Detall - Detalle'!$AF:$AF,'Pressupost - Pressupuesto'!$A16,'Detall - Detalle'!$AE:$AE,K$3)","v":0},{"$f":"SUMIFS('Detall - Detalle'!$AA:$AA,'Detall - Detalle'!$AF:$AF,'Pressupost - Pressupuesto'!$A16,'Detall - Detalle'!$AE:$AE,L$3)","v":0},{"$f":"SUMIFS('Detall - Detalle'!$AA:$AA,'Detall - Detalle'!$AF:$AF,'Pressupost - Pressupuesto'!$A16,'Detall - Detalle'!$AE:$AE,M$3)","v":0},{"$f":"SUMIFS('Detall - Detalle'!$AA:$AA,'Detall - Detalle'!$AF:$AF,'Pressupost - Pressupuesto'!$A16,'Detall - Detalle'!$AE:$AE,N$3)","v":0}]
["a10 Treballs tècnics i professionals / Trabajos técnicos y profesionales",0,{"$f":"+SUMIF('Detall - Detalle'!$AF:$AF,$A17,'Detall - Detalle'!$AB:$AB)","v":0},{"$f":"+SUMIF('Detall - Detalle'!$AF:$AF,$A17,'Detall - Detalle'!$AC:$AC)","v":0},{"$f":"+SUMIFS('Detall - Detalle'!$AD:$AD,'Detall - Detalle'!$AF:$AF,'Pressupost - Pressupuesto'!$A17,'Detall - Detalle'!$AE:$AE,E$3)","v":0},{"$f":"SUMIFS('Detall - Detalle'!$AD:$AD,'Detall - Detalle'!$AF:$AF,'Pressupost - Pressupuesto'!$A17,'Detall - Detalle'!$AE:$AE,F$3)","v":0},{"$f":"SUMIFS('Detall - Detalle'!$AD:$AD,'Detall - Detalle'!$AF:$AF,'Pressupost - Pressupuesto'!$A17,'Detall - Detalle'!$AE:$AE,G$3)","v":0},{"$f":"SUMIFS('Detall - Detalle'!$AD:$AD,'Detall - Detalle'!$AF:$AF,'Pressupost - Pressupuesto'!$A17,'Detall - Detalle'!$AE:$AE,H$3)","v":0},{"$f":"SUMIFS('Detall - Detalle'!$AD:$AD,'Detall - Detalle'!$AF:$AF,'Pressupost - Pressupuesto'!$A17,'Detall - Detalle'!$AE:$AE,I$3)","v":0},{"$f":"SUMIFS('Detall - Detalle'!$AA:$AA,'Detall - Detalle'!$AF:$AF,'Pressupost - Pressupuesto'!$A17,'Detall - Detalle'!$AE:$AE,J$3)","v":0},{"$f":"SUMIFS('Detall - Detalle'!$AA:$AA,'Detall - Detalle'!$AF:$AF,'Pressupost - Pressupuesto'!$A17,'Detall - Detalle'!$AE:$AE,K$3)","v":0},{"$f":"SUMIFS('Detall - Detalle'!$AA:$AA,'Detall - Detalle'!$AF:$AF,'Pressupost - Pressupuesto'!$A17,'Detall - Detalle'!$AE:$AE,L$3)","v":0},{"$f":"SUMIFS('Detall - Detalle'!$AA:$AA,'Detall - Detalle'!$AF:$AF,'Pressupost - Pressupuesto'!$A17,'Detall - Detalle'!$AE:$AE,M$3)","v":0},{"$f":"SUMIFS('Detall - Detalle'!$AA:$AA,'Detall - Detalle'!$AF:$AF,'Pressupost - Pressupuesto'!$A17,'Detall - Detalle'!$AE:$AE,N$3)","v":0}]
["a11 Identificació i formulació / Identificación y formulación",0,{"$f":"+SUMIF('Detall - Detalle'!$AF:$AF,$A18,'Detall - Detalle'!$AB:$AB)","v":0},{"$f":"+SUMIF('Detall - Detalle'!$AF:$AF,$A18,'Detall - Detalle'!$AC:$AC)","v":0},{"$f":"+SUMIFS('Detall - Detalle'!$AD:$AD,'Detall - Detalle'!$AF:$AF,'Pressupost - Pressupuesto'!$A18,'Detall - Detalle'!$AE:$AE,E$3)","v":0},{"$f":"SUMIFS('Detall - Detalle'!$AD:$AD,'Detall - Detalle'!$AF:$AF,'Pressupost - Pressupuesto'!$A18,'Detall - Detalle'!$AE:$AE,F$3)","v":0},{"$f":"SUMIFS('Detall - Detalle'!$AD:$AD,'Detall - Detalle'!$AF:$AF,'Pressupost - Pressupuesto'!$A18,'Detall - Detalle'!$AE:$AE,G$3)","v":0},{"$f":"SUMIFS('Detall - Detalle'!$AD:$AD,'Detall - Detalle'!$AF:$AF,'Pressupost - Pressupuesto'!$A18,'Detall - Detalle'!$AE:$AE,H$3)","v":0},{"$f":"SUMIFS('Detall - Detalle'!$AD:$AD,'Detall - Detalle'!$AF:$AF,'Pressupost - Pressupuesto'!$A18,'Detall - Detalle'!$AE:$AE,I$3)","v":0},{"$f":"SUMIFS('Detall - Detalle'!$AA:$AA,'Detall - Detalle'!$AF:$AF,'Pressupost - Pressupuesto'!$A18,'Detall - Detalle'!$AE:$AE,J$3)","v":0},{"$f":"SUMIFS('Detall - Detalle'!$AA:$AA,'Detall - Detalle'!$AF:$AF,'Pressupost - Pressupuesto'!$A18,'Detall - Detalle'!$AE:$AE,K$3)","v":0},{"$f":"SUMIFS('Detall - Detalle'!$AA:$AA,'Detall - Detalle'!$AF:$AF,'Pressupost - Pressupuesto'!$A18,'Detall - Detalle'!$AE:$AE,L$3)","v":0},{"$f":"SUMIFS('Detall - Detalle'!$AA:$AA,'Detall - Detalle'!$AF:$AF,'Pressupost - Pressupuesto'!$A18,'Detall - Detalle'!$AE:$AE,M$3)","v":0},{"$f":"SUMIFS('Detall - Detalle'!$AA:$AA,'Detall - Detalle'!$AF:$AF,'Pressupost - Pressupuesto'!$A18,'Detall - Detalle'!$AE:$AE,N$3)","v":0}]
["a12 Avaluació / Evaluación",0,{"$f":"+SUMIF('Detall - Detalle'!$AF:$AF,$A19,'Detall - Detalle'!$AB:$AB)","v":0},{"$f":"+SUMIF('Detall - Detalle'!$AF:$AF,$A19,'Detall - Detalle'!$AC:$AC)","v":0},{"$f":"+SUMIFS('Detall - Detalle'!$AD:$AD,'Detall - Detalle'!$AF:$AF,'Pressupost - Pressupuesto'!$A19,'Detall - Detalle'!$AE:$AE,E$3)","v":0},{"$f":"SUMIFS('Detall - Detalle'!$AD:$AD,'Detall - Detalle'!$AF:$AF,'Pressupost - Pressupuesto'!$A19,'Detall - Detalle'!$AE:$AE,F$3)","v":0},{"$f":"SUMIFS('Detall - Detalle'!$AD:$AD,'Detall - Detalle'!$AF:$AF,'Pressupost - Pressupuesto'!$A19,'Detall - Detalle'!$AE:$AE,G$3)","v":0},{"$f":"SUMIFS('Detall - Detalle'!$AD:$AD,'Detall - Detalle'!$AF:$AF,'Pressupost - Pressupuesto'!$A19,'Detall - Detalle'!$AE:$AE,H$3)","v":0},{"$f":"SUMIFS('Detall - Detalle'!$AD:$AD,'Detall - Detalle'!$AF:$AF,'Pressupost - Pressupuesto'!$A19,'Detall - Detalle'!$AE:$AE,I$3)","v":0},{"$f":"SUMIFS('Detall - Detalle'!$AA:$AA,'Detall - Detalle'!$AF:$AF,'Pressupost - Pressupuesto'!$A19,'Detall - Detalle'!$AE:$AE,J$3)","v":0},{"$f":"SUMIFS('Detall - Detalle'!$AA:$AA,'Detall - Detalle'!$AF:$AF,'Pressupost - Pressupuesto'!$A19,'Detall - Detalle'!$AE:$AE,K$3)","v":0},{"$f":"SUMIFS('Detall - Detalle'!$AA:$AA,'Detall - Detalle'!$AF:$AF,'Pressupost - Pressupuesto'!$A19,'Detall - Detalle'!$AE:$AE,L$3)","v":0},{"$f":"SUMIFS('Detall - Detalle'!$AA:$AA,'Detall - Detalle'!$AF:$AF,'Pressupost - Pressupuesto'!$A19,'Detall - Detalle'!$AE:$AE,M$3)","v":0},{"$f":"SUMIFS('Detall - Detalle'!$AA:$AA,'Detall - Detalle'!$AF:$AF,'Pressupost - Pressupuesto'!$A19,'Detall - Detalle'!$AE:$AE,N$3)","v":0}]
["a13 Dietes, locomoció, trasllats i allotjaments / Dietas, locomoción, traslados y alojamientos",0,{"$f":"+SUMIF('Detall - Detalle'!$AF:$AF,$A20,'Detall - Detalle'!$AB:$AB)","v":0},{"$f":"+SUMIF('Detall - Detalle'!$AF:$AF,$A20,'Detall - Detalle'!$AC:$AC)","v":0},{"$f":"+SUMIFS('Detall - Detalle'!$AD:$AD,'Detall - Detalle'!$AF:$AF,'Pressupost - Pressupuesto'!$A20,'Detall - Detalle'!$AE:$AE,E$3)","v":0},{"$f":"SUMIFS('Detall - Detalle'!$AD:$AD,'Detall - Detalle'!$AF:$AF,'Pressupost - Pressupuesto'!$A20,'Detall - Detalle'!$AE:$AE,F$3)","v":0},{"$f":"SUMIFS('Detall - Detalle'!$AD:$AD,'Detall - Detalle'!$AF:$AF,'Pressupost - Pressupuesto'!$A20,'Detall - Detalle'!$AE:$AE,G$3)","v":0},{"$f":"SUMIFS('Detall - Detalle'!$AD:$AD,'Detall - Detalle'!$AF:$AF,'Pressupost - Pressupuesto'!$A20,'Detall - Detalle'!$AE:$AE,H$3)","v":0},{"$f":"SUMIFS('Detall - Detalle'!$AD:$AD,'Detall - Detalle'!$AF:$AF,'Pressupost - Pressupuesto'!$A20,'Detall - Detalle'!$AE:$AE,I$3)","v":0},{"$f":"SUMIFS('Detall - Detalle'!$AA:$AA,'Detall - Detalle'!$AF:$AF,'Pressupost - Pressupuesto'!$A20,'Detall - Detalle'!$AE:$AE,J$3)","v":0},{"$f":"SUMIFS('Detall - Detalle'!$AA:$AA,'Detall - Detalle'!$AF:$AF,'Pressupost - Pressupuesto'!$A20,'Detall - Detalle'!$AE:$AE,K$3)","v":0},{"$f":"SUMIFS('Detall - Detalle'!$AA:$AA,'Detall - Detalle'!$AF:$AF,'Pressupost - Pressupuesto'!$A20,'Detall - Detalle'!$AE:$AE,L$3)","v":0},{"$f":"SUMIFS('Detall - Detalle'!$AA:$AA,'Detall - Detalle'!$AF:$AF,'Pressupost - Pressupuesto'!$A20,'Detall - Detalle'!$AE:$AE,M$3)","v":0},{"$f":"SUMIFS('Detall - Detalle'!$AA:$AA,'Detall - Detalle'!$AF:$AF,'Pressupost - Pressupuesto'!$A20,'Detall - Detalle'!$AE:$AE,N$3)","v":0}]
["a14 Informe auditor / Informe de auditor",0,{"$f":"+SUMIF('Detall - Detalle'!$AF:$AF,$A21,'Detall - Detalle'!$AB:$AB)","v":0},{"$f":"+SUMIF('Detall - Detalle'!$AF:$AF,$A21,'Detall - Detalle'!$AC:$AC)","v":0},{"$f":"+SUMIFS('Detall - Detalle'!$AD:$AD,'Detall - Detalle'!$AF:$AF,'Pressupost - Pressupuesto'!$A21,'Detall - Detalle'!$AE:$AE,E$3)","v":0},{"$f":"SUMIFS('Detall - Detalle'!$AD:$AD,'Detall - Detalle'!$AF:$AF,'Pressupost - Pressupuesto'!$A21,'Detall - Detalle'!$AE:$AE,F$3)","v":0},{"$f":"SUMIFS('Detall - Detalle'!$AD:$AD,'Detall - Detalle'!$AF:$AF,'Pressupost - Pressupuesto'!$A21,'Detall - Detalle'!$AE:$AE,G$3)","v":0},{"$f":"SUMIFS('Detall - Detalle'!$AD:$AD,'Detall - Detalle'!$AF:$AF,'Pressupost - Pressupuesto'!$A21,'Detall - Detalle'!$AE:$AE,H$3)","v":0},{"$f":"SUMIFS('Detall - Detalle'!$AD:$AD,'Detall - Detalle'!$AF:$AF,'Pressupost - Pressupuesto'!$A21,'Detall - Detalle'!$AE:$AE,I$3)","v":0},{"$f":"SUMIFS('Detall - Detalle'!$AA:$AA,'Detall - Detalle'!$AF:$AF,'Pressupost - Pressupuesto'!$A21,'Detall - Detalle'!$AE:$AE,J$3)","v":0},{"$f":"SUMIFS('Detall - Detalle'!$AA:$AA,'Detall - Detalle'!$AF:$AF,'Pressupost - Pressupuesto'!$A21,'Detall - Detalle'!$AE:$AE,K$3)","v":0},{"$f":"SUMIFS('Detall - Detalle'!$AA:$AA,'Detall - Detalle'!$AF:$AF,'Pressupost - Pressupuesto'!$A21,'Detall - Detalle'!$AE:$AE,L$3)","v":0},{"$f":"SUMIFS('Detall - Detalle'!$AA:$AA,'Detall - Detalle'!$AF:$AF,'Pressupost - Pressupuesto'!$A21,'Detall - Detalle'!$AE:$AE,M$3)","v":0},{"$f":"SUMIFS('Detall - Detalle'!$AA:$AA,'Detall - Detalle'!$AF:$AF,'Pressupost - Pressupuesto'!$A21,'Detall - Detalle'!$AE:$AE,N$3)","v":0}]
["a15 Despeses financeres / Gastos financieros",0,{"$f":"+SUMIF('Detall - Detalle'!$AF:$AF,$A22,'Detall - Detalle'!$AB:$AB)","v":0},{"$f":"+SUMIF('Detall - Detalle'!$AF:$AF,$A22,'Detall - Detalle'!$AC:$AC)","v":0},{"$f":"+SUMIFS('Detall - Detalle'!$AD:$AD,'Detall - Detalle'!$AF:$AF,'Pressupost - Pressupuesto'!$A22,'Detall - Detalle'!$AE:$AE,E$3)","v":0},{"$f":"SUMIFS('Detall - Detalle'!$AD:$AD,'Detall - Detalle'!$AF:$AF,'Pressupost - Pressupuesto'!$A22,'Detall - Detalle'!$AE:$AE,F$3)","v":0},{"$f":"SUMIFS('Detall - Detalle'!$AD:$AD,'Detall - Detalle'!$AF:$AF,'Pressupost - Pressupuesto'!$A22,'Detall - Detalle'!$AE:$AE,G$3)","v":0},{"$f":"SUMIFS('Detall - Detalle'!$AD:$AD,'Detall - Detalle'!$AF:$AF,'Pressupost - Pressupuesto'!$A22,'Detall - Detalle'!$AE:$AE,H$3)","v":0},{"$f":"SUMIFS('Detall - Detalle'!$AD:$AD,'Detall - Detalle'!$AF:$AF,'Pressupost - Pressupuesto'!$A22,'Detall - Detalle'!$AE:$AE,I$3)","v":0},{"$f":"SUMIFS('Detall - Detalle'!$AA:$AA,'Detall - Detalle'!$AF:$AF,'Pressupost - Pressupuesto'!$A22,'Detall - Detalle'!$AE:$AE,J$3)","v":0},{"$f":"SUMIFS('Detall - Detalle'!$AA:$AA,'Detall - Detalle'!$AF:$AF,'Pressupost - Pressupuesto'!$A22,'Detall - Detalle'!$AE:$AE,K$3)","v":0},{"$f":"SUMIFS('Detall - Detalle'!$AA:$AA,'Detall - Detalle'!$AF:$AF,'Pressupost - Pressupuesto'!$A22,'Detall - Detalle'!$AE:$AE,L$3)","v":0},{"$f":"SUMIFS('Detall - Detalle'!$AA:$AA,'Detall - Detalle'!$AF:$AF,'Pressupost - Pressupuesto'!$A22,'Detall - Detalle'!$AE:$AE,M$3)","v":0},{"$f":"SUMIFS('Detall - Detalle'!$AA:$AA,'Detall - Detalle'!$AF:$AF,'Pressupost - Pressupuesto'!$A22,'Detall - Detalle'!$AE:$AE,N$3)","v":0}]
["a16 Despeses de suport legal / Gastos de soporte legal",0,{"$f":"+SUMIF('Detall - Detalle'!$AF:$AF,$A23,'Detall - Detalle'!$AB:$AB)","v":0},{"$f":"+SUMIF('Detall - Detalle'!$AF:$AF,$A23,'Detall - Detalle'!$AC:$AC)","v":0},{"$f":"+SUMIFS('Detall - Detalle'!$AD:$AD,'Detall - Detalle'!$AF:$AF,'Pressupost - Pressupuesto'!$A23,'Detall - Detalle'!$AE:$AE,E$3)","v":0},{"$f":"SUMIFS('Detall - Detalle'!$AD:$AD,'Detall - Detalle'!$AF:$AF,'Pressupost - Pressupuesto'!$A23,'Detall - Detalle'!$AE:$AE,F$3)","v":0},{"$f":"SUMIFS('Detall - Detalle'!$AD:$AD,'Detall - Detalle'!$AF:$AF,'Pressupost - Pressupuesto'!$A23,'Detall - Detalle'!$AE:$AE,G$3)","v":0},{"$f":"SUMIFS('Detall - Detalle'!$AD:$AD,'Detall - Detalle'!$AF:$AF,'Pressupost - Pressupuesto'!$A23,'Detall - Detalle'!$AE:$AE,H$3)","v":0},{"$f":"SUMIFS('Detall - Detalle'!$AD:$AD,'Detall - Detalle'!$AF:$AF,'Pressupost - Pressupuesto'!$A23,'Detall - Detalle'!$AE:$AE,I$3)","v":0},{"$f":"SUMIFS('Detall - Detalle'!$AA:$AA,'Detall - Detalle'!$AF:$AF,'Pressupost - Pressupuesto'!$A23,'Detall - Detalle'!$AE:$AE,J$3)","v":0},{"$f":"SUMIFS('Detall - Detalle'!$AA:$AA,'Detall - Detalle'!$AF:$AF,'Pressupost - Pressupuesto'!$A23,'Detall - Detalle'!$AE:$AE,K$3)","v":0},{"$f":"SUMIFS('Detall - Detalle'!$AA:$AA,'Detall - Detalle'!$AF:$AF,'Pressupost - Pressupuesto'!$A23,'Detall - Detalle'!$AE:$AE,L$3)","v":0},{"$f":"SUMIFS('Detall - Detalle'!$AA:$AA,'Detall - Detalle'!$AF:$AF,'Pressupost - Pressupuesto'!$A23,'Detall - Detalle'!$AE:$AE,M$3)","v":0},{"$f":"SUMIFS('Detall - Detalle'!$AA:$AA,'Detall - Detalle'!$AF:$AF,'Pressupost - Pressupuesto'!$A23,'Detall - Detalle'!$AE:$AE,N$3)","v":0}]
["a17 Beques / Becas",0,{"$f":"+SUMIF('Detall - Detalle'!$AF:$AF,$A24,'Detall - Detalle'!$AB:$AB)","v":0},{"$f":"+SUMIF('Detall - Detalle'!$AF:$AF,$A24,'Detall - Detalle'!$AC:$AC)","v":0},{"$f":"+SUMIFS('Detall - Detalle'!$AD:$AD,'Detall - Detalle'!$AF:$AF,'Pressupost - Pressupuesto'!$A24,'Detall - Detalle'!$AE:$AE,E$3)","v":0},{"$f":"SUMIFS('Detall - Detalle'!$AD:$AD,'Detall - Detalle'!$AF:$AF,'Pressupost - Pressupuesto'!$A24,'Detall - Detalle'!$AE:$AE,F$3)","v":0},{"$f":"SUMIFS('Detall - Detalle'!$AD:$AD,'Detall - Detalle'!$AF:$AF,'Pressupost - Pressupuesto'!$A24,'Detall - Detalle'!$AE:$AE,G$3)","v":0},{"$f":"SUMIFS('Detall - Detalle'!$AD:$AD,'Detall - Detalle'!$AF:$AF,'Pressupost - Pressupuesto'!$A24,'Detall - Detalle'!$AE:$AE,H$3)","v":0},{"$f":"SUMIFS('Detall - Detalle'!$AD:$AD,'Detall - Detalle'!$AF:$AF,'Pressupost - Pressupuesto'!$A24,'Detall - Detalle'!$AE:$AE,I$3)","v":0},{"$f":"SUMIFS('Detall - Detalle'!$AA:$AA,'Detall - Detalle'!$AF:$AF,'Pressupost - Pressupuesto'!$A24,'Detall - Detalle'!$AE:$AE,J$3)","v":0},{"$f":"SUMIFS('Detall - Detalle'!$AA:$AA,'Detall - Detalle'!$AF:$AF,'Pressupost - Pressupuesto'!$A24,'Detall - Detalle'!$AE:$AE,K$3)","v":0},{"$f":"SUMIFS('Detall - Detalle'!$AA:$AA,'Detall - Detalle'!$AF:$AF,'Pressupost - Pressupuesto'!$A24,'Detall - Detalle'!$AE:$AE,L$3)","v":0},{"$f":"SUMIFS('Detall - Detalle'!$AA:$AA,'Detall - Detalle'!$AF:$AF,'Pressupost - Pressupuesto'!$A24,'Detall - Detalle'!$AE:$AE,M$3)","v":0},{"$f":"SUMIFS('Detall - Detalle'!$AA:$AA,'Detall - Detalle'!$AF:$AF,'Pressupost - Pressupuesto'!$A24,'Detall - Detalle'!$AE:$AE,N$3)","v":0}]
["a18 Imprevistos / Imprevistos",0,{"$f":"+SUMIF('Detall - Detalle'!$AF:$AF,$A25,'Detall - Detalle'!$AB:$AB)","v":0},{"$f":"+SUMIF('Detall - Detalle'!$AF:$AF,$A25,'Detall - Detalle'!$AC:$AC)","v":0},{"$f":"+SUMIFS('Detall - Detalle'!$AD:$AD,'Detall - Detalle'!$AF:$AF,'Pressupost - Pressupuesto'!$A25,'Detall - Detalle'!$AE:$AE,E$3)","v":0},{"$f":"SUMIFS('Detall - Detalle'!$AD:$AD,'Detall - Detalle'!$AF:$AF,'Pressupost - Pressupuesto'!$A25,'Detall - Detalle'!$AE:$AE,F$3)","v":0},{"$f":"SUMIFS('Detall - Detalle'!$AD:$AD,'Detall - Detalle'!$AF:$AF,'Pressupost - Pressupuesto'!$A25,'Detall - Detalle'!$AE:$AE,G$3)","v":0},{"$f":"SUMIFS('Detall - Detalle'!$AD:$AD,'Detall - Detalle'!$AF:$AF,'Pressupost - Pressupuesto'!$A25,'Detall - Detalle'!$AE:$AE,H$3)","v":0},{"$f":"SUMIFS('Detall - Detalle'!$AD:$AD,'Detall - Detalle'!$AF:$AF,'Pressupost - Pressupuesto'!$A25,'Detall - Detalle'!$AE:$AE,I$3)","v":0},{"$f":"SUMIFS('Detall - Detalle'!$AA:$AA,'Detall - Detalle'!$AF:$AF,'Pressupost - Pressupuesto'!$A25,'Detall - Detalle'!$AE:$AE,J$3)","v":0},{"$f":"SUMIFS('Detall - Detalle'!$AA:$AA,'Detall - Detalle'!$AF:$AF,'Pressupost - Pressupuesto'!$A25,'Detall - Detalle'!$AE:$AE,K$3)","v":0},{"$f":"SUMIFS('Detall - Detalle'!$AA:$AA,'Detall - Detalle'!$AF:$AF,'Pressupost - Pressupuesto'!$A25,'Detall - Detalle'!$AE:$AE,L$3)","v":0},{"$f":"SUMIFS('Detall - Detalle'!$AA:$AA,'Detall - Detalle'!$AF:$AF,'Pressupost - Pressupuesto'!$A25,'Detall - Detalle'!$AE:$AE,M$3)","v":0},{"$f":"SUMIFS('Detall - Detalle'!$AA:$AA,'Detall - Detalle'!$AF:$AF,'Pressupost - Pressupuesto'!$A25,'Detall - Detalle'!$AE:$AE,N$3)","v":0}]
["DESPESES DIRECTES D'INVERSIÓ (Capítol VII) / GASTOS DIRECTOS DE INVERSIÓN (Capítulo VII)",0,{"$f":"SUM(C27:C27)","v":0},0,0,0,0,0,0,0,0,0,0,0]
["b1 Béns inventariables / Bienes inventariables",0,{"$f":"+SUMIF('Detall - Detalle'!$AF:$AF,$A27,'Detall - Detalle'!$AB:$AB)","v":0},{"$f":"+SUMIF('Detall - Detalle'!$AF:$AF,$A27,'Detall - Detalle'!$AC:$AC)","v":0},{"$f":"+SUMIFS('Detall - Detalle'!$AD:$AD,'Detall - Detalle'!$AF:$AF,'Pressupost - Pressupuesto'!$A27,'Detall - Detalle'!$AE:$AE,E$3)","v":0},{"$f":"SUMIFS('Detall - Detalle'!$AD:$AD,'Detall - Detalle'!$AF:$AF,'Pressupost - Pressupuesto'!$A27,'Detall - Detalle'!$AE:$AE,F$3)","v":0},{"$f":"SUMIFS('Detall - Detalle'!$AD:$AD,'Detall - Detalle'!$AF:$AF,'Pressupost - Pressupuesto'!$A27,'Detall - Detalle'!$AE:$AE,G$3)","v":0},{"$f":"SUMIFS('Detall - Detalle'!$AD:$AD,'Detall - Detalle'!$AF:$AF,'Pressupost - Pressupuesto'!$A27,'Detall - Detalle'!$AE:$AE,H$3)","v":0},{"$f":"SUMIFS('Detall - Detalle'!$AD:$AD,'Detall - Detalle'!$AF:$AF,'Pressupost - Pressupuesto'!$A27,'Detall - Detalle'!$AE:$AE,I$3)","v":0},{"$f":"SUMIFS('Detall - Detalle'!$AA:$AA,'Detall - Detalle'!$AF:$AF,'Pressupost - Pressupuesto'!$A27,'Detall - Detalle'!$AE:$AE,J$3)","v":0},{"$f":"SUMIFS('Detall - Detalle'!$AA:$AA,'Detall - Detalle'!$AF:$AF,'Pressupost - Pressupuesto'!$A27,'Detall - Detalle'!$AE:$AE,K$3)","v":0},{"$f":"SUMIFS('Detall - Detalle'!$AA:$AA,'Detall - Detalle'!$AF:$AF,'Pressupost - Pressupuesto'!$A27,'Detall - Detalle'!$AE:$AE,L$3)","v":0},{"$f":"SUMIFS('Detall - Detalle'!$AA:$AA,'Detall - Detalle'!$AF:$AF,'Pressupost - Pressupuesto'!$A27,'Detall - Detalle'!$AE:$AE,M$3)","v":0},{"$f":"SUMIFS('Detall - Detalle'!$AA:$AA,'Detall - Detalle'!$AF:$AF,'Pressupost - Pressupuesto'!$A27,'Detall - Detalle'!$AE:$AE,N$3)","v":0}]
["TOTAL DESPESES DIRECTES / TOTAL GASTOS DIRECTOS",0,{"$f":"+C26+C4","v":0},0,0,0,0,0,0,0,0,0,0,0]
["DESPESES INDIRECTES (Cap IV) / GASTOS INDIRECTOS (Cap IV)",0,{"$f":"+SUMIF('Detall - Detalle'!$AF:$AF,$A29,'Detall - Detalle'!$AB:$AB)","v":0},{"$f":"+SUMIF('Detall - Detalle'!$AF:$AF,$A29,'Detall - Detalle'!$AC:$AC)","v":0},{"$f":"+SUMIFS('Detall - Detalle'!$AD:$AD,'Detall - Detalle'!$AF:$AF,'Pressupost - Pressupuesto'!$A29,'Detall - Detalle'!$AE:$AE,E$3)","v":0},{"$f":"SUMIFS('Detall - Detalle'!$AD:$AD,'Detall - Detalle'!$AF:$AF,'Pressupost - Pressupuesto'!$A29,'Detall - Detalle'!$AE:$AE,F$3)","v":0},{"$f":"SUMIFS('Detall - Detalle'!$AD:$AD,'Detall - Detalle'!$AF:$AF,'Pressupost - Pressupuesto'!$A29,'Detall - Detalle'!$AE:$AE,G$3)","v":0},{"$f":"SUMIFS('Detall - Detalle'!$AD:$AD,'Detall - Detalle'!$AF:$AF,'Pressupost - Pressupuesto'!$A29,'Detall - Detalle'!$AE:$AE,H$3)","v":0},{"$f":"SUMIFS('Detall - Detalle'!$AD:$AD,'Detall - Detalle'!$AF:$AF,'Pressupost - Pressupuesto'!$A29,'Detall - Detalle'!$AE:$AE,I$3)","v":0},{"$f":"SUMIFS('Detall - Detalle'!$AA:$AA,'Detall - Detalle'!$AF:$AF,'Pressupost - Pressupuesto'!$A29,'Detall - Detalle'!$AE:$AE,J$3)","v":0},{"$f":"SUMIFS('Detall - Detalle'!$AA:$AA,'Detall - Detalle'!$AF:$AF,'Pressupost - Pressupuesto'!$A29,'Detall - Detalle'!$AE:$AE,K$3)","v":0},{"$f":"SUMIFS('Detall - Detalle'!$AA:$AA,'Detall - Detalle'!$AF:$AF,'Pressupost - Pressupuesto'!$A29,'Detall - Detalle'!$AE:$AE,L$3)","v":0},{"$f":"SUMIFS('Detall - Detalle'!$AA:$AA,'Detall - Detalle'!$AF:$AF,'Pressupost - Pressupuesto'!$A29,'Detall - Detalle'!$AE:$AE,M$3)","v":0},{"$f":"SUMIFS('Detall - Detalle'!$AA:$AA,'Detall - Detalle'!$AF:$AF,'Pressupost - Pressupuesto'!$A29,'Detall - Detalle'!$AE:$AE,N$3)","v":0}]
["TOTAL DESPESES / TOTAL GASTOS",0,{"$f":"+C29+C28","v":0},{"$f":"+D29+D28","v":0},{"$f":"+E29+E28","v":0},0,{"$f":"+G29+G28","v":0},{"$f":"+H29+H28","v":0},{"$f":"+I29+I28","v":0},{"$f":"+J29+J28","v":0},0,0,{"$f":"+M29+M28","v":0},0]
[]
[]
[]
["PRESSUPOST PER ACTIVITATS",null,{"$f":"+IF(C36<>\"\",\"Activitat \"&COUNTA($C$36:C36),\"\")","v":""},{"$f":"+IF(D36<>\"\",\"Activitat \"&COUNTA($C$36:D36),\"\")","v":""},{"$f":"+IF(E36<>\"\",\"Activitat \"&COUNTA($C$36:E36),\"\")","v":""},{"$f":"+IF(F36<>\"\",\"Activitat \"&COUNTA($C$36:F36),\"\")","v":""},{"$f":"+IF(G36<>\"\",\"Activitat \"&COUNTA($C$36:G36),\"\")","v":""},{"$f":"+IF(H36<>\"\",\"Activitat \"&COUNTA($C$36:H36),\"\")","v":""},{"$f":"+IF(I36<>\"\",\"Activitat \"&COUNTA($C$36:I36),\"\")","v":""},{"$f":"+IF(J36<>\"\",\"Activitat \"&COUNTA($C$36:J36),\"\")","v":""},{"$f":"+IF(K36<>\"\",\"Activitat \"&COUNTA($C$36:K36),\"\")","v":""},{"$f":"+IF(L36<>\"\",\"Activitat \"&COUNTA($C$36:L36),\"\")","v":""},{"$f":"+IF(M36<>\"\",\"Activitat \"&COUNTA($C$36:M36),\"\")","v":""},{"$f":"+IF(N36<>\"\",\"Activitat \"&COUNTA($C$36:N36),\"\")","v":""},{"$f":"+IF(O36<>\"\",\"Activitat \"&COUNTA($C$36:O36),\"\")","v":""},{"$f":"+IF(P36<>\"\",\"Activitat \"&COUNTA($C$36:P36),\"\")","v":""},{"$f":"+IF(Q36<>\"\",\"Activitat \"&COUNTA($C$36:Q36),\"\")","v":""},{"$f":"+IF(R36<>\"\",\"Activitat \"&COUNTA($C$36:R36),\"\")","v":""},{"$f":"+IF(S36<>\"\",\"Activitat \"&COUNTA($C$36:S36),\"\")","v":""},{"$f":"+IF(T36<>\"\",\"Activitat \"&COUNTA($C$36:T36),\"\")","v":""},{"$f":"+IF(U36<>\"\",\"Activitat \"&COUNTA($C$36:U36),\"\")","v":""},{"$f":"+IF(V36<>\"\",\"Activitat \"&COUNTA($C$36:V36),\"\")","v":""}]
[null,"% imputació",{"$f":"+IF(C36<>\"\",VLOOKUP(C34,'Dades i com... - Datos y com...'!$C$44:$E$63,3,FALSE),\"\")","v":""},{"$f":"+IF(D36<>\"\",VLOOKUP(D34,'Dades i com... - Datos y com...'!$C$44:$E$63,3,FALSE),\"\")","v":""},{"$f":"+IF(E36<>\"\",VLOOKUP(E34,'Dades i com... - Datos y com...'!$C$44:$E$63,3,FALSE),\"\")","v":""},{"$f":"+IF(F36<>\"\",VLOOKUP(F34,'Dades i com... - Datos y com...'!$C$44:$E$63,3,FALSE),\"\")","v":""},{"$f":"+IF(G36<>\"\",VLOOKUP(G34,'Dades i com... - Datos y com...'!$C$44:$E$63,3,FALSE),\"\")","v":""},{"$f":"+IF(H36<>\"\",VLOOKUP(H34,'Dades i com... - Datos y com...'!$C$44:$E$63,3,FALSE),\"\")","v":""},{"$f":"+IF(I36<>\"\",VLOOKUP(I34,'Dades i com... - Datos y com...'!$C$44:$E$63,3,FALSE),\"\")","v":""},{"$f":"+IF(J36<>\"\",VLOOKUP(J34,'Dades i com... - Datos y com...'!$C$44:$E$63,3,FALSE),\"\")","v":""},{"$f":"+IF(K36<>\"\",VLOOKUP(K34,'Dades i com... - Datos y com...'!$C$44:$E$63,3,FALSE),\"\")","v":""},{"$f":"+IF(L36<>\"\",VLOOKUP(L34,'Dades i com... - Datos y com...'!$C$44:$E$63,3,FALSE),\"\")","v":""},{"$f":"+IF(M36<>\"\",VLOOKUP(M34,'Dades i com... - Datos y com...'!$C$44:$E$63,3,FALSE),\"\")","v":""},{"$f":"+IF(N36<>\"\",VLOOKUP(N34,'Dades i com... - Datos y com...'!$C$44:$E$63,3,FALSE),\"\")","v":""},{"$f":"+IF(O36<>\"\",VLOOKUP(O34,'Dades i com... - Datos y com...'!$C$44:$E$63,3,FALSE),\"\")","v":""},{"$f":"+IF(P36<>\"\",VLOOKUP(P34,'Dades i com... - Datos y com...'!$C$44:$E$63,3,FALSE),\"\")","v":""},{"$f":"+IF(Q36<>\"\",VLOOKUP(Q34,'Dades i com... - Datos y com...'!$C$44:$E$63,3,FALSE),\"\")","v":""},{"$f":"+IF(R36<>\"\",VLOOKUP(R34,'Dades i com... - Datos y com...'!$C$44:$E$63,3,FALSE),\"\")","v":""},{"$f":"+IF(S36<>\"\",VLOOKUP(S34,'Dades i com... - Datos y com...'!$C$44:$E$63,3,FALSE),\"\")","v":""},{"$f":"+IF(T36<>\"\",VLOOKUP(T34,'Dades i com... - Datos y com...'!$C$44:$E$63,3,FALSE),\"\")","v":""},{"$f":"+IF(U36<>\"\",VLOOKUP(U34,'Dades i com... - Datos y com...'!$C$44:$E$63,3,FALSE),\"\")","v":""},{"$f":"+IF(V36<>\"\",VLOOKUP(V34,'Dades i com... - Datos y com...'!$C$44:$E$63,3,FALSE),\"\")","v":""}]
[null,"Despeses transversals",{"$f":"IF('Dades i com... - Datos y com...'!D44=\"\",\"\",'Dades i com... - Datos y com...'!D44)","v":""},{"$f":"+IF('Dades i com... - Datos y com...'!D45=\"\",\"\",'Dades i com... - Datos y com...'!D45)","v":""},{"$f":"+IF('Dades i com... - Datos y com...'!D46=\"\",\"\",'Dades i com... - Datos y com...'!D46)","v":""},{"$f":"+IF('Dades i com... - Datos y com...'!D47=\"\",\"\",'Dades i com... - Datos y com...'!D47)","v":""},{"$f":"+IF('Dades i com... - Datos y com...'!D48=\"\",\"\",'Dades i com... - Datos y com...'!D48)","v":""},{"$f":"+IF('Dades i com... - Datos y com...'!D49=\"\",\"\",'Dades i com... - Datos y com...'!D49)","v":""},{"$f":"+IF('Dades i com... - Datos y com...'!D50=\"\",\"\",'Dades i com... - Datos y com...'!D50)","v":""},{"$f":"+IF('Dades i com... - Datos y com...'!D51=\"\",\"\",'Dades i com... - Datos y com...'!D51)","v":""},{"$f":"+IF('Dades i com... - Datos y com...'!D52=\"\",\"\",'Dades i com... - Datos y com...'!D52)","v":""},{"$f":"+IF('Dades i com... - Datos y com...'!D53=\"\",\"\",'Dades i com... - Datos y com...'!D53)","v":""},{"$f":"++IF('Dades i com... - Datos y com...'!D54=\"\",\"\",'Dades i com... - Datos y com...'!D54)","v":""},{"$f":"IF('Dades i com... - Datos y com...'!D55=\"\",\"\",'Dades i com... - Datos y com...'!D55)","v":""},{"$f":"IF('Dades i com... - Datos y com...'!D56=\"\",\"\",'Dades i com... - Datos y com...'!D56)","v":""},{"$f":"IF('Dades i com... - Datos y com...'!D57=\"\",\"\",'Dades i com... - Datos y com...'!D57)","v":""},{"$f":"+IF('Dades i com... - Datos y com...'!D58=\"\",\"\",'Dades i com... - Datos y com...'!D58)","v":""},{"$f":"+IF('Dades i com... - Datos y com...'!D59=\"\",\"\",'Dades i com... - Datos y com...'!D59)","v":""},{"$f":"IF('Dades i com... - Datos y com...'!D60=\"\",\"\",'Dades i com... - Datos y com...'!D60)","v":""},{"$f":"IF('Dades i com... - Datos y com...'!D61=\"\",\"\",'Dades i com... - Datos y com...'!D61)","v":""},{"$f":"+IF('Dades i com... - Datos y com...'!D62=\"\",\"\",'Dades i com... - Datos y com...'!D62)","v":""},{"$f":"+IF('Dades i com... - Datos y com...'!D63=\"\",\"\",'Dades i com... - Datos y com...'!D63)","v":""}]
["DESPESES DIRECTES CORRENTS (Capítol IV) / GASTOS DIRECTOS CORRIENTES (Capítulo IV)",{"$f":"+SUM(B38,B42:B58)","v":0},{"$error":"#VALUE!"},{"$error":"#VALUE!"},{"$error":"#VALUE!"},{"$error":"#VALUE!"},{"$error":"#VALUE!"},{"$error":"#VALUE!"},{"$error":"#VALUE!"},{"$error":"#VALUE!"},{"$error":"#VALUE!"},{"$error":"#VALUE!"},{"$error":"#VALUE!"},{"$error":"#VALUE!"},{"$f":"+SUM(O38,O42:O58)","v":{"$error":"#VALUE!"}},{"$error":"#VALUE!"},{"$error":"#VALUE!"},{"$error":"#VALUE!"},{"$error":"#VALUE!"},{"$error":"#VALUE!"},{"$error":"#VALUE!"},{"$error":"#VALUE!"}]
["a1. Remuneració  personal assalariat / Remuneracion personal asalariado",{"$f":"SUM(B39:B41)","v":0},{"$f":"SUM(C39:C41)","v":{"$error":"#VALUE!"}},{"$f":"SUM(D39:D41)","v":{"$error":"#VALUE!"}},{"$error":"#VALUE!"},{"$error":"#VALUE!"},{"$error":"#VALUE!"},{"$error":"#VALUE!"},{"$error":"#VALUE!"},{"$error":"#VALUE!"},{"$error":"#VALUE!"},{"$error":"#VALUE!"},{"$error":"#VALUE!"},{"$error":"#VALUE!"},{"$f":"SUM(O39:O41)","v":{"$error":"#VALUE!"}},{"$error":"#VALUE!"},{"$error":"#VALUE!"},{"$error":"#VALUE!"},{"$error":"#VALUE!"},{"$error":"#VALUE!"},{"$error":"#VALUE!"},{"$error":"#VALUE!"}]
["a1.1 Personal assalariat local / Personal asalariado local",{"$f":"+SUMIFS('Detall - Detalle'!$AA:$AA,'Detall - Detalle'!$Y:$Y,B$36,'Detall - Detalle'!$AF:$AF,'Pressupost - Pressupuesto'!$A6)","v":0},{"$f":"+SUMIFS('Detall - Detalle'!$AA:$AA,'Detall - Detalle'!$Y:$Y,C$36,'Detall - Detalle'!$AF:$AF,'Pressupost - Pressupuesto'!$A6)+$B39*C$35","v":{"$error":"#VALUE!"}},{"$f":"+SUMIFS('Detall - Detalle'!$AA:$AA,'Detall - Detalle'!$Y:$Y,D$36,'Detall - Detalle'!$AF:$AF,'Pressupost - Pressupuesto'!$A6)+$B39*D$35","v":{"$error":"#VALUE!"}},{"$f":"+SUMIFS('Detall - Detalle'!$AA:$AA,'Detall - Detalle'!$Y:$Y,E$36,'Detall - Detalle'!$AF:$AF,'Pressupost - Pressupuesto'!$A6)+$B39*E$35","v":{"$error":"#VALUE!"}},{"$f":"+SUMIFS('Detall - Detalle'!$AA:$AA,'Detall - Detalle'!$Y:$Y,F$36,'Detall - Detalle'!$AF:$AF,'Pressupost - Pressupuesto'!$A6)+$B39*F$35","v":{"$error":"#VALUE!"}},{"$f":"+SUMIFS('Detall - Detalle'!$AA:$AA,'Detall - Detalle'!$Y:$Y,G$36,'Detall - Detalle'!$AF:$AF,'Pressupost - Pressupuesto'!$A6)+$B39*G$35","v":{"$error":"#VALUE!"}},{"$f":"+SUMIFS('Detall - Detalle'!$AA:$AA,'Detall - Detalle'!$Y:$Y,H$36,'Detall - Detalle'!$AF:$AF,'Pressupost - Pressupuesto'!$A6)+$B39*H$35","v":{"$error":"#VALUE!"}},{"$f":"+SUMIFS('Detall - Detalle'!$AA:$AA,'Detall - Detalle'!$Y:$Y,I$36,'Detall - Detalle'!$AF:$AF,'Pressupost - Pressupuesto'!$A6)+$B39*I$35","v":{"$error":"#VALUE!"}},{"$f":"+SUMIFS('Detall - Detalle'!$AA:$AA,'Detall - Detalle'!$Y:$Y,J$36,'Detall - Detalle'!$AF:$AF,'Pressupost - Pressupuesto'!$A6)+$B39*J$35","v":{"$error":"#VALUE!"}},{"$f":"+SUMIFS('Detall - Detalle'!$AA:$AA,'Detall - Detalle'!$Y:$Y,K$36,'Detall - Detalle'!$AF:$AF,'Pressupost - Pressupuesto'!$A6)+$B39*K$35","v":{"$error":"#VALUE!"}},{"$f":"+SUMIFS('Detall - Detalle'!$AA:$AA,'Detall - Detalle'!$Y:$Y,L$36,'Detall - Detalle'!$AF:$AF,'Pressupost - Pressupuesto'!$A6)+$B39*L$35","v":{"$error":"#VALUE!"}},{"$f":"+SUMIFS('Detall - Detalle'!$AA:$AA,'Detall - Detalle'!$Y:$Y,M$36,'Detall - Detalle'!$AF:$AF,'Pressupost - Pressupuesto'!$A6)+$B39*M$35","v":{"$error":"#VALUE!"}},{"$f":"+SUMIFS('Detall - Detalle'!$AA:$AA,'Detall - Detalle'!$Y:$Y,N$36,'Detall - Detalle'!$AF:$AF,'Pressupost - Pressupuesto'!$A6)+$B39*N$35","v":{"$error":"#VALUE!"}},{"$f":"+SUMIFS('Detall - Detalle'!$AA:$AA,'Detall - Detalle'!$Y:$Y,O$36,'Detall - Detalle'!$AF:$AF,'Pressupost - Pressupuesto'!$A6)+$B39*O$35","v":{"$error":"#VALUE!"}},{"$f":"+SUMIFS('Detall - Detalle'!$AA:$AA,'Detall - Detalle'!$Y:$Y,P$36,'Detall - Detalle'!$AF:$AF,'Pressupost - Pressupuesto'!$A6)+$B39*P$35","v":{"$error":"#VALUE!"}},{"$f":"+SUMIFS('Detall - Detalle'!$AA:$AA,'Detall - Detalle'!$Y:$Y,Q$36,'Detall - Detalle'!$AF:$AF,'Pressupost - Pressupuesto'!$A6)+$B39*Q$35","v":{"$error":"#VALUE!"}},{"$f":"+SUMIFS('Detall - Detalle'!$AA:$AA,'Detall - Detalle'!$Y:$Y,R$36,'Detall - Detalle'!$AF:$AF,'Pressupost - Pressupuesto'!$A6)+$B39*R$35","v":{"$error":"#VALUE!"}},{"$f":"+SUMIFS('Detall - Detalle'!$AA:$AA,'Detall - Detalle'!$Y:$Y,S$36,'Detall - Detalle'!$AF:$AF,'Pressupost - Pressupuesto'!$A6)+$B39*S$35","v":{"$error":"#VALUE!"}},{"$f":"+SUMIFS('Detall - Detalle'!$AA:$AA,'Detall - Detalle'!$Y:$Y,T$36,'Detall - Detalle'!$AF:$AF,'Pressupost - Pressupuesto'!$A6)+$B39*T$35","v":{"$error":"#VALUE!"}},{"$f":"+SUMIFS('Detall - Detalle'!$AA:$AA,'Detall - Detalle'!$Y:$Y,U$36,'Detall - Detalle'!$AF:$AF,'Pressupost - Pressupuesto'!$A6)+$B39*U$35","v":{"$error":"#VALUE!"}},{"$f":"+SUMIFS('Detall - Detalle'!$AA:$AA,'Detall - Detalle'!$Y:$Y,V$36,'Detall - Detalle'!$AF:$AF,'Pressupost - Pressupuesto'!$A6)+$B39*V$35","v":{"$error":"#VALUE!"}}]
["a1.2 Personal assalariat expatriat / Personal asalariado expatriado",{"$f":"+SUMIFS('Detall - Detalle'!$AA:$AA,'Detall - Detalle'!$Y:$Y,B$36,'Detall - Detalle'!$AF:$AF,'Pressupost - Pressupuesto'!$A7)","v":0},{"$f":"+SUMIFS('Detall - Detalle'!$AA:$AA,'Detall - Detalle'!$Y:$Y,C$36,'Detall - Detalle'!$AF:$AF,'Pressupost - Pressupuesto'!$A7)+$B40*C$35","v":{"$error":"#VALUE!"}},{"$f":"+SUMIFS('Detall - Detalle'!$AA:$AA,'Detall - Detalle'!$Y:$Y,D$36,'Detall - Detalle'!$AF:$AF,'Pressupost - Pressupuesto'!$A7)+$B40*D$35","v":{"$error":"#VALUE!"}},{"$f":"+SUMIFS('Detall - Detalle'!$AA:$AA,'Detall - Detalle'!$Y:$Y,E$36,'Detall - Detalle'!$AF:$AF,'Pressupost - Pressupuesto'!$A7)+$B40*E$35","v":{"$error":"#VALUE!"}},{"$f":"+SUMIFS('Detall - Detalle'!$AA:$AA,'Detall - Detalle'!$Y:$Y,F$36,'Detall - Detalle'!$AF:$AF,'Pressupost - Pressupuesto'!$A7)+$B40*F$35","v":{"$error":"#VALUE!"}},{"$f":"+SUMIFS('Detall - Detalle'!$AA:$AA,'Detall - Detalle'!$Y:$Y,G$36,'Detall - Detalle'!$AF:$AF,'Pressupost - Pressupuesto'!$A7)+$B40*G$35","v":{"$error":"#VALUE!"}},{"$f":"+SUMIFS('Detall - Detalle'!$AA:$AA,'Detall - Detalle'!$Y:$Y,H$36,'Detall - Detalle'!$AF:$AF,'Pressupost - Pressupuesto'!$A7)+$B40*H$35","v":{"$error":"#VALUE!"}},{"$f":"+SUMIFS('Detall - Detalle'!$AA:$AA,'Detall - Detalle'!$Y:$Y,I$36,'Detall - Detalle'!$AF:$AF,'Pressupost - Pressupuesto'!$A7)+$B40*I$35","v":{"$error":"#VALUE!"}},{"$f":"+SUMIFS('Detall - Detalle'!$AA:$AA,'Detall - Detalle'!$Y:$Y,J$36,'Detall - Detalle'!$AF:$AF,'Pressupost - Pressupuesto'!$A7)+$B40*J$35","v":{"$error":"#VALUE!"}},{"$f":"+SUMIFS('Detall - Detalle'!$AA:$AA,'Detall - Detalle'!$Y:$Y,K$36,'Detall - Detalle'!$AF:$AF,'Pressupost - Pressupuesto'!$A7)+$B40*K$35","v":{"$error":"#VALUE!"}},{"$f":"+SUMIFS('Detall - Detalle'!$AA:$AA,'Detall - Detalle'!$Y:$Y,L$36,'Detall - Detalle'!$AF:$AF,'Pressupost - Pressupuesto'!$A7)+$B40*L$35","v":{"$error":"#VALUE!"}},{"$f":"+SUMIFS('Detall - Detalle'!$AA:$AA,'Detall - Detalle'!$Y:$Y,M$36,'Detall - Detalle'!$AF:$AF,'Pressupost - Pressupuesto'!$A7)+$B40*M$35","v":{"$error":"#VALUE!"}},{"$f":"+SUMIFS('Detall - Detalle'!$AA:$AA,'Detall - Detalle'!$Y:$Y,N$36,'Detall - Detalle'!$AF:$AF,'Pressupost - Pressupuesto'!$A7)+$B40*N$35","v":{"$error":"#VALUE!"}},{"$f":"+SUMIFS('Detall - Detalle'!$AA:$AA,'Detall - Detalle'!$Y:$Y,O$36,'Detall - Detalle'!$AF:$AF,'Pressupost - Pressupuesto'!$A7)+$B40*O$35","v":{"$error":"#VALUE!"}},{"$f":"+SUMIFS('Detall - Detalle'!$AA:$AA,'Detall - Detalle'!$Y:$Y,P$36,'Detall - Detalle'!$AF:$AF,'Pressupost - Pressupuesto'!$A7)+$B40*P$35","v":{"$error":"#VALUE!"}},{"$f":"+SUMIFS('Detall - Detalle'!$AA:$AA,'Detall - Detalle'!$Y:$Y,Q$36,'Detall - Detalle'!$AF:$AF,'Pressupost - Pressupuesto'!$A7)+$B40*Q$35","v":{"$error":"#VALUE!"}},{"$f":"+SUMIFS('Detall - Detalle'!$AA:$AA,'Detall - Detalle'!$Y:$Y,R$36,'Detall - Detalle'!$AF:$AF,'Pressupost - Pressupuesto'!$A7)+$B40*R$35","v":{"$error":"#VALUE!"}},{"$f":"+SUMIFS('Detall - Detalle'!$AA:$AA,'Detall - Detalle'!$Y:$Y,S$36,'Detall - Detalle'!$AF:$AF,'Pressupost - Pressupuesto'!$A7)+$B40*S$35","v":{"$error":"#VALUE!"}},{"$f":"+SUMIFS('Detall - Detalle'!$AA:$AA,'Detall - Detalle'!$Y:$Y,T$36,'Detall - Detalle'!$AF:$AF,'Pressupost - Pressupuesto'!$A7)+$B40*T$35","v":{"$error":"#VALUE!"}},{"$f":"+SUMIFS('Detall - Detalle'!$AA:$AA,'Detall - Detalle'!$Y:$Y,U$36,'Detall - Detalle'!$AF:$AF,'Pressupost - Pressupuesto'!$A7)+$B40*U$35","v":{"$error":"#VALUE!"}},{"$f":"+SUMIFS('Detall - Detalle'!$AA:$AA,'Detall - Detalle'!$Y:$Y,V$36,'Detall - Detalle'!$AF:$AF,'Pressupost - Pressupuesto'!$A7)+$B40*V$35","v":{"$error":"#VALUE!"}}]
["a1.3 Personal assalariat a Catalunya / Personal asalariado Cataluña",{"$f":"+SUMIFS('Detall - Detalle'!$AA:$AA,'Detall - Detalle'!$Y:$Y,B$36,'Detall - Detalle'!$AF:$AF,'Pressupost - Pressupuesto'!$A8)","v":0},{"$f":"+SUMIFS('Detall - Detalle'!$AA:$AA,'Detall - Detalle'!$Y:$Y,C$36,'Detall - Detalle'!$AF:$AF,'Pressupost - Pressupuesto'!$A8)+$B41*C$35","v":{"$error":"#VALUE!"}},{"$f":"+SUMIFS('Detall - Detalle'!$AA:$AA,'Detall - Detalle'!$Y:$Y,D$36,'Detall - Detalle'!$AF:$AF,'Pressupost - Pressupuesto'!$A8)+$B41*D$35","v":{"$error":"#VALUE!"}},{"$f":"+SUMIFS('Detall - Detalle'!$AA:$AA,'Detall - Detalle'!$Y:$Y,E$36,'Detall - Detalle'!$AF:$AF,'Pressupost - Pressupuesto'!$A8)+$B41*E$35","v":{"$error":"#VALUE!"}},{"$f":"+SUMIFS('Detall - Detalle'!$AA:$AA,'Detall - Detalle'!$Y:$Y,F$36,'Detall - Detalle'!$AF:$AF,'Pressupost - Pressupuesto'!$A8)+$B41*F$35","v":{"$error":"#VALUE!"}},{"$f":"+SUMIFS('Detall - Detalle'!$AA:$AA,'Detall - Detalle'!$Y:$Y,G$36,'Detall - Detalle'!$AF:$AF,'Pressupost - Pressupuesto'!$A8)+$B41*G$35","v":{"$error":"#VALUE!"}},{"$f":"+SUMIFS('Detall - Detalle'!$AA:$AA,'Detall - Detalle'!$Y:$Y,H$36,'Detall - Detalle'!$AF:$AF,'Pressupost - Pressupuesto'!$A8)+$B41*H$35","v":{"$error":"#VALUE!"}},{"$f":"+SUMIFS('Detall - Detalle'!$AA:$AA,'Detall - Detalle'!$Y:$Y,I$36,'Detall - Detalle'!$AF:$AF,'Pressupost - Pressupuesto'!$A8)+$B41*I$35","v":{"$error":"#VALUE!"}},{"$f":"+SUMIFS('Detall - Detalle'!$AA:$AA,'Detall - Detalle'!$Y:$Y,J$36,'Detall - Detalle'!$AF:$AF,'Pressupost - Pressupuesto'!$A8)+$B41*J$35","v":{"$error":"#VALUE!"}},{"$f":"+SUMIFS('Detall - Detalle'!$AA:$AA,'Detall - Detalle'!$Y:$Y,K$36,'Detall - Detalle'!$AF:$AF,'Pressupost - Pressupuesto'!$A8)+$B41*K$35","v":{"$error":"#VALUE!"}},{"$f":"+SUMIFS('Detall - Detalle'!$AA:$AA,'Detall - Detalle'!$Y:$Y,L$36,'Detall - Detalle'!$AF:$AF,'Pressupost - Pressupuesto'!$A8)+$B41*L$35","v":{"$error":"#VALUE!"}},{"$f":"+SUMIFS('Detall - Detalle'!$AA:$AA,'Detall - Detalle'!$Y:$Y,M$36,'Detall - Detalle'!$AF:$AF,'Pressupost - Pressupuesto'!$A8)+$B41*M$35","v":{"$error":"#VALUE!"}},{"$f":"+SUMIFS('Detall - Detalle'!$AA:$AA,'Detall - Detalle'!$Y:$Y,N$36,'Detall - Detalle'!$AF:$AF,'Pressupost - Pressupuesto'!$A8)+$B41*N$35","v":{"$error":"#VALUE!"}},{"$f":"+SUMIFS('Detall - Detalle'!$AA:$AA,'Detall - Detalle'!$Y:$Y,O$36,'Detall - Detalle'!$AF:$AF,'Pressupost - Pressupuesto'!$A8)+$B41*O$35","v":{"$error":"#VALUE!"}},{"$f":"+SUMIFS('Detall - Detalle'!$AA:$AA,'Detall - Detalle'!$Y:$Y,P$36,'Detall - Detalle'!$AF:$AF,'Pressupost - Pressupuesto'!$A8)+$B41*P$35","v":{"$error":"#VALUE!"}},{"$f":"+SUMIFS('Detall - Detalle'!$AA:$AA,'Detall - Detalle'!$Y:$Y,Q$36,'Detall - Detalle'!$AF:$AF,'Pressupost - Pressupuesto'!$A8)+$B41*Q$35","v":{"$error":"#VALUE!"}},{"$f":"+SUMIFS('Detall - Detalle'!$AA:$AA,'Detall - Detalle'!$Y:$Y,R$36,'Detall - Detalle'!$AF:$AF,'Pressupost - Pressupuesto'!$A8)+$B41*R$35","v":{"$error":"#VALUE!"}},{"$f":"+SUMIFS('Detall - Detalle'!$AA:$AA,'Detall - Detalle'!$Y:$Y,S$36,'Detall - Detalle'!$AF:$AF,'Pressupost - Pressupuesto'!$A8)+$B41*S$35","v":{"$error":"#VALUE!"}},{"$f":"+SUMIFS('Detall - Detalle'!$AA:$AA,'Detall - Detalle'!$Y:$Y,T$36,'Detall - Detalle'!$AF:$AF,'Pressupost - Pressupuesto'!$A8)+$B41*T$35","v":{"$error":"#VALUE!"}},{"$f":"+SUMIFS('Detall - Detalle'!$AA:$AA,'Detall - Detalle'!$Y:$Y,U$36,'Detall - Detalle'!$AF:$AF,'Pressupost - Pressupuesto'!$A8)+$B41*U$35","v":{"$error":"#VALUE!"}},{"$f":"+SUMIFS('Detall - Detalle'!$AA:$AA,'Detall - Detalle'!$Y:$Y,V$36,'Detall - Detalle'!$AF:$AF,'Pressupost - Pressupuesto'!$A8)+$B41*V$35","v":{"$error":"#VALUE!"}}]
["a2 Lloguers / Alquileres",{"$f":"+SUMIFS('Detall - Detalle'!$AA:$AA,'Detall - Detalle'!$Y:$Y,B$36,'Detall - Detalle'!$AF:$AF,'Pressupost - Pressupuesto'!$A9)","v":0},{"$f":"+SUMIFS('Detall - Detalle'!$AA:$AA,'Detall - Detalle'!$Y:$Y,C$36,'Detall - Detalle'!$AF:$AF,'Pressupost - Pressupuesto'!$A9)+$B42*C$35","v":{"$error":"#VALUE!"}},{"$f":"+SUMIFS('Detall - Detalle'!$AA:$AA,'Detall - Detalle'!$Y:$Y,D$36,'Detall - Detalle'!$AF:$AF,'Pressupost - Pressupuesto'!$A9)+$B42*D$35","v":{"$error":"#VALUE!"}},{"$f":"+SUMIFS('Detall - Detalle'!$AA:$AA,'Detall - Detalle'!$Y:$Y,E$36,'Detall - Detalle'!$AF:$AF,'Pressupost - Pressupuesto'!$A9)+$B42*E$35","v":{"$error":"#VALUE!"}},{"$f":"+SUMIFS('Detall - Detalle'!$AA:$AA,'Detall - Detalle'!$Y:$Y,F$36,'Detall - Detalle'!$AF:$AF,'Pressupost - Pressupuesto'!$A9)+$B42*F$35","v":{"$error":"#VALUE!"}},{"$f":"+SUMIFS('Detall - Detalle'!$AA:$AA,'Detall - Detalle'!$Y:$Y,G$36,'Detall - Detalle'!$AF:$AF,'Pressupost - Pressupuesto'!$A9)+$B42*G$35","v":{"$error":"#VALUE!"}},{"$f":"+SUMIFS('Detall - Detalle'!$AA:$AA,'Detall - Detalle'!$Y:$Y,H$36,'Detall - Detalle'!$AF:$AF,'Pressupost - Pressupuesto'!$A9)+$B42*H$35","v":{"$error":"#VALUE!"}},{"$f":"+SUMIFS('Detall - Detalle'!$AA:$AA,'Detall - Detalle'!$Y:$Y,I$36,'Detall - Detalle'!$AF:$AF,'Pressupost - Pressupuesto'!$A9)+$B42*I$35","v":{"$error":"#VALUE!"}},{"$f":"+SUMIFS('Detall - Detalle'!$AA:$AA,'Detall - Detalle'!$Y:$Y,J$36,'Detall - Detalle'!$AF:$AF,'Pressupost - Pressupuesto'!$A9)+$B42*J$35","v":{"$error":"#VALUE!"}},{"$f":"+SUMIFS('Detall - Detalle'!$AA:$AA,'Detall - Detalle'!$Y:$Y,K$36,'Detall - Detalle'!$AF:$AF,'Pressupost - Pressupuesto'!$A9)+$B42*K$35","v":{"$error":"#VALUE!"}},{"$f":"+SUMIFS('Detall - Detalle'!$AA:$AA,'Detall - Detalle'!$Y:$Y,L$36,'Detall - Detalle'!$AF:$AF,'Pressupost - Pressupuesto'!$A9)+$B42*L$35","v":{"$error":"#VALUE!"}},{"$f":"+SUMIFS('Detall - Detalle'!$AA:$AA,'Detall - Detalle'!$Y:$Y,M$36,'Detall - Detalle'!$AF:$AF,'Pressupost - Pressupuesto'!$A9)+$B42*M$35","v":{"$error":"#VALUE!"}},{"$f":"+SUMIFS('Detall - Detalle'!$AA:$AA,'Detall - Detalle'!$Y:$Y,N$36,'Detall - Detalle'!$AF:$AF,'Pressupost - Pressupuesto'!$A9)+$B42*N$35","v":{"$error":"#VALUE!"}},{"$f":"+SUMIFS('Detall - Detalle'!$AA:$AA,'Detall - Detalle'!$Y:$Y,O$36,'Detall - Detalle'!$AF:$AF,'Pressupost - Pressupuesto'!$A9)+$B42*O$35","v":{"$error":"#VALUE!"}},{"$f":"+SUMIFS('Detall - Detalle'!$AA:$AA,'Detall - Detalle'!$Y:$Y,P$36,'Detall - Detalle'!$AF:$AF,'Pressupost - Pressupuesto'!$A9)+$B42*P$35","v":{"$error":"#VALUE!"}},{"$f":"+SUMIFS('Detall - Detalle'!$AA:$AA,'Detall - Detalle'!$Y:$Y,Q$36,'Detall - Detalle'!$AF:$AF,'Pressupost - Pressupuesto'!$A9)+$B42*Q$35","v":{"$error":"#VALUE!"}},{"$f":"+SUMIFS('Detall - Detalle'!$AA:$AA,'Detall - Detalle'!$Y:$Y,R$36,'Detall - Detalle'!$AF:$AF,'Pressupost - Pressupuesto'!$A9)+$B42*R$35","v":{"$error":"#VALUE!"}},{"$f":"+SUMIFS('Detall - Detalle'!$AA:$AA,'Detall - Detalle'!$Y:$Y,S$36,'Detall - Detalle'!$AF:$AF,'Pressupost - Pressupuesto'!$A9)+$B42*S$35","v":{"$error":"#VALUE!"}},{"$f":"+SUMIFS('Detall - Detalle'!$AA:$AA,'Detall - Detalle'!$Y:$Y,T$36,'Detall - Detalle'!$AF:$AF,'Pressupost - Pressupuesto'!$A9)+$B42*T$35","v":{"$error":"#VALUE!"}},{"$f":"+SUMIFS('Detall - Detalle'!$AA:$AA,'Detall - Detalle'!$Y:$Y,U$36,'Detall - Detalle'!$AF:$AF,'Pressupost - Pressupuesto'!$A9)+$B42*U$35","v":{"$error":"#VALUE!"}},{"$f":"+SUMIFS('Detall - Detalle'!$AA:$AA,'Detall - Detalle'!$Y:$Y,V$36,'Detall - Detalle'!$AF:$AF,'Pressupost - Pressupuesto'!$A9)+$B42*V$35","v":{"$error":"#VALUE!"}}]
["a3 Manteniment, conservació i reparació / Mantenimiento, conservación y reparación",{"$f":"+SUMIFS('Detall - Detalle'!$AA:$AA,'Detall - Detalle'!$Y:$Y,B$36,'Detall - Detalle'!$AF:$AF,'Pressupost - Pressupuesto'!$A10)","v":0},{"$f":"+SUMIFS('Detall - Detalle'!$AA:$AA,'Detall - Detalle'!$Y:$Y,C$36,'Detall - Detalle'!$AF:$AF,'Pressupost - Pressupuesto'!$A10)+$B43*C$35","v":{"$error":"#VALUE!"}},{"$f":"+SUMIFS('Detall - Detalle'!$AA:$AA,'Detall - Detalle'!$Y:$Y,D$36,'Detall - Detalle'!$AF:$AF,'Pressupost - Pressupuesto'!$A10)+$B43*D$35","v":{"$error":"#VALUE!"}},{"$f":"+SUMIFS('Detall - Detalle'!$AA:$AA,'Detall - Detalle'!$Y:$Y,E$36,'Detall - Detalle'!$AF:$AF,'Pressupost - Pressupuesto'!$A10)+$B43*E$35","v":{"$error":"#VALUE!"}},{"$f":"+SUMIFS('Detall - Detalle'!$AA:$AA,'Detall - Detalle'!$Y:$Y,F$36,'Detall - Detalle'!$AF:$AF,'Pressupost - Pressupuesto'!$A10)+$B43*F$35","v":{"$error":"#VALUE!"}},{"$f":"+SUMIFS('Detall - Detalle'!$AA:$AA,'Detall - Detalle'!$Y:$Y,G$36,'Detall - Detalle'!$AF:$AF,'Pressupost - Pressupuesto'!$A10)+$B43*G$35","v":{"$error":"#VALUE!"}},{"$f":"+SUMIFS('Detall - Detalle'!$AA:$AA,'Detall - Detalle'!$Y:$Y,H$36,'Detall - Detalle'!$AF:$AF,'Pressupost - Pressupuesto'!$A10)+$B43*H$35","v":{"$error":"#VALUE!"}},{"$f":"+SUMIFS('Detall - Detalle'!$AA:$AA,'Detall - Detalle'!$Y:$Y,I$36,'Detall - Detalle'!$AF:$AF,'Pressupost - Pressupuesto'!$A10)+$B43*I$35","v":{"$error":"#VALUE!"}},{"$f":"+SUMIFS('Detall - Detalle'!$AA:$AA,'Detall - Detalle'!$Y:$Y,J$36,'Detall - Detalle'!$AF:$AF,'Pressupost - Pressupuesto'!$A10)+$B43*J$35","v":{"$error":"#VALUE!"}},{"$f":"+SUMIFS('Detall - Detalle'!$AA:$AA,'Detall - Detalle'!$Y:$Y,K$36,'Detall - Detalle'!$AF:$AF,'Pressupost - Pressupuesto'!$A10)+$B43*K$35","v":{"$error":"#VALUE!"}},{"$f":"+SUMIFS('Detall - Detalle'!$AA:$AA,'Detall - Detalle'!$Y:$Y,L$36,'Detall - Detalle'!$AF:$AF,'Pressupost - Pressupuesto'!$A10)+$B43*L$35","v":{"$error":"#VALUE!"}},{"$f":"+SUMIFS('Detall - Detalle'!$AA:$AA,'Detall - Detalle'!$Y:$Y,M$36,'Detall - Detalle'!$AF:$AF,'Pressupost - Pressupuesto'!$A10)+$B43*M$35","v":{"$error":"#VALUE!"}},{"$f":"+SUMIFS('Detall - Detalle'!$AA:$AA,'Detall - Detalle'!$Y:$Y,N$36,'Detall - Detalle'!$AF:$AF,'Pressupost - Pressupuesto'!$A10)+$B43*N$35","v":{"$error":"#VALUE!"}},{"$f":"+SUMIFS('Detall - Detalle'!$AA:$AA,'Detall - Detalle'!$Y:$Y,O$36,'Detall - Detalle'!$AF:$AF,'Pressupost - Pressupuesto'!$A10)+$B43*O$35","v":{"$error":"#VALUE!"}},{"$f":"+SUMIFS('Detall - Detalle'!$AA:$AA,'Detall - Detalle'!$Y:$Y,P$36,'Detall - Detalle'!$AF:$AF,'Pressupost - Pressupuesto'!$A10)+$B43*P$35","v":{"$error":"#VALUE!"}},{"$f":"+SUMIFS('Detall - Detalle'!$AA:$AA,'Detall - Detalle'!$Y:$Y,Q$36,'Detall - Detalle'!$AF:$AF,'Pressupost - Pressupuesto'!$A10)+$B43*Q$35","v":{"$error":"#VALUE!"}},{"$f":"+SUMIFS('Detall - Detalle'!$AA:$AA,'Detall - Detalle'!$Y:$Y,R$36,'Detall - Detalle'!$AF:$AF,'Pressupost - Pressupuesto'!$A10)+$B43*R$35","v":{"$error":"#VALUE!"}},{"$f":"+SUMIFS('Detall - Detalle'!$AA:$AA,'Detall - Detalle'!$Y:$Y,S$36,'Detall - Detalle'!$AF:$AF,'Pressupost - Pressupuesto'!$A10)+$B43*S$35","v":{"$error":"#VALUE!"}},{"$f":"+SUMIFS('Detall - Detalle'!$AA:$AA,'Detall - Detalle'!$Y:$Y,T$36,'Detall - Detalle'!$AF:$AF,'Pressupost - Pressupuesto'!$A10)+$B43*T$35","v":{"$error":"#VALUE!"}},{"$f":"+SUMIFS('Detall - Detalle'!$AA:$AA,'Detall - Detalle'!$Y:$Y,U$36,'Detall - Detalle'!$AF:$AF,'Pressupost - Pressupuesto'!$A10)+$B43*U$35","v":{"$error":"#VALUE!"}},{"$f":"+SUMIFS('Detall - Detalle'!$AA:$AA,'Detall - Detalle'!$Y:$Y,V$36,'Detall - Detalle'!$AF:$AF,'Pressupost - Pressupuesto'!$A10)+$B43*V$35","v":{"$error":"#VALUE!"}}]
["a4 Material ordinari / Material ordinario",{"$f":"+SUMIFS('Detall - Detalle'!$AA:$AA,'Detall - Detalle'!$Y:$Y,B$36,'Detall - Detalle'!$AF:$AF,'Pressupost - Pressupuesto'!$A11)","v":0},{"$f":"+SUMIFS('Detall - Detalle'!$AA:$AA,'Detall - Detalle'!$Y:$Y,C$36,'Detall - Detalle'!$AF:$AF,'Pressupost - Pressupuesto'!$A11)+$B44*C$35","v":{"$error":"#VALUE!"}},{"$f":"+SUMIFS('Detall - Detalle'!$AA:$AA,'Detall - Detalle'!$Y:$Y,D$36,'Detall - Detalle'!$AF:$AF,'Pressupost - Pressupuesto'!$A11)+$B44*D$35","v":{"$error":"#VALUE!"}},{"$f":"+SUMIFS('Detall - Detalle'!$AA:$AA,'Detall - Detalle'!$Y:$Y,E$36,'Detall - Detalle'!$AF:$AF,'Pressupost - Pressupuesto'!$A11)+$B44*E$35","v":{"$error":"#VALUE!"}},{"$f":"+SUMIFS('Detall - Detalle'!$AA:$AA,'Detall - Detalle'!$Y:$Y,F$36,'Detall - Detalle'!$AF:$AF,'Pressupost - Pressupuesto'!$A11)+$B44*F$35","v":{"$error":"#VALUE!"}},{"$f":"+SUMIFS('Detall - Detalle'!$AA:$AA,'Detall - Detalle'!$Y:$Y,G$36,'Detall - Detalle'!$AF:$AF,'Pressupost - Pressupuesto'!$A11)+$B44*G$35","v":{"$error":"#VALUE!"}},{"$f":"+SUMIFS('Detall - Detalle'!$AA:$AA,'Detall - Detalle'!$Y:$Y,H$36,'Detall - Detalle'!$AF:$AF,'Pressupost - Pressupuesto'!$A11)+$B44*H$35","v":{"$error":"#VALUE!"}},{"$f":"+SUMIFS('Detall - Detalle'!$AA:$AA,'Detall - Detalle'!$Y:$Y,I$36,'Detall - Detalle'!$AF:$AF,'Pressupost - Pressupuesto'!$A11)+$B44*I$35","v":{"$error":"#VALUE!"}},{"$f":"+SUMIFS('Detall - Detalle'!$AA:$AA,'Detall - Detalle'!$Y:$Y,J$36,'Detall - Detalle'!$AF:$AF,'Pressupost - Pressupuesto'!$A11)+$B44*J$35","v":{"$error":"#VALUE!"}},{"$f":"+SUMIFS('Detall - Detalle'!$AA:$AA,'Detall - Detalle'!$Y:$Y,K$36,'Detall - Detalle'!$AF:$AF,'Pressupost - Pressupuesto'!$A11)+$B44*K$35","v":{"$error":"#VALUE!"}},{"$f":"+SUMIFS('Detall - Detalle'!$AA:$AA,'Detall - Detalle'!$Y:$Y,L$36,'Detall - Detalle'!$AF:$AF,'Pressupost - Pressupuesto'!$A11)+$B44*L$35","v":{"$error":"#VALUE!"}},{"$f":"+SUMIFS('Detall - Detalle'!$AA:$AA,'Detall - Detalle'!$Y:$Y,M$36,'Detall - Detalle'!$AF:$AF,'Pressupost - Pressupuesto'!$A11)+$B44*M$35","v":{"$error":"#VALUE!"}},{"$f":"+SUMIFS('Detall - Detalle'!$AA:$AA,'Detall - Detalle'!$Y:$Y,N$36,'Detall - Detalle'!$AF:$AF,'Pressupost - Pressupuesto'!$A11)+$B44*N$35","v":{"$error":"#VALUE!"}},{"$f":"+SUMIFS('Detall - Detalle'!$AA:$AA,'Detall - Detalle'!$Y:$Y,O$36,'Detall - Detalle'!$AF:$AF,'Pressupost - Pressupuesto'!$A11)+$B44*O$35","v":{"$error":"#VALUE!"}},{"$f":"+SUMIFS('Detall - Detalle'!$AA:$AA,'Detall - Detalle'!$Y:$Y,P$36,'Detall - Detalle'!$AF:$AF,'Pressupost - Pressupuesto'!$A11)+$B44*P$35","v":{"$error":"#VALUE!"}},{"$f":"+SUMIFS('Detall - Detalle'!$AA:$AA,'Detall - Detalle'!$Y:$Y,Q$36,'Detall - Detalle'!$AF:$AF,'Pressupost - Pressupuesto'!$A11)+$B44*Q$35","v":{"$error":"#VALUE!"}},{"$f":"+SUMIFS('Detall - Detalle'!$AA:$AA,'Detall - Detalle'!$Y:$Y,R$36,'Detall - Detalle'!$AF:$AF,'Pressupost - Pressupuesto'!$A11)+$B44*R$35","v":{"$error":"#VALUE!"}},{"$f":"+SUMIFS('Detall - Detalle'!$AA:$AA,'Detall - Detalle'!$Y:$Y,S$36,'Detall - Detalle'!$AF:$AF,'Pressupost - Pressupuesto'!$A11)+$B44*S$35","v":{"$error":"#VALUE!"}},{"$f":"+SUMIFS('Detall - Detalle'!$AA:$AA,'Detall - Detalle'!$Y:$Y,T$36,'Detall - Detalle'!$AF:$AF,'Pressupost - Pressupuesto'!$A11)+$B44*T$35","v":{"$error":"#VALUE!"}},{"$f":"+SUMIFS('Detall - Detalle'!$AA:$AA,'Detall - Detalle'!$Y:$Y,U$36,'Detall - Detalle'!$AF:$AF,'Pressupost - Pressupuesto'!$A11)+$B44*U$35","v":{"$error":"#VALUE!"}},{"$f":"+SUMIFS('Detall - Detalle'!$AA:$AA,'Detall - Detalle'!$Y:$Y,V$36,'Detall - Detalle'!$AF:$AF,'Pressupost - Pressupuesto'!$A11)+$B44*V$35","v":{"$error":"#VALUE!"}}]
["a5 Subministraments / Suministros",{"$f":"+SUMIFS('Detall - Detalle'!$AA:$AA,'Detall - Detalle'!$Y:$Y,B$36,'Detall - Detalle'!$AF:$AF,'Pressupost - Pressupuesto'!$A12)","v":0},{"$f":"+SUMIFS('Detall - Detalle'!$AA:$AA,'Detall - Detalle'!$Y:$Y,C$36,'Detall - Detalle'!$AF:$AF,'Pressupost - Pressupuesto'!$A12)+$B45*C$35","v":{"$error":"#VALUE!"}},{"$f":"+SUMIFS('Detall - Detalle'!$AA:$AA,'Detall - Detalle'!$Y:$Y,D$36,'Detall - Detalle'!$AF:$AF,'Pressupost - Pressupuesto'!$A12)+$B45*D$35","v":{"$error":"#VALUE!"}},{"$f":"+SUMIFS('Detall - Detalle'!$AA:$AA,'Detall - Detalle'!$Y:$Y,E$36,'Detall - Detalle'!$AF:$AF,'Pressupost - Pressupuesto'!$A12)+$B45*E$35","v":{"$error":"#VALUE!"}},{"$f":"+SUMIFS('Detall - Detalle'!$AA:$AA,'Detall - Detalle'!$Y:$Y,F$36,'Detall - Detalle'!$AF:$AF,'Pressupost - Pressupuesto'!$A12)+$B45*F$35","v":{"$error":"#VALUE!"}},{"$f":"+SUMIFS('Detall - Detalle'!$AA:$AA,'Detall - Detalle'!$Y:$Y,G$36,'Detall - Detalle'!$AF:$AF,'Pressupost - Pressupuesto'!$A12)+$B45*G$35","v":{"$error":"#VALUE!"}},{"$f":"+SUMIFS('Detall - Detalle'!$AA:$AA,'Detall - Detalle'!$Y:$Y,H$36,'Detall - Detalle'!$AF:$AF,'Pressupost - Pressupuesto'!$A12)+$B45*H$35","v":{"$error":"#VALUE!"}},{"$f":"+SUMIFS('Detall - Detalle'!$AA:$AA,'Detall - Detalle'!$Y:$Y,I$36,'Detall - Detalle'!$AF:$AF,'Pressupost - Pressupuesto'!$A12)+$B45*I$35","v":{"$error":"#VALUE!"}},{"$f":"+SUMIFS('Detall - Detalle'!$AA:$AA,'Detall - Detalle'!$Y:$Y,J$36,'Detall - Detalle'!$AF:$AF,'Pressupost - Pressupuesto'!$A12)+$B45*J$35","v":{"$error":"#VALUE!"}},{"$f":"+SUMIFS('Detall - Detalle'!$AA:$AA,'Detall - Detalle'!$Y:$Y,K$36,'Detall - Detalle'!$AF:$AF,'Pressupost - Pressupuesto'!$A12)+$B45*K$35","v":{"$error":"#VALUE!"}},{"$f":"+SUMIFS('Detall - Detalle'!$AA:$AA,'Detall - Detalle'!$Y:$Y,L$36,'Detall - Detalle'!$AF:$AF,'Pressupost - Pressupuesto'!$A12)+$B45*L$35","v":{"$error":"#VALUE!"}},{"$f":"+SUMIFS('Detall - Detalle'!$AA:$AA,'Detall - Detalle'!$Y:$Y,M$36,'Detall - Detalle'!$AF:$AF,'Pressupost - Pressupuesto'!$A12)+$B45*M$35","v":{"$error":"#VALUE!"}},{"$f":"+SUMIFS('Detall - Detalle'!$AA:$AA,'Detall - Detalle'!$Y:$Y,N$36,'Detall - Detalle'!$AF:$AF,'Pressupost - Pressupuesto'!$A12)+$B45*N$35","v":{"$error":"#VALUE!"}},{"$f":"+SUMIFS('Detall - Detalle'!$AA:$AA,'Detall - Detalle'!$Y:$Y,O$36,'Detall - Detalle'!$AF:$AF,'Pressupost - Pressupuesto'!$A12)+$B45*O$35","v":{"$error":"#VALUE!"}},{"$f":"+SUMIFS('Detall - Detalle'!$AA:$AA,'Detall - Detalle'!$Y:$Y,P$36,'Detall - Detalle'!$AF:$AF,'Pressupost - Pressupuesto'!$A12)+$B45*P$35","v":{"$error":"#VALUE!"}},{"$f":"+SUMIFS('Detall - Detalle'!$AA:$AA,'Detall - Detalle'!$Y:$Y,Q$36,'Detall - Detalle'!$AF:$AF,'Pressupost - Pressupuesto'!$A12)+$B45*Q$35","v":{"$error":"#VALUE!"}},{"$f":"+SUMIFS('Detall - Detalle'!$AA:$AA,'Detall - Detalle'!$Y:$Y,R$36,'Detall - Detalle'!$AF:$AF,'Pressupost - Pressupuesto'!$A12)+$B45*R$35","v":{"$error":"#VALUE!"}},{"$f":"+SUMIFS('Detall - Detalle'!$AA:$AA,'Detall - Detalle'!$Y:$Y,S$36,'Detall - Detalle'!$AF:$AF,'Pressupost - Pressupuesto'!$A12)+$B45*S$35","v":{"$error":"#VALUE!"}},{"$f":"+SUMIFS('Detall - Detalle'!$AA:$AA,'Detall - Detalle'!$Y:$Y,T$36,'Detall - Detalle'!$AF:$AF,'Pressupost - Pressupuesto'!$A12)+$B45*T$35","v":{"$error":"#VALUE!"}},{"$f":"+SUMIFS('Detall - Detalle'!$AA:$AA,'Detall - Detalle'!$Y:$Y,U$36,'Detall - Detalle'!$AF:$AF,'Pressupost - Pressupuesto'!$A12)+$B45*U$35","v":{"$error":"#VALUE!"}},{"$f":"+SUMIFS('Detall - Detalle'!$AA:$AA,'Detall - Detalle'!$Y:$Y,V$36,'Detall - Detalle'!$AF:$AF,'Pressupost - Pressupuesto'!$A12)+$B45*V$35","v":{"$error":"#VALUE!"}}]
["a6 Comunicacions, despeses postals i missatgeria / Comunicaciones, gastos postales y mensajería",{"$f":"+SUMIFS('Detall - Detalle'!$AA:$AA,'Detall - Detalle'!$Y:$Y,B$36,'Detall - Detalle'!$AF:$AF,'Pressupost - Pressupuesto'!$A13)","v":0},{"$f":"+SUMIFS('Detall - Detalle'!$AA:$AA,'Detall - Detalle'!$Y:$Y,C$36,'Detall - Detalle'!$AF:$AF,'Pressupost - Pressupuesto'!$A13)+$B46*C$35","v":{"$error":"#VALUE!"}},{"$f":"+SUMIFS('Detall - Detalle'!$AA:$AA,'Detall - Detalle'!$Y:$Y,D$36,'Detall - Detalle'!$AF:$AF,'Pressupost - Pressupuesto'!$A13)+$B46*D$35","v":{"$error":"#VALUE!"}},{"$f":"+SUMIFS('Detall - Detalle'!$AA:$AA,'Detall - Detalle'!$Y:$Y,E$36,'Detall - Detalle'!$AF:$AF,'Pressupost - Pressupuesto'!$A13)+$B46*E$35","v":{"$error":"#VALUE!"}},{"$f":"+SUMIFS('Detall - Detalle'!$AA:$AA,'Detall - Detalle'!$Y:$Y,F$36,'Detall - Detalle'!$AF:$AF,'Pressupost - Pressupuesto'!$A13)+$B46*F$35","v":{"$error":"#VALUE!"}},{"$f":"+SUMIFS('Detall - Detalle'!$AA:$AA,'Detall - Detalle'!$Y:$Y,G$36,'Detall - Detalle'!$AF:$AF,'Pressupost - Pressupuesto'!$A13)+$B46*G$35","v":{"$error":"#VALUE!"}},{"$f":"+SUMIFS('Detall - Detalle'!$AA:$AA,'Detall - Detalle'!$Y:$Y,H$36,'Detall - Detalle'!$AF:$AF,'Pressupost - Pressupuesto'!$A13)+$B46*H$35","v":{"$error":"#VALUE!"}},{"$f":"+SUMIFS('Detall - Detalle'!$AA:$AA,'Detall - Detalle'!$Y:$Y,I$36,'Detall - Detalle'!$AF:$AF,'Pressupost - Pressupuesto'!$A13)+$B46*I$35","v":{"$error":"#VALUE!"}},{"$f":"+SUMIFS('Detall - Detalle'!$AA:$AA,'Detall - Detalle'!$Y:$Y,J$36,'Detall - Detalle'!$AF:$AF,'Pressupost - Pressupuesto'!$A13)+$B46*J$35","v":{"$error":"#VALUE!"}},{"$f":"+SUMIFS('Detall - Detalle'!$AA:$AA,'Detall - Detalle'!$Y:$Y,K$36,'Detall - Detalle'!$AF:$AF,'Pressupost - Pressupuesto'!$A13)+$B46*K$35","v":{"$error":"#VALUE!"}},{"$f":"+SUMIFS('Detall - Detalle'!$AA:$AA,'Detall - Detalle'!$Y:$Y,L$36,'Detall - Detalle'!$AF:$AF,'Pressupost - Pressupuesto'!$A13)+$B46*L$35","v":{"$error":"#VALUE!"}},{"$f":"+SUMIFS('Detall - Detalle'!$AA:$AA,'Detall - Detalle'!$Y:$Y,M$36,'Detall - Detalle'!$AF:$AF,'Pressupost - Pressupuesto'!$A13)+$B46*M$35","v":{"$error":"#VALUE!"}},{"$f":"+SUMIFS('Detall - Detalle'!$AA:$AA,'Detall - Detalle'!$Y:$Y,N$36,'Detall - Detalle'!$AF:$AF,'Pressupost - Pressupuesto'!$A13)+$B46*N$35","v":{"$error":"#VALUE!"}},{"$f":"+SUMIFS('Detall - Detalle'!$AA:$AA,'Detall - Detalle'!$Y:$Y,O$36,'Detall - Detalle'!$AF:$AF,'Pressupost - Pressupuesto'!$A13)+$B46*O$35","v":{"$error":"#VALUE!"}},{"$f":"+SUMIFS('Detall - Detalle'!$AA:$AA,'Detall - Detalle'!$Y:$Y,P$36,'Detall - Detalle'!$AF:$AF,'Pressupost - Pressupuesto'!$A13)+$B46*P$35","v":{"$error":"#VALUE!"}},{"$f":"+SUMIFS('Detall - Detalle'!$AA:$AA,'Detall - Detalle'!$Y:$Y,Q$36,'Detall - Detalle'!$AF:$AF,'Pressupost - Pressupuesto'!$A13)+$B46*Q$35","v":{"$error":"#VALUE!"}},{"$f":"+SUMIFS('Detall - Detalle'!$AA:$AA,'Detall - Detalle'!$Y:$Y,R$36,'Detall - Detalle'!$AF:$AF,'Pressupost - Pressupuesto'!$A13)+$B46*R$35","v":{"$error":"#VALUE!"}},{"$f":"+SUMIFS('Detall - Detalle'!$AA:$AA,'Detall - Detalle'!$Y:$Y,S$36,'Detall - Detalle'!$AF:$AF,'Pressupost - Pressupuesto'!$A13)+$B46*S$35","v":{"$error":"#VALUE!"}},{"$f":"+SUMIFS('Detall - Detalle'!$AA:$AA,'Detall - Detalle'!$Y:$Y,T$36,'Detall - Detalle'!$AF:$AF,'Pressupost - Pressupuesto'!$A13)+$B46*T$35","v":{"$error":"#VALUE!"}},{"$f":"+SUMIFS('Detall - Detalle'!$AA:$AA,'Detall - Detalle'!$Y:$Y,U$36,'Detall - Detalle'!$AF:$AF,'Pressupost - Pressupuesto'!$A13)+$B46*U$35","v":{"$error":"#VALUE!"}},{"$f":"+SUMIFS('Detall - Detalle'!$AA:$AA,'Detall - Detalle'!$Y:$Y,V$36,'Detall - Detalle'!$AF:$AF,'Pressupost - Pressupuesto'!$A13)+$B46*V$35","v":{"$error":"#VALUE!"}}]
["a7 Reunions, conferències i formacions / Reuniones, conferencias y formaciones",{"$f":"+SUMIFS('Detall - Detalle'!$AA:$AA,'Detall - Detalle'!$Y:$Y,B$36,'Detall - Detalle'!$AF:$AF,'Pressupost - Pressupuesto'!$A14)","v":0},{"$f":"+SUMIFS('Detall - Detalle'!$AA:$AA,'Detall - Detalle'!$Y:$Y,C$36,'Detall - Detalle'!$AF:$AF,'Pressupost - Pressupuesto'!$A14)+$B47*C$35","v":{"$error":"#VALUE!"}},{"$f":"+SUMIFS('Detall - Detalle'!$AA:$AA,'Detall - Detalle'!$Y:$Y,D$36,'Detall - Detalle'!$AF:$AF,'Pressupost - Pressupuesto'!$A14)+$B47*D$35","v":{"$error":"#VALUE!"}},{"$f":"+SUMIFS('Detall - Detalle'!$AA:$AA,'Detall - Detalle'!$Y:$Y,E$36,'Detall - Detalle'!$AF:$AF,'Pressupost - Pressupuesto'!$A14)+$B47*E$35","v":{"$error":"#VALUE!"}},{"$f":"+SUMIFS('Detall - Detalle'!$AA:$AA,'Detall - Detalle'!$Y:$Y,F$36,'Detall - Detalle'!$AF:$AF,'Pressupost - Pressupuesto'!$A14)+$B47*F$35","v":{"$error":"#VALUE!"}},{"$f":"+SUMIFS('Detall - Detalle'!$AA:$AA,'Detall - Detalle'!$Y:$Y,G$36,'Detall - Detalle'!$AF:$AF,'Pressupost - Pressupuesto'!$A14)+$B47*G$35","v":{"$error":"#VALUE!"}},{"$f":"+SUMIFS('Detall - Detalle'!$AA:$AA,'Detall - Detalle'!$Y:$Y,H$36,'Detall - Detalle'!$AF:$AF,'Pressupost - Pressupuesto'!$A14)+$B47*H$35","v":{"$error":"#VALUE!"}},{"$f":"+SUMIFS('Detall - Detalle'!$AA:$AA,'Detall - Detalle'!$Y:$Y,I$36,'Detall - Detalle'!$AF:$AF,'Pressupost - Pressupuesto'!$A14)+$B47*I$35","v":{"$error":"#VALUE!"}},{"$f":"+SUMIFS('Detall - Detalle'!$AA:$AA,'Detall - Detalle'!$Y:$Y,J$36,'Detall - Detalle'!$AF:$AF,'Pressupost - Pressupuesto'!$A14)+$B47*J$35","v":{"$error":"#VALUE!"}},{"$f":"+SUMIFS('Detall - Detalle'!$AA:$AA,'Detall - Detalle'!$Y:$Y,K$36,'Detall - Detalle'!$AF:$AF,'Pressupost - Pressupuesto'!$A14)+$B47*K$35","v":{"$error":"#VALUE!"}},{"$f":"+SUMIFS('Detall - Detalle'!$AA:$AA,'Detall - Detalle'!$Y:$Y,L$36,'Detall - Detalle'!$AF:$AF,'Pressupost - Pressupuesto'!$A14)+$B47*L$35","v":{"$error":"#VALUE!"}},{"$f":"+SUMIFS('Detall - Detalle'!$AA:$AA,'Detall - Detalle'!$Y:$Y,M$36,'Detall - Detalle'!$AF:$AF,'Pressupost - Pressupuesto'!$A14)+$B47*M$35","v":{"$error":"#VALUE!"}},{"$f":"+SUMIFS('Detall - Detalle'!$AA:$AA,'Detall - Detalle'!$Y:$Y,N$36,'Detall - Detalle'!$AF:$AF,'Pressupost - Pressupuesto'!$A14)+$B47*N$35","v":{"$error":"#VALUE!"}},{"$f":"+SUMIFS('Detall - Detalle'!$AA:$AA,'Detall - Detalle'!$Y:$Y,O$36,'Detall - Detalle'!$AF:$AF,'Pressupost - Pressupuesto'!$A14)+$B47*O$35","v":{"$error":"#VALUE!"}},{"$f":"+SUMIFS('Detall - Detalle'!$AA:$AA,'Detall - Detalle'!$Y:$Y,P$36,'Detall - Detalle'!$AF:$AF,'Pressupost - Pressupuesto'!$A14)+$B47*P$35","v":{"$error":"#VALUE!"}},{"$f":"+SUMIFS('Detall - Detalle'!$AA:$AA,'Detall - Detalle'!$Y:$Y,Q$36,'Detall - Detalle'!$AF:$AF,'Pressupost - Pressupuesto'!$A14)+$B47*Q$35","v":{"$error":"#VALUE!"}},{"$f":"+SUMIFS('Detall - Detalle'!$AA:$AA,'Detall - Detalle'!$Y:$Y,R$36,'Detall - Detalle'!$AF:$AF,'Pressupost - Pressupuesto'!$A14)+$B47*R$35","v":{"$error":"#VALUE!"}},{"$f":"+SUMIFS('Detall - Detalle'!$AA:$AA,'Detall - Detalle'!$Y:$Y,S$36,'Detall - Detalle'!$AF:$AF,'Pressupost - Pressupuesto'!$A14)+$B47*S$35","v":{"$error":"#VALUE!"}},{"$f":"+SUMIFS('Detall - Detalle'!$AA:$AA,'Detall - Detalle'!$Y:$Y,T$36,'Detall - Detalle'!$AF:$AF,'Pressupost - Pressupuesto'!$A14)+$B47*T$35","v":{"$error":"#VALUE!"}},{"$f":"+SUMIFS('Detall - Detalle'!$AA:$AA,'Detall - Detalle'!$Y:$Y,U$36,'Detall - Detalle'!$AF:$AF,'Pressupost - Pressupuesto'!$A14)+$B47*U$35","v":{"$error":"#VALUE!"}},{"$f":"+SUMIFS('Detall - Detalle'!$AA:$AA,'Detall - Detalle'!$Y:$Y,V$36,'Detall - Detalle'!$AF:$AF,'Pressupost - Pressupuesto'!$A14)+$B47*V$35","v":{"$error":"#VALUE!"}}]
["a8 Publicitat i difusió / Publicidad y difusión",{"$f":"+SUMIFS('Detall - Detalle'!$AA:$AA,'Detall - Detalle'!$Y:$Y,B$36,'Detall - Detalle'!$AF:$AF,'Pressupost - Pressupuesto'!$A15)","v":0},{"$f":"+SUMIFS('Detall - Detalle'!$AA:$AA,'Detall - Detalle'!$Y:$Y,C$36,'Detall - Detalle'!$AF:$AF,'Pressupost - Pressupuesto'!$A15)+$B48*C$35","v":{"$error":"#VALUE!"}},{"$f":"+SUMIFS('Detall - Detalle'!$AA:$AA,'Detall - Detalle'!$Y:$Y,D$36,'Detall - Detalle'!$AF:$AF,'Pressupost - Pressupuesto'!$A15)+$B48*D$35","v":{"$error":"#VALUE!"}},{"$f":"+SUMIFS('Detall - Detalle'!$AA:$AA,'Detall - Detalle'!$Y:$Y,E$36,'Detall - Detalle'!$AF:$AF,'Pressupost - Pressupuesto'!$A15)+$B48*E$35","v":{"$error":"#VALUE!"}},{"$f":"+SUMIFS('Detall - Detalle'!$AA:$AA,'Detall - Detalle'!$Y:$Y,F$36,'Detall - Detalle'!$AF:$AF,'Pressupost - Pressupuesto'!$A15)+$B48*F$35","v":{"$error":"#VALUE!"}},{"$f":"+SUMIFS('Detall - Detalle'!$AA:$AA,'Detall - Detalle'!$Y:$Y,G$36,'Detall - Detalle'!$AF:$AF,'Pressupost - Pressupuesto'!$A15)+$B48*G$35","v":{"$error":"#VALUE!"}},{"$f":"+SUMIFS('Detall - Detalle'!$AA:$AA,'Detall - Detalle'!$Y:$Y,H$36,'Detall - Detalle'!$AF:$AF,'Pressupost - Pressupuesto'!$A15)+$B48*H$35","v":{"$error":"#VALUE!"}},{"$f":"+SUMIFS('Detall - Detalle'!$AA:$AA,'Detall - Detalle'!$Y:$Y,I$36,'Detall - Detalle'!$AF:$AF,'Pressupost - Pressupuesto'!$A15)+$B48*I$35","v":{"$error":"#VALUE!"}},{"$f":"+SUMIFS('Detall - Detalle'!$AA:$AA,'Detall - Detalle'!$Y:$Y,J$36,'Detall - Detalle'!$AF:$AF,'Pressupost - Pressupuesto'!$A15)+$B48*J$35","v":{"$error":"#VALUE!"}},{"$f":"+SUMIFS('Detall - Detalle'!$AA:$AA,'Detall - Detalle'!$Y:$Y,K$36,'Detall - Detalle'!$AF:$AF,'Pressupost - Pressupuesto'!$A15)+$B48*K$35","v":{"$error":"#VALUE!"}},{"$f":"+SUMIFS('Detall - Detalle'!$AA:$AA,'Detall - Detalle'!$Y:$Y,L$36,'Detall - Detalle'!$AF:$AF,'Pressupost - Pressupuesto'!$A15)+$B48*L$35","v":{"$error":"#VALUE!"}},{"$f":"+SUMIFS('Detall - Detalle'!$AA:$AA,'Detall - Detalle'!$Y:$Y,M$36,'Detall - Detalle'!$AF:$AF,'Pressupost - Pressupuesto'!$A15)+$B48*M$35","v":{"$error":"#VALUE!"}},{"$f":"+SUMIFS('Detall - Detalle'!$AA:$AA,'Detall - Detalle'!$Y:$Y,N$36,'Detall - Detalle'!$AF:$AF,'Pressupost - Pressupuesto'!$A15)+$B48*N$35","v":{"$error":"#VALUE!"}},{"$f":"+SUMIFS('Detall - Detalle'!$AA:$AA,'Detall - Detalle'!$Y:$Y,O$36,'Detall - Detalle'!$AF:$AF,'Pressupost - Pressupuesto'!$A15)+$B48*O$35","v":{"$error":"#VALUE!"}},{"$f":"+SUMIFS('Detall - Detalle'!$AA:$AA,'Detall - Detalle'!$Y:$Y,P$36,'Detall - Detalle'!$AF:$AF,'Pressupost - Pressupuesto'!$A15)+$B48*P$35","v":{"$error":"#VALUE!"}},{"$f":"+SUMIFS('Detall - Detalle'!$AA:$AA,'Detall - Detalle'!$Y:$Y,Q$36,'Detall - Detalle'!$AF:$AF,'Pressupost - Pressupuesto'!$A15)+$B48*Q$35","v":{"$error":"#VALUE!"}},{"$f":"+SUMIFS('Detall - Detalle'!$AA:$AA,'Detall - Detalle'!$Y:$Y,R$36,'Detall - Detalle'!$AF:$AF,'Pressupost - Pressupuesto'!$A15)+$B48*R$35","v":{"$error":"#VALUE!"}},{"$f":"+SUMIFS('Detall - Detalle'!$AA:$AA,'Detall - Detalle'!$Y:$Y,S$36,'Detall - Detalle'!$AF:$AF,'Pressupost - Pressupuesto'!$A15)+$B48*S$35","v":{"$error":"#VALUE!"}},{"$f":"+SUMIFS('Detall - Detalle'!$AA:$AA,'Detall - Detalle'!$Y:$Y,T$36,'Detall - Detalle'!$AF:$AF,'Pressupost - Pressupuesto'!$A15)+$B48*T$35","v":{"$error":"#VALUE!"}},{"$f":"+SUMIFS('Detall - Detalle'!$AA:$AA,'Detall - Detalle'!$Y:$Y,U$36,'Detall - Detalle'!$AF:$AF,'Pressupost - Pressupuesto'!$A15)+$B48*U$35","v":{"$error":"#VALUE!"}},{"$f":"+SUMIFS('Detall - Detalle'!$AA:$AA,'Detall - Detalle'!$Y:$Y,V$36,'Detall - Detalle'!$AF:$AF,'Pressupost - Pressupuesto'!$A15)+$B48*V$35","v":{"$error":"#VALUE!"}}]
["a9 Publicacions / Publicaciones",{"$f":"+SUMIFS('Detall - Detalle'!$AA:$AA,'Detall - Detalle'!$Y:$Y,B$36,'Detall - Detalle'!$AF:$AF,'Pressupost - Pressupuesto'!$A16)","v":0},{"$f":"+SUMIFS('Detall - Detalle'!$AA:$AA,'Detall - Detalle'!$Y:$Y,C$36,'Detall - Detalle'!$AF:$AF,'Pressupost - Pressupuesto'!$A16)+$B49*C$35","v":{"$error":"#VALUE!"}},{"$f":"+SUMIFS('Detall - Detalle'!$AA:$AA,'Detall - Detalle'!$Y:$Y,D$36,'Detall - Detalle'!$AF:$AF,'Pressupost - Pressupuesto'!$A16)+$B49*D$35","v":{"$error":"#VALUE!"}},{"$f":"+SUMIFS('Detall - Detalle'!$AA:$AA,'Detall - Detalle'!$Y:$Y,E$36,'Detall - Detalle'!$AF:$AF,'Pressupost - Pressupuesto'!$A16)+$B49*E$35","v":{"$error":"#VALUE!"}},{"$f":"+SUMIFS('Detall - Detalle'!$AA:$AA,'Detall - Detalle'!$Y:$Y,F$36,'Detall - Detalle'!$AF:$AF,'Pressupost - Pressupuesto'!$A16)+$B49*F$35","v":{"$error":"#VALUE!"}},{"$f":"+SUMIFS('Detall - Detalle'!$AA:$AA,'Detall - Detalle'!$Y:$Y,G$36,'Detall - Detalle'!$AF:$AF,'Pressupost - Pressupuesto'!$A16)+$B49*G$35","v":{"$error":"#VALUE!"}},{"$f":"+SUMIFS('Detall - Detalle'!$AA:$AA,'Detall - Detalle'!$Y:$Y,H$36,'Detall - Detalle'!$AF:$AF,'Pressupost - Pressupuesto'!$A16)+$B49*H$35","v":{"$error":"#VALUE!"}},{"$f":"+SUMIFS('Detall - Detalle'!$AA:$AA,'Detall - Detalle'!$Y:$Y,I$36,'Detall - Detalle'!$AF:$AF,'Pressupost - Pressupuesto'!$A16)+$B49*I$35","v":{"$error":"#VALUE!"}},{"$f":"+SUMIFS('Detall - Detalle'!$AA:$AA,'Detall - Detalle'!$Y:$Y,J$36,'Detall - Detalle'!$AF:$AF,'Pressupost - Pressupuesto'!$A16)+$B49*J$35","v":{"$error":"#VALUE!"}},{"$f":"+SUMIFS('Detall - Detalle'!$AA:$AA,'Detall - Detalle'!$Y:$Y,K$36,'Detall - Detalle'!$AF:$AF,'Pressupost - Pressupuesto'!$A16)+$B49*K$35","v":{"$error":"#VALUE!"}},{"$f":"+SUMIFS('Detall - Detalle'!$AA:$AA,'Detall - Detalle'!$Y:$Y,L$36,'Detall - Detalle'!$AF:$AF,'Pressupost - Pressupuesto'!$A16)+$B49*L$35","v":{"$error":"#VALUE!"}},{"$f":"+SUMIFS('Detall - Detalle'!$AA:$AA,'Detall - Detalle'!$Y:$Y,M$36,'Detall - Detalle'!$AF:$AF,'Pressupost - Pressupuesto'!$A16)+$B49*M$35","v":{"$error":"#VALUE!"}},{"$f":"+SUMIFS('Detall - Detalle'!$AA:$AA,'Detall - Detalle'!$Y:$Y,N$36,'Detall - Detalle'!$AF:$AF,'Pressupost - Pressupuesto'!$A16)+$B49*N$35","v":{"$error":"#VALUE!"}},{"$f":"+SUMIFS('Detall - Detalle'!$AA:$AA,'Detall - Detalle'!$Y:$Y,O$36,'Detall - Detalle'!$AF:$AF,'Pressupost - Pressupuesto'!$A16)+$B49*O$35","v":{"$error":"#VALUE!"}},{"$f":"+SUMIFS('Detall - Detalle'!$AA:$AA,'Detall - Detalle'!$Y:$Y,P$36,'Detall - Detalle'!$AF:$AF,'Pressupost - Pressupuesto'!$A16)+$B49*P$35","v":{"$error":"#VALUE!"}},{"$f":"+SUMIFS('Detall - Detalle'!$AA:$AA,'Detall - Detalle'!$Y:$Y,Q$36,'Detall - Detalle'!$AF:$AF,'Pressupost - Pressupuesto'!$A16)+$B49*Q$35","v":{"$error":"#VALUE!"}},{"$f":"+SUMIFS('Detall - Detalle'!$AA:$AA,'Detall - Detalle'!$Y:$Y,R$36,'Detall - Detalle'!$AF:$AF,'Pressupost - Pressupuesto'!$A16)+$B49*R$35","v":{"$error":"#VALUE!"}},{"$f":"+SUMIFS('Detall - Detalle'!$AA:$AA,'Detall - Detalle'!$Y:$Y,S$36,'Detall - Detalle'!$AF:$AF,'Pressupost - Pressupuesto'!$A16)+$B49*S$35","v":{"$error":"#VALUE!"}},{"$f":"+SUMIFS('Detall - Detalle'!$AA:$AA,'Detall - Detalle'!$Y:$Y,T$36,'Detall - Detalle'!$AF:$AF,'Pressupost - Pressupuesto'!$A16)+$B49*T$35","v":{"$error":"#VALUE!"}},{"$f":"+SUMIFS('Detall - Detalle'!$AA:$AA,'Detall - Detalle'!$Y:$Y,U$36,'Detall - Detalle'!$AF:$AF,'Pressupost - Pressupuesto'!$A16)+$B49*U$35","v":{"$error":"#VALUE!"}},{"$f":"+SUMIFS('Detall - Detalle'!$AA:$AA,'Detall - Detalle'!$Y:$Y,V$36,'Detall - Detalle'!$AF:$AF,'Pressupost - Pressupuesto'!$A16)+$B49*V$35","v":{"$error":"#VALUE!"}}]
["a10 Treballs tècnics i professionals / Trabajos técnicos y profesionales",{"$f":"+SUMIFS('Detall - Detalle'!$AA:$AA,'Detall - Detalle'!$Y:$Y,B$36,'Detall - Detalle'!$AF:$AF,'Pressupost - Pressupuesto'!$A17)","v":0},{"$f":"+SUMIFS('Detall - Detalle'!$AA:$AA,'Detall - Detalle'!$Y:$Y,C$36,'Detall - Detalle'!$AF:$AF,'Pressupost - Pressupuesto'!$A17)+$B50*C$35","v":{"$error":"#VALUE!"}},{"$f":"+SUMIFS('Detall - Detalle'!$AA:$AA,'Detall - Detalle'!$Y:$Y,D$36,'Detall - Detalle'!$AF:$AF,'Pressupost - Pressupuesto'!$A17)+$B50*D$35","v":{"$error":"#VALUE!"}},{"$f":"+SUMIFS('Detall - Detalle'!$AA:$AA,'Detall - Detalle'!$Y:$Y,E$36,'Detall - Detalle'!$AF:$AF,'Pressupost - Pressupuesto'!$A17)+$B50*E$35","v":{"$error":"#VALUE!"}},{"$f":"+SUMIFS('Detall - Detalle'!$AA:$AA,'Detall - Detalle'!$Y:$Y,F$36,'Detall - Detalle'!$AF:$AF,'Pressupost - Pressupuesto'!$A17)+$B50*F$35","v":{"$error":"#VALUE!"}},{"$f":"+SUMIFS('Detall - Detalle'!$AA:$AA,'Detall - Detalle'!$Y:$Y,G$36,'Detall - Detalle'!$AF:$AF,'Pressupost - Pressupuesto'!$A17)+$B50*G$35","v":{"$error":"#VALUE!"}},{"$f":"+SUMIFS('Detall - Detalle'!$AA:$AA,'Detall - Detalle'!$Y:$Y,H$36,'Detall - Detalle'!$AF:$AF,'Pressupost - Pressupuesto'!$A17)+$B50*H$35","v":{"$error":"#VALUE!"}},{"$f":"+SUMIFS('Detall - Detalle'!$AA:$AA,'Detall - Detalle'!$Y:$Y,I$36,'Detall - Detalle'!$AF:$AF,'Pressupost - Pressupuesto'!$A17)+$B50*I$35","v":{"$error":"#VALUE!"}},{"$f":"+SUMIFS('Detall - Detalle'!$AA:$AA,'Detall - Detalle'!$Y:$Y,J$36,'Detall - Detalle'!$AF:$AF,'Pressupost - Pressupuesto'!$A17)+$B50*J$35","v":{"$error":"#VALUE!"}},{"$f":"+SUMIFS('Detall - Detalle'!$AA:$AA,'Detall - Detalle'!$Y:$Y,K$36,'Detall - Detalle'!$AF:$AF,'Pressupost - Pressupuesto'!$A17)+$B50*K$35","v":{"$error":"#VALUE!"}},{"$f":"+SUMIFS('Detall - Detalle'!$AA:$AA,'Detall - Detalle'!$Y:$Y,L$36,'Detall - Detalle'!$AF:$AF,'Pressupost - Pressupuesto'!$A17)+$B50*L$35","v":{"$error":"#VALUE!"}},{"$f":"+SUMIFS('Detall - Detalle'!$AA:$AA,'Detall - Detalle'!$Y:$Y,M$36,'Detall - Detalle'!$AF:$AF,'Pressupost - Pressupuesto'!$A17)+$B50*M$35","v":{"$error":"#VALUE!"}},{"$f":"+SUMIFS('Detall - Detalle'!$AA:$AA,'Detall - Detalle'!$Y:$Y,N$36,'Detall - Detalle'!$AF:$AF,'Pressupost - Pressupuesto'!$A17)+$B50*N$35","v":{"$error":"#VALUE!"}},{"$f":"+SUMIFS('Detall - Detalle'!$AA:$AA,'Detall - Detalle'!$Y:$Y,O$36,'Detall - Detalle'!$AF:$AF,'Pressupost - Pressupuesto'!$A17)+$B50*O$35","v":{"$error":"#VALUE!"}},{"$f":"+SUMIFS('Detall - Detalle'!$AA:$AA,'Detall - Detalle'!$Y:$Y,P$36,'Detall - Detalle'!$AF:$AF,'Pressupost - Pressupuesto'!$A17)+$B50*P$35","v":{"$error":"#VALUE!"}},{"$f":"+SUMIFS('Detall - Detalle'!$AA:$AA,'Detall - Detalle'!$Y:$Y,Q$36,'Detall - Detalle'!$AF:$AF,'Pressupost - Pressupuesto'!$A17)+$B50*Q$35","v":{"$error":"#VALUE!"}},{"$f":"+SUMIFS('Detall - Detalle'!$AA:$AA,'Detall - Detalle'!$Y:$Y,R$36,'Detall - Detalle'!$AF:$AF,'Pressupost - Pressupuesto'!$A17)+$B50*R$35","v":{"$error":"#VALUE!"}},{"$f":"+SUMIFS('Detall - Detalle'!$AA:$AA,'Detall - Detalle'!$Y:$Y,S$36,'Detall - Detalle'!$AF:$AF,'Pressupost - Pressupuesto'!$A17)+$B50*S$35","v":{"$error":"#VALUE!"}},{"$f":"+SUMIFS('Detall - Detalle'!$AA:$AA,'Detall - Detalle'!$Y:$Y,T$36,'Detall - Detalle'!$AF:$AF,'Pressupost - Pressupuesto'!$A17)+$B50*T$35","v":{"$error":"#VALUE!"}},{"$f":"+SUMIFS('Detall - Detalle'!$AA:$AA,'Detall - Detalle'!$Y:$Y,U$36,'Detall - Detalle'!$AF:$AF,'Pressupost - Pressupuesto'!$A17)+$B50*U$35","v":{"$error":"#VALUE!"}},{"$f":"+SUMIFS('Detall - Detalle'!$AA:$AA,'Detall - Detalle'!$Y:$Y,V$36,'Detall - Detalle'!$AF:$AF,'Pressupost - Pressupuesto'!$A17)+$B50*V$35","v":{"$error":"#VALUE!"}}]
["a11 Identificació i formulació / Identificación y formulación",{"$f":"+SUMIFS('Detall - Detalle'!$AA:$AA,'Detall - Detalle'!$Y:$Y,B$36,'Detall - Detalle'!$AF:$AF,'Pressupost - Pressupuesto'!$A18)","v":0},{"$f":"+SUMIFS('Detall - Detalle'!$AA:$AA,'Detall - Detalle'!$Y:$Y,C$36,'Detall - Detalle'!$AF:$AF,'Pressupost - Pressupuesto'!$A18)+$B51*C$35","v":{"$error":"#VALUE!"}},{"$f":"+SUMIFS('Detall - Detalle'!$AA:$AA,'Detall - Detalle'!$Y:$Y,D$36,'Detall - Detalle'!$AF:$AF,'Pressupost - Pressupuesto'!$A18)+$B51*D$35","v":{"$error":"#VALUE!"}},{"$f":"+SUMIFS('Detall - Detalle'!$AA:$AA,'Detall - Detalle'!$Y:$Y,E$36,'Detall - Detalle'!$AF:$AF,'Pressupost - Pressupuesto'!$A18)+$B51*E$35","v":{"$error":"#VALUE!"}},{"$f":"+SUMIFS('Detall - Detalle'!$AA:$AA,'Detall - Detalle'!$Y:$Y,F$36,'Detall - Detalle'!$AF:$AF,'Pressupost - Pressupuesto'!$A18)+$B51*F$35","v":{"$error":"#VALUE!"}},{"$f":"+SUMIFS('Detall - Detalle'!$AA:$AA,'Detall - Detalle'!$Y:$Y,G$36,'Detall - Detalle'!$AF:$AF,'Pressupost - Pressupuesto'!$A18)+$B51*G$35","v":{"$error":"#VALUE!"}},{"$f":"+SUMIFS('Detall - Detalle'!$AA:$AA,'Detall - Detalle'!$Y:$Y,H$36,'Detall - Detalle'!$AF:$AF,'Pressupost - Pressupuesto'!$A18)+$B51*H$35","v":{"$error":"#VALUE!"}},{"$f":"+SUMIFS('Detall - Detalle'!$AA:$AA,'Detall - Detalle'!$Y:$Y,I$36,'Detall - Detalle'!$AF:$AF,'Pressupost - Pressupuesto'!$A18)+$B51*I$35","v":{"$error":"#VALUE!"}},{"$f":"+SUMIFS('Detall - Detalle'!$AA:$AA,'Detall - Detalle'!$Y:$Y,J$36,'Detall - Detalle'!$AF:$AF,'Pressupost - Pressupuesto'!$A18)+$B51*J$35","v":{"$error":"#VALUE!"}},{"$f":"+SUMIFS('Detall - Detalle'!$AA:$AA,'Detall - Detalle'!$Y:$Y,K$36,'Detall - Detalle'!$AF:$AF,'Pressupost - Pressupuesto'!$A18)+$B51*K$35","v":{"$error":"#VALUE!"}},{"$f":"+SUMIFS('Detall - Detalle'!$AA:$AA,'Detall - Detalle'!$Y:$Y,L$36,'Detall - Detalle'!$AF:$AF,'Pressupost - Pressupuesto'!$A18)+$B51*L$35","v":{"$error":"#VALUE!"}},{"$f":"+SUMIFS('Detall - Detalle'!$AA:$AA,'Detall - Detalle'!$Y:$Y,M$36,'Detall - Detalle'!$AF:$AF,'Pressupost - Pressupuesto'!$A18)+$B51*M$35","v":{"$error":"#VALUE!"}},{"$f":"+SUMIFS('Detall - Detalle'!$AA:$AA,'Detall - Detalle'!$Y:$Y,N$36,'Detall - Detalle'!$AF:$AF,'Pressupost - Pressupuesto'!$A18)+$B51*N$35","v":{"$error":"#VALUE!"}},{"$f":"+SUMIFS('Detall - Detalle'!$AA:$AA,'Detall - Detalle'!$Y:$Y,O$36,'Detall - Detalle'!$AF:$AF,'Pressupost - Pressupuesto'!$A18)+$B51*O$35","v":{"$error":"#VALUE!"}},{"$f":"+SUMIFS('Detall - Detalle'!$AA:$AA,'Detall - Detalle'!$Y:$Y,P$36,'Detall - Detalle'!$AF:$AF,'Pressupost - Pressupuesto'!$A18)+$B51*P$35","v":{"$error":"#VALUE!"}},{"$f":"+SUMIFS('Detall - Detalle'!$AA:$AA,'Detall - Detalle'!$Y:$Y,Q$36,'Detall - Detalle'!$AF:$AF,'Pressupost - Pressupuesto'!$A18)+$B51*Q$35","v":{"$error":"#VALUE!"}},{"$f":"+SUMIFS('Detall - Detalle'!$AA:$AA,'Detall - Detalle'!$Y:$Y,R$36,'Detall - Detalle'!$AF:$AF,'Pressupost - Pressupuesto'!$A18)+$B51*R$35","v":{"$error":"#VALUE!"}},{"$f":"+SUMIFS('Detall - Detalle'!$AA:$AA,'Detall - Detalle'!$Y:$Y,S$36,'Detall - Detalle'!$AF:$AF,'Pressupost - Pressupuesto'!$A18)+$B51*S$35","v":{"$error":"#VALUE!"}},{"$f":"+SUMIFS('Detall - Detalle'!$AA:$AA,'Detall - Detalle'!$Y:$Y,T$36,'Detall - Detalle'!$AF:$AF,'Pressupost - Pressupuesto'!$A18)+$B51*T$35","v":{"$error":"#VALUE!"}},{"$f":"+SUMIFS('Detall - Detalle'!$AA:$AA,'Detall - Detalle'!$Y:$Y,U$36,'Detall - Detalle'!$AF:$AF,'Pressupost - Pressupuesto'!$A18)+$B51*U$35","v":{"$error":"#VALUE!"}},{"$f":"+SUMIFS('Detall - Detalle'!$AA:$AA,'Detall - Detalle'!$Y:$Y,V$36,'Detall - Detalle'!$AF:$AF,'Pressupost - Pressupuesto'!$A18)+$B51*V$35","v":{"$error":"#VALUE!"}}]
["a12 Avaluació / Evaluación",{"$f":"+SUMIFS('Detall - Detalle'!$AA:$AA,'Detall - Detalle'!$Y:$Y,B$36,'Detall - Detalle'!$AF:$AF,'Pressupost - Pressupuesto'!$A19)","v":0},{"$f":"+SUMIFS('Detall - Detalle'!$AA:$AA,'Detall - Detalle'!$Y:$Y,C$36,'Detall - Detalle'!$AF:$AF,'Pressupost - Pressupuesto'!$A19)+$B52*C$35","v":{"$error":"#VALUE!"}},{"$f":"+SUMIFS('Detall - Detalle'!$AA:$AA,'Detall - Detalle'!$Y:$Y,D$36,'Detall - Detalle'!$AF:$AF,'Pressupost - Pressupuesto'!$A19)+$B52*D$35","v":{"$error":"#VALUE!"}},{"$f":"+SUMIFS('Detall - Detalle'!$AA:$AA,'Detall - Detalle'!$Y:$Y,E$36,'Detall - Detalle'!$AF:$AF,'Pressupost - Pressupuesto'!$A19)+$B52*E$35","v":{"$error":"#VALUE!"}},{"$f":"+SUMIFS('Detall - Detalle'!$AA:$AA,'Detall - Detalle'!$Y:$Y,F$36,'Detall - Detalle'!$AF:$AF,'Pressupost - Pressupuesto'!$A19)+$B52*F$35","v":{"$error":"#VALUE!"}},{"$f":"+SUMIFS('Detall - Detalle'!$AA:$AA,'Detall - Detalle'!$Y:$Y,G$36,'Detall - Detalle'!$AF:$AF,'Pressupost - Pressupuesto'!$A19)+$B52*G$35","v":{"$error":"#VALUE!"}},{"$f":"+SUMIFS('Detall - Detalle'!$AA:$AA,'Detall - Detalle'!$Y:$Y,H$36,'Detall - Detalle'!$AF:$AF,'Pressupost - Pressupuesto'!$A19)+$B52*H$35","v":{"$error":"#VALUE!"}},{"$f":"+SUMIFS('Detall - Detalle'!$AA:$AA,'Detall - Detalle'!$Y:$Y,I$36,'Detall - Detalle'!$AF:$AF,'Pressupost - Pressupuesto'!$A19)+$B52*I$35","v":{"$error":"#VALUE!"}},{"$f":"+SUMIFS('Detall - Detalle'!$AA:$AA,'Detall - Detalle'!$Y:$Y,J$36,'Detall - Detalle'!$AF:$AF,'Pressupost - Pressupuesto'!$A19)+$B52*J$35","v":{"$error":"#VALUE!"}},{"$f":"+SUMIFS('Detall - Detalle'!$AA:$AA,'Detall - Detalle'!$Y:$Y,K$36,'Detall - Detalle'!$AF:$AF,'Pressupost - Pressupuesto'!$A19)+$B52*K$35","v":{"$error":"#VALUE!"}},{"$f":"+SUMIFS('Detall - Detalle'!$AA:$AA,'Detall - Detalle'!$Y:$Y,L$36,'Detall - Detalle'!$AF:$AF,'Pressupost - Pressupuesto'!$A19)+$B52*L$35","v":{"$error":"#VALUE!"}},{"$f":"+SUMIFS('Detall - Detalle'!$AA:$AA,'Detall - Detalle'!$Y:$Y,M$36,'Detall - Detalle'!$AF:$AF,'Pressupost - Pressupuesto'!$A19)+$B52*M$35","v":{"$error":"#VALUE!"}},{"$f":"+SUMIFS('Detall - Detalle'!$AA:$AA,'Detall - Detalle'!$Y:$Y,N$36,'Detall - Detalle'!$AF:$AF,'Pressupost - Pressupuesto'!$A19)+$B52*N$35","v":{"$error":"#VALUE!"}},{"$f":"+SUMIFS('Detall - Detalle'!$AA:$AA,'Detall - Detalle'!$Y:$Y,O$36,'Detall - Detalle'!$AF:$AF,'Pressupost - Pressupuesto'!$A19)+$B52*O$35","v":{"$error":"#VALUE!"}},{"$f":"+SUMIFS('Detall - Detalle'!$AA:$AA,'Detall - Detalle'!$Y:$Y,P$36,'Detall - Detalle'!$AF:$AF,'Pressupost - Pressupuesto'!$A19)+$B52*P$35","v":{"$error":"#VALUE!"}},{"$f":"+SUMIFS('Detall - Detalle'!$AA:$AA,'Detall - Detalle'!$Y:$Y,Q$36,'Detall - Detalle'!$AF:$AF,'Pressupost - Pressupuesto'!$A19)+$B52*Q$35","v":{"$error":"#VALUE!"}},{"$f":"+SUMIFS('Detall - Detalle'!$AA:$AA,'Detall - Detalle'!$Y:$Y,R$36,'Detall - Detalle'!$AF:$AF,'Pressupost - Pressupuesto'!$A19)+$B52*R$35","v":{"$error":"#VALUE!"}},{"$f":"+SUMIFS('Detall - Detalle'!$AA:$AA,'Detall - Detalle'!$Y:$Y,S$36,'Detall - Detalle'!$AF:$AF,'Pressupost - Pressupuesto'!$A19)+$B52*S$35","v":{"$error":"#VALUE!"}},{"$f":"+SUMIFS('Detall - Detalle'!$AA:$AA,'Detall - Detalle'!$Y:$Y,T$36,'Detall - Detalle'!$AF:$AF,'Pressupost - Pressupuesto'!$A19)+$B52*T$35","v":{"$error":"#VALUE!"}},{"$f":"+SUMIFS('Detall - Detalle'!$AA:$AA,'Detall - Detalle'!$Y:$Y,U$36,'Detall - Detalle'!$AF:$AF,'Pressupost - Pressupuesto'!$A19)+$B52*U$35","v":{"$error":"#VALUE!"}},{"$f":"+SUMIFS('Detall - Detalle'!$AA:$AA,'Detall - Detalle'!$Y:$Y,V$36,'Detall - Detalle'!$AF:$AF,'Pressupost - Pressupuesto'!$A19)+$B52*V$35","v":{"$error":"#VALUE!"}}]
["a13 Dietes, locomoció, trasllats i allotjaments / Dietas, locomoción, traslados y alojamientos",{"$f":"+SUMIFS('Detall - Detalle'!$AA:$AA,'Detall - Detalle'!$Y:$Y,B$36,'Detall - Detalle'!$AF:$AF,'Pressupost - Pressupuesto'!$A20)","v":0},{"$f":"+SUMIFS('Detall - Detalle'!$AA:$AA,'Detall - Detalle'!$Y:$Y,C$36,'Detall - Detalle'!$AF:$AF,'Pressupost - Pressupuesto'!$A20)+$B53*C$35","v":{"$error":"#VALUE!"}},{"$f":"+SUMIFS('Detall - Detalle'!$AA:$AA,'Detall - Detalle'!$Y:$Y,D$36,'Detall - Detalle'!$AF:$AF,'Pressupost - Pressupuesto'!$A20)+$B53*D$35","v":{"$error":"#VALUE!"}},{"$f":"+SUMIFS('Detall - Detalle'!$AA:$AA,'Detall - Detalle'!$Y:$Y,E$36,'Detall - Detalle'!$AF:$AF,'Pressupost - Pressupuesto'!$A20)+$B53*E$35","v":{"$error":"#VALUE!"}},{"$f":"+SUMIFS('Detall - Detalle'!$AA:$AA,'Detall - Detalle'!$Y:$Y,F$36,'Detall - Detalle'!$AF:$AF,'Pressupost - Pressupuesto'!$A20)+$B53*F$35","v":{"$error":"#VALUE!"}},{"$f":"+SUMIFS('Detall - Detalle'!$AA:$AA,'Detall - Detalle'!$Y:$Y,G$36,'Detall - Detalle'!$AF:$AF,'Pressupost - Pressupuesto'!$A20)+$B53*G$35","v":{"$error":"#VALUE!"}},{"$f":"+SUMIFS('Detall - Detalle'!$AA:$AA,'Detall - Detalle'!$Y:$Y,H$36,'Detall - Detalle'!$AF:$AF,'Pressupost - Pressupuesto'!$A20)+$B53*H$35","v":{"$error":"#VALUE!"}},{"$f":"+SUMIFS('Detall - Detalle'!$AA:$AA,'Detall - Detalle'!$Y:$Y,I$36,'Detall - Detalle'!$AF:$AF,'Pressupost - Pressupuesto'!$A20)+$B53*I$35","v":{"$error":"#VALUE!"}},{"$f":"+SUMIFS('Detall - Detalle'!$AA:$AA,'Detall - Detalle'!$Y:$Y,J$36,'Detall - Detalle'!$AF:$AF,'Pressupost - Pressupuesto'!$A20)+$B53*J$35","v":{"$error":"#VALUE!"}},{"$f":"+SUMIFS('Detall - Detalle'!$AA:$AA,'Detall - Detalle'!$Y:$Y,K$36,'Detall - Detalle'!$AF:$AF,'Pressupost - Pressupuesto'!$A20)+$B53*K$35","v":{"$error":"#VALUE!"}},{"$f":"+SUMIFS('Detall - Detalle'!$AA:$AA,'Detall - Detalle'!$Y:$Y,L$36,'Detall - Detalle'!$AF:$AF,'Pressupost - Pressupuesto'!$A20)+$B53*L$35","v":{"$error":"#VALUE!"}},{"$f":"+SUMIFS('Detall - Detalle'!$AA:$AA,'Detall - Detalle'!$Y:$Y,M$36,'Detall - Detalle'!$AF:$AF,'Pressupost - Pressupuesto'!$A20)+$B53*M$35","v":{"$error":"#VALUE!"}},{"$f":"+SUMIFS('Detall - Detalle'!$AA:$AA,'Detall - Detalle'!$Y:$Y,N$36,'Detall - Detalle'!$AF:$AF,'Pressupost - Pressupuesto'!$A20)+$B53*N$35","v":{"$error":"#VALUE!"}},{"$f":"+SUMIFS('Detall - Detalle'!$AA:$AA,'Detall - Detalle'!$Y:$Y,O$36,'Detall - Detalle'!$AF:$AF,'Pressupost - Pressupuesto'!$A20)+$B53*O$35","v":{"$error":"#VALUE!"}},{"$f":"+SUMIFS('Detall - Detalle'!$AA:$AA,'Detall - Detalle'!$Y:$Y,P$36,'Detall - Detalle'!$AF:$AF,'Pressupost - Pressupuesto'!$A20)+$B53*P$35","v":{"$error":"#VALUE!"}},{"$f":"+SUMIFS('Detall - Detalle'!$AA:$AA,'Detall - Detalle'!$Y:$Y,Q$36,'Detall - Detalle'!$AF:$AF,'Pressupost - Pressupuesto'!$A20)+$B53*Q$35","v":{"$error":"#VALUE!"}},{"$f":"+SUMIFS('Detall - Detalle'!$AA:$AA,'Detall - Detalle'!$Y:$Y,R$36,'Detall - Detalle'!$AF:$AF,'Pressupost - Pressupuesto'!$A20)+$B53*R$35","v":{"$error":"#VALUE!"}},{"$f":"+SUMIFS('Detall - Detalle'!$AA:$AA,'Detall - Detalle'!$Y:$Y,S$36,'Detall - Detalle'!$AF:$AF,'Pressupost - Pressupuesto'!$A20)+$B53*S$35","v":{"$error":"#VALUE!"}},{"$f":"+SUMIFS('Detall - Detalle'!$AA:$AA,'Detall - Detalle'!$Y:$Y,T$36,'Detall - Detalle'!$AF:$AF,'Pressupost - Pressupuesto'!$A20)+$B53*T$35","v":{"$error":"#VALUE!"}},{"$f":"+SUMIFS('Detall - Detalle'!$AA:$AA,'Detall - Detalle'!$Y:$Y,U$36,'Detall - Detalle'!$AF:$AF,'Pressupost - Pressupuesto'!$A20)+$B53*U$35","v":{"$error":"#VALUE!"}},{"$f":"+SUMIFS('Detall - Detalle'!$AA:$AA,'Detall - Detalle'!$Y:$Y,V$36,'Detall - Detalle'!$AF:$AF,'Pressupost - Pressupuesto'!$A20)+$B53*V$35","v":{"$error":"#VALUE!"}}]
["a14 Informe auditor / Informe de auditor",{"$f":"+SUMIFS('Detall - Detalle'!$AA:$AA,'Detall - Detalle'!$Y:$Y,B$36,'Detall - Detalle'!$AF:$AF,'Pressupost - Pressupuesto'!$A21)","v":0},{"$f":"+SUMIFS('Detall - Detalle'!$AA:$AA,'Detall - Detalle'!$Y:$Y,C$36,'Detall - Detalle'!$AF:$AF,'Pressupost - Pressupuesto'!$A21)+$B54*C$35","v":{"$error":"#VALUE!"}},{"$f":"+SUMIFS('Detall - Detalle'!$AA:$AA,'Detall - Detalle'!$Y:$Y,D$36,'Detall - Detalle'!$AF:$AF,'Pressupost - Pressupuesto'!$A21)+$B54*D$35","v":{"$error":"#VALUE!"}},{"$f":"+SUMIFS('Detall - Detalle'!$AA:$AA,'Detall - Detalle'!$Y:$Y,E$36,'Detall - Detalle'!$AF:$AF,'Pressupost - Pressupuesto'!$A21)+$B54*E$35","v":{"$error":"#VALUE!"}},{"$f":"+SUMIFS('Detall - Detalle'!$AA:$AA,'Detall - Detalle'!$Y:$Y,F$36,'Detall - Detalle'!$AF:$AF,'Pressupost - Pressupuesto'!$A21)+$B54*F$35","v":{"$error":"#VALUE!"}},{"$f":"+SUMIFS('Detall - Detalle'!$AA:$AA,'Detall - Detalle'!$Y:$Y,G$36,'Detall - Detalle'!$AF:$AF,'Pressupost - Pressupuesto'!$A21)+$B54*G$35","v":{"$error":"#VALUE!"}},{"$f":"+SUMIFS('Detall - Detalle'!$AA:$AA,'Detall - Detalle'!$Y:$Y,H$36,'Detall - Detalle'!$AF:$AF,'Pressupost - Pressupuesto'!$A21)+$B54*H$35","v":{"$error":"#VALUE!"}},{"$f":"+SUMIFS('Detall - Detalle'!$AA:$AA,'Detall - Detalle'!$Y:$Y,I$36,'Detall - Detalle'!$AF:$AF,'Pressupost - Pressupuesto'!$A21)+$B54*I$35","v":{"$error":"#VALUE!"}},{"$f":"+SUMIFS('Detall - Detalle'!$AA:$AA,'Detall - Detalle'!$Y:$Y,J$36,'Detall - Detalle'!$AF:$AF,'Pressupost - Pressupuesto'!$A21)+$B54*J$35","v":{"$error":"#VALUE!"}},{"$f":"+SUMIFS('Detall - Detalle'!$AA:$AA,'Detall - Detalle'!$Y:$Y,K$36,'Detall - Detalle'!$AF:$AF,'Pressupost - Pressupuesto'!$A21)+$B54*K$35","v":{"$error":"#VALUE!"}},{"$f":"+SUMIFS('Detall - Detalle'!$AA:$AA,'Detall - Detalle'!$Y:$Y,L$36,'Detall - Detalle'!$AF:$AF,'Pressupost - Pressupuesto'!$A21)+$B54*L$35","v":{"$error":"#VALUE!"}},{"$f":"+SUMIFS('Detall - Detalle'!$AA:$AA,'Detall - Detalle'!$Y:$Y,M$36,'Detall - Detalle'!$AF:$AF,'Pressupost - Pressupuesto'!$A21)+$B54*M$35","v":{"$error":"#VALUE!"}},{"$f":"+SUMIFS('Detall - Detalle'!$AA:$AA,'Detall - Detalle'!$Y:$Y,N$36,'Detall - Detalle'!$AF:$AF,'Pressupost - Pressupuesto'!$A21)+$B54*N$35","v":{"$error":"#VALUE!"}},{"$f":"+SUMIFS('Detall - Detalle'!$AA:$AA,'Detall - Detalle'!$Y:$Y,O$36,'Detall - Detalle'!$AF:$AF,'Pressupost - Pressupuesto'!$A21)+$B54*O$35","v":{"$error":"#VALUE!"}},{"$f":"+SUMIFS('Detall - Detalle'!$AA:$AA,'Detall - Detalle'!$Y:$Y,P$36,'Detall - Detalle'!$AF:$AF,'Pressupost - Pressupuesto'!$A21)+$B54*P$35","v":{"$error":"#VALUE!"}},{"$f":"+SUMIFS('Detall - Detalle'!$AA:$AA,'Detall - Detalle'!$Y:$Y,Q$36,'Detall - Detalle'!$AF:$AF,'Pressupost - Pressupuesto'!$A21)+$B54*Q$35","v":{"$error":"#VALUE!"}},{"$f":"+SUMIFS('Detall - Detalle'!$AA:$AA,'Detall - Detalle'!$Y:$Y,R$36,'Detall - Detalle'!$AF:$AF,'Pressupost - Pressupuesto'!$A21)+$B54*R$35","v":{"$error":"#VALUE!"}},{"$f":"+SUMIFS('Detall - Detalle'!$AA:$AA,'Detall - Detalle'!$Y:$Y,S$36,'Detall - Detalle'!$AF:$AF,'Pressupost - Pressupuesto'!$A21)+$B54*S$35","v":{"$error":"#VALUE!"}},{"$f":"+SUMIFS('Detall - Detalle'!$AA:$AA,'Detall - Detalle'!$Y:$Y,T$36,'Detall - Detalle'!$AF:$AF,'Pressupost - Pressupuesto'!$A21)+$B54*T$35","v":{"$error":"#VALUE!"}},{"$f":"+SUMIFS('Detall - Detalle'!$AA:$AA,'Detall - Detalle'!$Y:$Y,U$36,'Detall - Detalle'!$AF:$AF,'Pressupost - Pressupuesto'!$A21)+$B54*U$35","v":{"$error":"#VALUE!"}},{"$f":"+SUMIFS('Detall - Detalle'!$AA:$AA,'Detall - Detalle'!$Y:$Y,V$36,'Detall - Detalle'!$AF:$AF,'Pressupost - Pressupuesto'!$A21)+$B54*V$35","v":{"$error":"#VALUE!"}}]
["a15 Despeses financeres / Gastos financieros",{"$f":"+SUMIFS('Detall - Detalle'!$AA:$AA,'Detall - Detalle'!$Y:$Y,B$36,'Detall - Detalle'!$AF:$AF,'Pressupost - Pressupuesto'!$A22)","v":0},{"$f":"+SUMIFS('Detall - Detalle'!$AA:$AA,'Detall - Detalle'!$Y:$Y,C$36,'Detall - Detalle'!$AF:$AF,'Pressupost - Pressupuesto'!$A22)+$B55*C$35","v":{"$error":"#VALUE!"}},{"$f":"+SUMIFS('Detall - Detalle'!$AA:$AA,'Detall - Detalle'!$Y:$Y,D$36,'Detall - Detalle'!$AF:$AF,'Pressupost - Pressupuesto'!$A22)+$B55*D$35","v":{"$error":"#VALUE!"}},{"$f":"+SUMIFS('Detall - Detalle'!$AA:$AA,'Detall - Detalle'!$Y:$Y,E$36,'Detall - Detalle'!$AF:$AF,'Pressupost - Pressupuesto'!$A22)+$B55*E$35","v":{"$error":"#VALUE!"}},{"$f":"+SUMIFS('Detall - Detalle'!$AA:$AA,'Detall - Detalle'!$Y:$Y,F$36,'Detall - Detalle'!$AF:$AF,'Pressupost - Pressupuesto'!$A22)+$B55*F$35","v":{"$error":"#VALUE!"}},{"$f":"+SUMIFS('Detall - Detalle'!$AA:$AA,'Detall - Detalle'!$Y:$Y,G$36,'Detall - Detalle'!$AF:$AF,'Pressupost - Pressupuesto'!$A22)+$B55*G$35","v":{"$error":"#VALUE!"}},{"$f":"+SUMIFS('Detall - Detalle'!$AA:$AA,'Detall - Detalle'!$Y:$Y,H$36,'Detall - Detalle'!$AF:$AF,'Pressupost - Pressupuesto'!$A22)+$B55*H$35","v":{"$error":"#VALUE!"}},{"$f":"+SUMIFS('Detall - Detalle'!$AA:$AA,'Detall - Detalle'!$Y:$Y,I$36,'Detall - Detalle'!$AF:$AF,'Pressupost - Pressupuesto'!$A22)+$B55*I$35","v":{"$error":"#VALUE!"}},{"$f":"+SUMIFS('Detall - Detalle'!$AA:$AA,'Detall - Detalle'!$Y:$Y,J$36,'Detall - Detalle'!$AF:$AF,'Pressupost - Pressupuesto'!$A22)+$B55*J$35","v":{"$error":"#VALUE!"}},{"$f":"+SUMIFS('Detall - Detalle'!$AA:$AA,'Detall - Detalle'!$Y:$Y,K$36,'Detall - Detalle'!$AF:$AF,'Pressupost - Pressupuesto'!$A22)+$B55*K$35","v":{"$error":"#VALUE!"}},{"$f":"+SUMIFS('Detall - Detalle'!$AA:$AA,'Detall - Detalle'!$Y:$Y,L$36,'Detall - Detalle'!$AF:$AF,'Pressupost - Pressupuesto'!$A22)+$B55*L$35","v":{"$error":"#VALUE!"}},{"$f":"+SUMIFS('Detall - Detalle'!$AA:$AA,'Detall - Detalle'!$Y:$Y,M$36,'Detall - Detalle'!$AF:$AF,'Pressupost - Pressupuesto'!$A22)+$B55*M$35","v":{"$error":"#VALUE!"}},{"$f":"+SUMIFS('Detall - Detalle'!$AA:$AA,'Detall - Detalle'!$Y:$Y,N$36,'Detall - Detalle'!$AF:$AF,'Pressupost - Pressupuesto'!$A22)+$B55*N$35","v":{"$error":"#VALUE!"}},{"$f":"+SUMIFS('Detall - Detalle'!$AA:$AA,'Detall - Detalle'!$Y:$Y,O$36,'Detall - Detalle'!$AF:$AF,'Pressupost - Pressupuesto'!$A22)+$B55*O$35","v":{"$error":"#VALUE!"}},{"$f":"+SUMIFS('Detall - Detalle'!$AA:$AA,'Detall - Detalle'!$Y:$Y,P$36,'Detall - Detalle'!$AF:$AF,'Pressupost - Pressupuesto'!$A22)+$B55*P$35","v":{"$error":"#VALUE!"}},{"$f":"+SUMIFS('Detall - Detalle'!$AA:$AA,'Detall - Detalle'!$Y:$Y,Q$36,'Detall - Detalle'!$AF:$AF,'Pressupost - Pressupuesto'!$A22)+$B55*Q$35","v":{"$error":"#VALUE!"}},{"$f":"+SUMIFS('Detall - Detalle'!$AA:$AA,'Detall - Detalle'!$Y:$Y,R$36,'Detall - Detalle'!$AF:$AF,'Pressupost - Pressupuesto'!$A22)+$B55*R$35","v":{"$error":"#VALUE!"}},{"$f":"+SUMIFS('Detall - Detalle'!$AA:$AA,'Detall - Detalle'!$Y:$Y,S$36,'Detall - Detalle'!$AF:$AF,'Pressupost - Pressupuesto'!$A22)+$B55*S$35","v":{"$error":"#VALUE!"}},{"$f":"+SUMIFS('Detall - Detalle'!$AA:$AA,'Detall - Detalle'!$Y:$Y,T$36,'Detall - Detalle'!$AF:$AF,'Pressupost - Pressupuesto'!$A22)+$B55*T$35","v":{"$error":"#VALUE!"}},{"$f":"+SUMIFS('Detall - Detalle'!$AA:$AA,'Detall - Detalle'!$Y:$Y,U$36,'Detall - Detalle'!$AF:$AF,'Pressupost - Pressupuesto'!$A22)+$B55*U$35","v":{"$error":"#VALUE!"}},{"$f":"+SUMIFS('Detall - Detalle'!$AA:$AA,'Detall - Detalle'!$Y:$Y,V$36,'Detall - Detalle'!$AF:$AF,'Pressupost - Pressupuesto'!$A22)+$B55*V$35","v":{"$error":"#VALUE!"}}]
["a16 Despeses de suport legal / Gastos de soporte legal",{"$f":"+SUMIFS('Detall - Detalle'!$AA:$AA,'Detall - Detalle'!$Y:$Y,B$36,'Detall - Detalle'!$AF:$AF,'Pressupost - Pressupuesto'!$A23)","v":0},{"$f":"+SUMIFS('Detall - Detalle'!$AA:$AA,'Detall - Detalle'!$Y:$Y,C$36,'Detall - Detalle'!$AF:$AF,'Pressupost - Pressupuesto'!$A23)+$B56*C$35","v":{"$error":"#VALUE!"}},{"$f":"+SUMIFS('Detall - Detalle'!$AA:$AA,'Detall - Detalle'!$Y:$Y,D$36,'Detall - Detalle'!$AF:$AF,'Pressupost - Pressupuesto'!$A23)+$B56*D$35","v":{"$error":"#VALUE!"}},{"$f":"+SUMIFS('Detall - Detalle'!$AA:$AA,'Detall - Detalle'!$Y:$Y,E$36,'Detall - Detalle'!$AF:$AF,'Pressupost - Pressupuesto'!$A23)+$B56*E$35","v":{"$error":"#VALUE!"}},{"$f":"+SUMIFS('Detall - Detalle'!$AA:$AA,'Detall - Detalle'!$Y:$Y,F$36,'Detall - Detalle'!$AF:$AF,'Pressupost - Pressupuesto'!$A23)+$B56*F$35","v":{"$error":"#VALUE!"}},{"$f":"+SUMIFS('Detall - Detalle'!$AA:$AA,'Detall - Detalle'!$Y:$Y,G$36,'Detall - Detalle'!$AF:$AF,'Pressupost - Pressupuesto'!$A23)+$B56*G$35","v":{"$error":"#VALUE!"}},{"$f":"+SUMIFS('Detall - Detalle'!$AA:$AA,'Detall - Detalle'!$Y:$Y,H$36,'Detall - Detalle'!$AF:$AF,'Pressupost - Pressupuesto'!$A23)+$B56*H$35","v":{"$error":"#VALUE!"}},{"$f":"+SUMIFS('Detall - Detalle'!$AA:$AA,'Detall - Detalle'!$Y:$Y,I$36,'Detall - Detalle'!$AF:$AF,'Pressupost - Pressupuesto'!$A23)+$B56*I$35","v":{"$error":"#VALUE!"}},{"$f":"+SUMIFS('Detall - Detalle'!$AA:$AA,'Detall - Detalle'!$Y:$Y,J$36,'Detall - Detalle'!$AF:$AF,'Pressupost - Pressupuesto'!$A23)+$B56*J$35","v":{"$error":"#VALUE!"}},{"$f":"+SUMIFS('Detall - Detalle'!$AA:$AA,'Detall - Detalle'!$Y:$Y,K$36,'Detall - Detalle'!$AF:$AF,'Pressupost - Pressupuesto'!$A23)+$B56*K$35","v":{"$error":"#VALUE!"}},{"$f":"+SUMIFS('Detall - Detalle'!$AA:$AA,'Detall - Detalle'!$Y:$Y,L$36,'Detall - Detalle'!$AF:$AF,'Pressupost - Pressupuesto'!$A23)+$B56*L$35","v":{"$error":"#VALUE!"}},{"$f":"+SUMIFS('Detall - Detalle'!$AA:$AA,'Detall - Detalle'!$Y:$Y,M$36,'Detall - Detalle'!$AF:$AF,'Pressupost - Pressupuesto'!$A23)+$B56*M$35","v":{"$error":"#VALUE!"}},{"$f":"+SUMIFS('Detall - Detalle'!$AA:$AA,'Detall - Detalle'!$Y:$Y,N$36,'Detall - Detalle'!$AF:$AF,'Pressupost - Pressupuesto'!$A23)+$B56*N$35","v":{"$error":"#VALUE!"}},{"$f":"+SUMIFS('Detall - Detalle'!$AA:$AA,'Detall - Detalle'!$Y:$Y,O$36,'Detall - Detalle'!$AF:$AF,'Pressupost - Pressupuesto'!$A23)+$B56*O$35","v":{"$error":"#VALUE!"}},{"$f":"+SUMIFS('Detall - Detalle'!$AA:$AA,'Detall - Detalle'!$Y:$Y,P$36,'Detall - Detalle'!$AF:$AF,'Pressupost - Pressupuesto'!$A23)+$B56*P$35","v":{"$error":"#VALUE!"}},{"$f":"+SUMIFS('Detall - Detalle'!$AA:$AA,'Detall - Detalle'!$Y:$Y,Q$36,'Detall - Detalle'!$AF:$AF,'Pressupost - Pressupuesto'!$A23)+$B56*Q$35","v":{"$error":"#VALUE!"}},{"$f":"+SUMIFS('Detall - Detalle'!$AA:$AA,'Detall - Detalle'!$Y:$Y,R$36,'Detall - Detalle'!$AF:$AF,'Pressupost - Pressupuesto'!$A23)+$B56*R$35","v":{"$error":"#VALUE!"}},{"$f":"+SUMIFS('Detall - Detalle'!$AA:$AA,'Detall - Detalle'!$Y:$Y,S$36,'Detall - Detalle'!$AF:$AF,'Pressupost - Pressupuesto'!$A23)+$B56*S$35","v":{"$error":"#VALUE!"}},{"$f":"+SUMIFS('Detall - Detalle'!$AA:$AA,'Detall - Detalle'!$Y:$Y,T$36,'Detall - Detalle'!$AF:$AF,'Pressupost - Pressupuesto'!$A23)+$B56*T$35","v":{"$error":"#VALUE!"}},{"$f":"+SUMIFS('Detall - Detalle'!$AA:$AA,'Detall - Detalle'!$Y:$Y,U$36,'Detall - Detalle'!$AF:$AF,'Pressupost - Pressupuesto'!$A23)+$B56*U$35","v":{"$error":"#VALUE!"}},{"$f":"+SUMIFS('Detall - Detalle'!$AA:$AA,'Detall - Detalle'!$Y:$Y,V$36,'Detall - Detalle'!$AF:$AF,'Pressupost - Pressupuesto'!$A23)+$B56*V$35","v":{"$error":"#VALUE!"}}]
["a17 Beques / Becas",{"$f":"+SUMIFS('Detall - Detalle'!$AA:$AA,'Detall - Detalle'!$Y:$Y,B$36,'Detall - Detalle'!$AF:$AF,'Pressupost - Pressupuesto'!$A24)","v":0},{"$f":"+SUMIFS('Detall - Detalle'!$AA:$AA,'Detall - Detalle'!$Y:$Y,C$36,'Detall - Detalle'!$AF:$AF,'Pressupost - Pressupuesto'!$A24)+$B57*C$35","v":{"$error":"#VALUE!"}},{"$f":"+SUMIFS('Detall - Detalle'!$AA:$AA,'Detall - Detalle'!$Y:$Y,D$36,'Detall - Detalle'!$AF:$AF,'Pressupost - Pressupuesto'!$A24)+$B57*D$35","v":{"$error":"#VALUE!"}},{"$f":"+SUMIFS('Detall - Detalle'!$AA:$AA,'Detall - Detalle'!$Y:$Y,E$36,'Detall - Detalle'!$AF:$AF,'Pressupost - Pressupuesto'!$A24)+$B57*E$35","v":{"$error":"#VALUE!"}},{"$f":"+SUMIFS('Detall - Detalle'!$AA:$AA,'Detall - Detalle'!$Y:$Y,F$36,'Detall - Detalle'!$AF:$AF,'Pressupost - Pressupuesto'!$A24)+$B57*F$35","v":{"$error":"#VALUE!"}},{"$f":"+SUMIFS('Detall - Detalle'!$AA:$AA,'Detall - Detalle'!$Y:$Y,G$36,'Detall - Detalle'!$AF:$AF,'Pressupost - Pressupuesto'!$A24)+$B57*G$35","v":{"$error":"#VALUE!"}},{"$f":"+SUMIFS('Detall - Detalle'!$AA:$AA,'Detall - Detalle'!$Y:$Y,H$36,'Detall - Detalle'!$AF:$AF,'Pressupost - Pressupuesto'!$A24)+$B57*H$35","v":{"$error":"#VALUE!"}},{"$f":"+SUMIFS('Detall - Detalle'!$AA:$AA,'Detall - Detalle'!$Y:$Y,I$36,'Detall - Detalle'!$AF:$AF,'Pressupost - Pressupuesto'!$A24)+$B57*I$35","v":{"$error":"#VALUE!"}},{"$f":"+SUMIFS('Detall - Detalle'!$AA:$AA,'Detall - Detalle'!$Y:$Y,J$36,'Detall - Detalle'!$AF:$AF,'Pressupost - Pressupuesto'!$A24)+$B57*J$35","v":{"$error":"#VALUE!"}},{"$f":"+SUMIFS('Detall - Detalle'!$AA:$AA,'Detall - Detalle'!$Y:$Y,K$36,'Detall - Detalle'!$AF:$AF,'Pressupost - Pressupuesto'!$A24)+$B57*K$35","v":{"$error":"#VALUE!"}},{"$f":"+SUMIFS('Detall - Detalle'!$AA:$AA,'Detall - Detalle'!$Y:$Y,L$36,'Detall - Detalle'!$AF:$AF,'Pressupost - Pressupuesto'!$A24)+$B57*L$35","v":{"$error":"#VALUE!"}},{"$f":"+SUMIFS('Detall - Detalle'!$AA:$AA,'Detall - Detalle'!$Y:$Y,M$36,'Detall - Detalle'!$AF:$AF,'Pressupost - Pressupuesto'!$A24)+$B57*M$35","v":{"$error":"#VALUE!"}},{"$f":"+SUMIFS('Detall - Detalle'!$AA:$AA,'Detall - Detalle'!$Y:$Y,N$36,'Detall - Detalle'!$AF:$AF,'Pressupost - Pressupuesto'!$A24)+$B57*N$35","v":{"$error":"#VALUE!"}},{"$f":"+SUMIFS('Detall - Detalle'!$AA:$AA,'Detall - Detalle'!$Y:$Y,O$36,'Detall - Detalle'!$AF:$AF,'Pressupost - Pressupuesto'!$A24)+$B57*O$35","v":{"$error":"#VALUE!"}},{"$f":"+SUMIFS('Detall - Detalle'!$AA:$AA,'Detall - Detalle'!$Y:$Y,P$36,'Detall - Detalle'!$AF:$AF,'Pressupost - Pressupuesto'!$A24)+$B57*P$35","v":{"$error":"#VALUE!"}},{"$f":"+SUMIFS('Detall - Detalle'!$AA:$AA,'Detall - Detalle'!$Y:$Y,Q$36,'Detall - Detalle'!$AF:$AF,'Pressupost - Pressupuesto'!$A24)+$B57*Q$35","v":{"$error":"#VALUE!"}},{"$f":"+SUMIFS('Detall - Detalle'!$AA:$AA,'Detall - Detalle'!$Y:$Y,R$36,'Detall - Detalle'!$AF:$AF,'Pressupost - Pressupuesto'!$A24)+$B57*R$35","v":{"$error":"#VALUE!"}},{"$f":"+SUMIFS('Detall - Detalle'!$AA:$AA,'Detall - Detalle'!$Y:$Y,S$36,'Detall - Detalle'!$AF:$AF,'Pressupost - Pressupuesto'!$A24)+$B57*S$35","v":{"$error":"#VALUE!"}},{"$f":"+SUMIFS('Detall - Detalle'!$AA:$AA,'Detall - Detalle'!$Y:$Y,T$36,'Detall - Detalle'!$AF:$AF,'Pressupost - Pressupuesto'!$A24)+$B57*T$35","v":{"$error":"#VALUE!"}},{"$f":"+SUMIFS('Detall - Detalle'!$AA:$AA,'Detall - Detalle'!$Y:$Y,U$36,'Detall - Detalle'!$AF:$AF,'Pressupost - Pressupuesto'!$A24)+$B57*U$35","v":{"$error":"#VALUE!"}},{"$f":"+SUMIFS('Detall - Detalle'!$AA:$AA,'Detall - Detalle'!$Y:$Y,V$36,'Detall - Detalle'!$AF:$AF,'Pressupost - Pressupuesto'!$A24)+$B57*V$35","v":{"$error":"#VALUE!"}}]
["a18 Imprevistos / Imprevistos",{"$f":"+SUMIFS('Detall - Detalle'!$AA:$AA,'Detall - Detalle'!$Y:$Y,B$36,'Detall - Detalle'!$AF:$AF,'Pressupost - Pressupuesto'!$A25)","v":0},{"$f":"+SUMIFS('Detall - Detalle'!$AA:$AA,'Detall - Detalle'!$Y:$Y,C$36,'Detall - Detalle'!$AF:$AF,'Pressupost - Pressupuesto'!$A25)+$B58*C$35","v":{"$error":"#VALUE!"}},{"$f":"+SUMIFS('Detall - Detalle'!$AA:$AA,'Detall - Detalle'!$Y:$Y,D$36,'Detall - Detalle'!$AF:$AF,'Pressupost - Pressupuesto'!$A25)+$B58*D$35","v":{"$error":"#VALUE!"}},{"$f":"+SUMIFS('Detall - Detalle'!$AA:$AA,'Detall - Detalle'!$Y:$Y,E$36,'Detall - Detalle'!$AF:$AF,'Pressupost - Pressupuesto'!$A25)+$B58*E$35","v":{"$error":"#VALUE!"}},{"$f":"+SUMIFS('Detall - Detalle'!$AA:$AA,'Detall - Detalle'!$Y:$Y,F$36,'Detall - Detalle'!$AF:$AF,'Pressupost - Pressupuesto'!$A25)+$B58*F$35","v":{"$error":"#VALUE!"}},{"$f":"+SUMIFS('Detall - Detalle'!$AA:$AA,'Detall - Detalle'!$Y:$Y,G$36,'Detall - Detalle'!$AF:$AF,'Pressupost - Pressupuesto'!$A25)+$B58*G$35","v":{"$error":"#VALUE!"}},{"$f":"+SUMIFS('Detall - Detalle'!$AA:$AA,'Detall - Detalle'!$Y:$Y,H$36,'Detall - Detalle'!$AF:$AF,'Pressupost - Pressupuesto'!$A25)+$B58*H$35","v":{"$error":"#VALUE!"}},{"$f":"+SUMIFS('Detall - Detalle'!$AA:$AA,'Detall - Detalle'!$Y:$Y,I$36,'Detall - Detalle'!$AF:$AF,'Pressupost - Pressupuesto'!$A25)+$B58*I$35","v":{"$error":"#VALUE!"}},{"$f":"+SUMIFS('Detall - Detalle'!$AA:$AA,'Detall - Detalle'!$Y:$Y,J$36,'Detall - Detalle'!$AF:$AF,'Pressupost - Pressupuesto'!$A25)+$B58*J$35","v":{"$error":"#VALUE!"}},{"$f":"+SUMIFS('Detall - Detalle'!$AA:$AA,'Detall - Detalle'!$Y:$Y,K$36,'Detall - Detalle'!$AF:$AF,'Pressupost - Pressupuesto'!$A25)+$B58*K$35","v":{"$error":"#VALUE!"}},{"$f":"+SUMIFS('Detall - Detalle'!$AA:$AA,'Detall - Detalle'!$Y:$Y,L$36,'Detall - Detalle'!$AF:$AF,'Pressupost - Pressupuesto'!$A25)+$B58*L$35","v":{"$error":"#VALUE!"}},{"$f":"+SUMIFS('Detall - Detalle'!$AA:$AA,'Detall - Detalle'!$Y:$Y,M$36,'Detall - Detalle'!$AF:$AF,'Pressupost - Pressupuesto'!$A25)+$B58*M$35","v":{"$error":"#VALUE!"}},{"$f":"+SUMIFS('Detall - Detalle'!$AA:$AA,'Detall - Detalle'!$Y:$Y,N$36,'Detall - Detalle'!$AF:$AF,'Pressupost - Pressupuesto'!$A25)+$B58*N$35","v":{"$error":"#VALUE!"}},{"$f":"+SUMIFS('Detall - Detalle'!$AA:$AA,'Detall - Detalle'!$Y:$Y,O$36,'Detall - Detalle'!$AF:$AF,'Pressupost - Pressupuesto'!$A25)+$B58*O$35","v":{"$error":"#VALUE!"}},{"$f":"+SUMIFS('Detall - Detalle'!$AA:$AA,'Detall - Detalle'!$Y:$Y,P$36,'Detall - Detalle'!$AF:$AF,'Pressupost - Pressupuesto'!$A25)+$B58*P$35","v":{"$error":"#VALUE!"}},{"$f":"+SUMIFS('Detall - Detalle'!$AA:$AA,'Detall - Detalle'!$Y:$Y,Q$36,'Detall - Detalle'!$AF:$AF,'Pressupost - Pressupuesto'!$A25)+$B58*Q$35","v":{"$error":"#VALUE!"}},{"$f":"+SUMIFS('Detall - Detalle'!$AA:$AA,'Detall - Detalle'!$Y:$Y,R$36,'Detall - Detalle'!$AF:$AF,'Pressupost - Pressupuesto'!$A25)+$B58*R$35","v":{"$error":"#VALUE!"}},{"$f":"+SUMIFS('Detall - Detalle'!$AA:$AA,'Detall - Detalle'!$Y:$Y,S$36,'Detall - Detalle'!$AF:$AF,'Pressupost - Pressupuesto'!$A25)+$B58*S$35","v":{"$error":"#VALUE!"}},{"$f":"+SUMIFS('Detall - Detalle'!$AA:$AA,'Detall - Detalle'!$Y:$Y,T$36,'Detall - Detalle'!$AF:$AF,'Pressupost - Pressupuesto'!$A25)+$B58*T$35","v":{"$error":"#VALUE!"}},{"$f":"+SUMIFS('Detall - Detalle'!$AA:$AA,'Detall - Detalle'!$Y:$Y,U$36,'Detall - Detalle'!$AF:$AF,'Pressupost - Pressupuesto'!$A25)+$B58*U$35","v":{"$error":"#VALUE!"}},{"$f":"+SUMIFS('Detall - Detalle'!$AA:$AA,'Detall - Detalle'!$Y:$Y,V$36,'Detall - Detalle'!$AF:$AF,'Pressupost - Pressupuesto'!$A25)+$B58*V$35","v":{"$error":"#VALUE!"}}]
["DESPESES DIRECTES D'INVERSIÓ (Capítol VII) / GASTOS DIRECTOS DE INVERSIÓN (Capítulo VII)",{"$f":"SUM(B60:B60)","v":0},{"$error":"#VALUE!"},{"$error":"#VALUE!"},{"$error":"#VALUE!"},{"$error":"#VALUE!"},{"$error":"#VALUE!"},{"$error":"#VALUE!"},{"$error":"#VALUE!"},{"$error":"#VALUE!"},{"$error":"#VALUE!"},{"$error":"#VALUE!"},{"$error":"#VALUE!"},{"$error":"#VALUE!"},{"$error":"#VALUE!"},{"$error":"#VALUE!"},{"$error":"#VALUE!"},{"$error":"#VALUE!"},{"$error":"#VALUE!"},{"$error":"#VALUE!"},{"$error":"#VALUE!"},{"$error":"#VALUE!"}]
["b1 Béns inventariables / Bienes inventariables",{"$f":"+SUMIFS('Detall - Detalle'!$AA:$AA,'Detall - Detalle'!$Y:$Y,B$36,'Detall - Detalle'!$AF:$AF,'Pressupost - Pressupuesto'!$A27)","v":0},{"$f":"+SUMIFS('Detall - Detalle'!$AA:$AA,'Detall - Detalle'!$Y:$Y,C$36,'Detall - Detalle'!$AF:$AF,'Pressupost - Pressupuesto'!$A27)+$B60*C$35","v":{"$error":"#VALUE!"}},{"$f":"+SUMIFS('Detall - Detalle'!$AA:$AA,'Detall - Detalle'!$Y:$Y,D$36,'Detall - Detalle'!$AF:$AF,'Pressupost - Pressupuesto'!$A27)+$B60*D$35","v":{"$error":"#VALUE!"}},{"$f":"+SUMIFS('Detall - Detalle'!$AA:$AA,'Detall - Detalle'!$Y:$Y,E$36,'Detall - Detalle'!$AF:$AF,'Pressupost - Pressupuesto'!$A27)+$B60*E$35","v":{"$error":"#VALUE!"}},{"$f":"+SUMIFS('Detall - Detalle'!$AA:$AA,'Detall - Detalle'!$Y:$Y,F$36,'Detall - Detalle'!$AF:$AF,'Pressupost - Pressupuesto'!$A27)+$B60*F$35","v":{"$error":"#VALUE!"}},{"$f":"+SUMIFS('Detall - Detalle'!$AA:$AA,'Detall - Detalle'!$Y:$Y,G$36,'Detall - Detalle'!$AF:$AF,'Pressupost - Pressupuesto'!$A27)+$B60*G$35","v":{"$error":"#VALUE!"}},{"$f":"+SUMIFS('Detall - Detalle'!$AA:$AA,'Detall - Detalle'!$Y:$Y,H$36,'Detall - Detalle'!$AF:$AF,'Pressupost - Pressupuesto'!$A27)+$B60*H$35","v":{"$error":"#VALUE!"}},{"$f":"+SUMIFS('Detall - Detalle'!$AA:$AA,'Detall - Detalle'!$Y:$Y,I$36,'Detall - Detalle'!$AF:$AF,'Pressupost - Pressupuesto'!$A27)+$B60*I$35","v":{"$error":"#VALUE!"}},{"$f":"+SUMIFS('Detall - Detalle'!$AA:$AA,'Detall - Detalle'!$Y:$Y,J$36,'Detall - Detalle'!$AF:$AF,'Pressupost - Pressupuesto'!$A27)+$B60*J$35","v":{"$error":"#VALUE!"}},{"$f":"+SUMIFS('Detall - Detalle'!$AA:$AA,'Detall - Detalle'!$Y:$Y,K$36,'Detall - Detalle'!$AF:$AF,'Pressupost - Pressupuesto'!$A27)+$B60*K$35","v":{"$error":"#VALUE!"}},{"$f":"+SUMIFS('Detall - Detalle'!$AA:$AA,'Detall - Detalle'!$Y:$Y,L$36,'Detall - Detalle'!$AF:$AF,'Pressupost - Pressupuesto'!$A27)+$B60*L$35","v":{"$error":"#VALUE!"}},{"$f":"+SUMIFS('Detall - Detalle'!$AA:$AA,'Detall - Detalle'!$Y:$Y,M$36,'Detall - Detalle'!$AF:$AF,'Pressupost - Pressupuesto'!$A27)+$B60*M$35","v":{"$error":"#VALUE!"}},{"$f":"+SUMIFS('Detall - Detalle'!$AA:$AA,'Detall - Detalle'!$Y:$Y,N$36,'Detall - Detalle'!$AF:$AF,'Pressupost - Pressupuesto'!$A27)+$B60*N$35","v":{"$error":"#VALUE!"}},{"$f":"+SUMIFS('Detall - Detalle'!$AA:$AA,'Detall - Detalle'!$Y:$Y,O$36,'Detall - Detalle'!$AF:$AF,'Pressupost - Pressupuesto'!$A27)+$B60*O$35","v":{"$error":"#VALUE!"}},{"$f":"+SUMIFS('Detall - Detalle'!$AA:$AA,'Detall - Detalle'!$Y:$Y,P$36,'Detall - Detalle'!$AF:$AF,'Pressupost - Pressupuesto'!$A27)+$B60*P$35","v":{"$error":"#VALUE!"}},{"$f":"+SUMIFS('Detall - Detalle'!$AA:$AA,'Detall - Detalle'!$Y:$Y,Q$36,'Detall - Detalle'!$AF:$AF,'Pressupost - Pressupuesto'!$A27)+$B60*Q$35","v":{"$error":"#VALUE!"}},{"$f":"+SUMIFS('Detall - Detalle'!$AA:$AA,'Detall - Detalle'!$Y:$Y,R$36,'Detall - Detalle'!$AF:$AF,'Pressupost - Pressupuesto'!$A27)+$B60*R$35","v":{"$error":"#VALUE!"}},{"$f":"+SUMIFS('Detall - Detalle'!$AA:$AA,'Detall - Detalle'!$Y:$Y,S$36,'Detall - Detalle'!$AF:$AF,'Pressupost - Pressupuesto'!$A27)+$B60*S$35","v":{"$error":"#VALUE!"}},{"$f":"+SUMIFS('Detall - Detalle'!$AA:$AA,'Detall - Detalle'!$Y:$Y,T$36,'Detall - Detalle'!$AF:$AF,'Pressupost - Pressupuesto'!$A27)+$B60*T$35","v":{"$error":"#VALUE!"}},{"$f":"+SUMIFS('Detall - Detalle'!$AA:$AA,'Detall - Detalle'!$Y:$Y,U$36,'Detall - Detalle'!$AF:$AF,'Pressupost - Pressupuesto'!$A27)+$B60*U$35","v":{"$error":"#VALUE!"}},{"$f":"+SUMIFS('Detall - Detalle'!$AA:$AA,'Detall - Detalle'!$Y:$Y,V$36,'Detall - Detalle'!$AF:$AF,'Pressupost - Pressupuesto'!$A27)+$B60*V$35","v":{"$error":"#VALUE!"}}]
["TOTAL DESPESES DIRECTES / TOTAL GASTOS DIRECTOS",{"$f":"+B59+B37","v":0},{"$error":"#VALUE!"},{"$error":"#VALUE!"},{"$error":"#VALUE!"},{"$error":"#VALUE!"},{"$error":"#VALUE!"},{"$error":"#VALUE!"},{"$error":"#VALUE!"},{"$error":"#VALUE!"},{"$error":"#VALUE!"},{"$error":"#VALUE!"},{"$error":"#VALUE!"},{"$error":"#VALUE!"},{"$error":"#VALUE!"},{"$error":"#VALUE!"},{"$error":"#VALUE!"},{"$error":"#VALUE!"},{"$error":"#VALUE!"},{"$error":"#VALUE!"},{"$error":"#VALUE!"},{"$error":"#VALUE!"}]
["DESPESES INDIRECTES / GASTOS INDIRECTOS",{"$f":"+SUMIFS('Detall - Detalle'!$AA:$AA,'Detall - Detalle'!$Y:$Y,B$36,'Detall - Detalle'!$AF:$AF,'Pressupost - Pressupuesto'!$A29)","v":0},{"$f":"+SUMIFS('Detall - Detalle'!$AA:$AA,'Detall - Detalle'!$Y:$Y,C$36,'Detall - Detalle'!$AF:$AF,'Pressupost - Pressupuesto'!$A29)+$B62*C$35","v":{"$error":"#VALUE!"}},{"$f":"+SUMIFS('Detall - Detalle'!$AA:$AA,'Detall - Detalle'!$Y:$Y,D$36,'Detall - Detalle'!$AF:$AF,'Pressupost - Pressupuesto'!$A29)+$B62*D$35","v":{"$error":"#VALUE!"}},{"$f":"+SUMIFS('Detall - Detalle'!$AA:$AA,'Detall - Detalle'!$Y:$Y,E$36,'Detall - Detalle'!$AF:$AF,'Pressupost - Pressupuesto'!$A29)+$B62*E$35","v":{"$error":"#VALUE!"}},{"$f":"+SUMIFS('Detall - Detalle'!$AA:$AA,'Detall - Detalle'!$Y:$Y,F$36,'Detall - Detalle'!$AF:$AF,'Pressupost - Pressupuesto'!$A29)+$B62*F$35","v":{"$error":"#VALUE!"}},{"$f":"+SUMIFS('Detall - Detalle'!$AA:$AA,'Detall - Detalle'!$Y:$Y,G$36,'Detall - Detalle'!$AF:$AF,'Pressupost - Pressupuesto'!$A29)+$B62*G$35","v":{"$error":"#VALUE!"}},{"$f":"+SUMIFS('Detall - Detalle'!$AA:$AA,'Detall - Detalle'!$Y:$Y,H$36,'Detall - Detalle'!$AF:$AF,'Pressupost - Pressupuesto'!$A29)+$B62*H$35","v":{"$error":"#VALUE!"}},{"$f":"+SUMIFS('Detall - Detalle'!$AA:$AA,'Detall - Detalle'!$Y:$Y,I$36,'Detall - Detalle'!$AF:$AF,'Pressupost - Pressupuesto'!$A29)+$B62*I$35","v":{"$error":"#VALUE!"}},{"$f":"+SUMIFS('Detall - Detalle'!$AA:$AA,'Detall - Detalle'!$Y:$Y,J$36,'Detall - Detalle'!$AF:$AF,'Pressupost - Pressupuesto'!$A29)+$B62*J$35","v":{"$error":"#VALUE!"}},{"$f":"+SUMIFS('Detall - Detalle'!$AA:$AA,'Detall - Detalle'!$Y:$Y,K$36,'Detall - Detalle'!$AF:$AF,'Pressupost - Pressupuesto'!$A29)+$B62*K$35","v":{"$error":"#VALUE!"}},{"$f":"+SUMIFS('Detall - Detalle'!$AA:$AA,'Detall - Detalle'!$Y:$Y,L$36,'Detall - Detalle'!$AF:$AF,'Pressupost - Pressupuesto'!$A29)+$B62*L$35","v":{"$error":"#VALUE!"}},{"$f":"+SUMIFS('Detall - Detalle'!$AA:$AA,'Detall - Detalle'!$Y:$Y,M$36,'Detall - Detalle'!$AF:$AF,'Pressupost - Pressupuesto'!$A29)+$B62*M$35","v":{"$error":"#VALUE!"}},{"$f":"+SUMIFS('Detall - Detalle'!$AA:$AA,'Detall - Detalle'!$Y:$Y,N$36,'Detall - Detalle'!$AF:$AF,'Pressupost - Pressupuesto'!$A29)+$B62*N$35","v":{"$error":"#VALUE!"}},{"$f":"+SUMIFS('Detall - Detalle'!$AA:$AA,'Detall - Detalle'!$Y:$Y,O$36,'Detall - Detalle'!$AF:$AF,'Pressupost - Pressupuesto'!$A29)+$B62*O$35","v":{"$error":"#VALUE!"}},{"$f":"+SUMIFS('Detall - Detalle'!$AA:$AA,'Detall - Detalle'!$Y:$Y,P$36,'Detall - Detalle'!$AF:$AF,'Pressupost - Pressupuesto'!$A29)+$B62*P$35","v":{"$error":"#VALUE!"}},{"$f":"+SUMIFS('Detall - Detalle'!$AA:$AA,'Detall - Detalle'!$Y:$Y,Q$36,'Detall - Detalle'!$AF:$AF,'Pressupost - Pressupuesto'!$A29)+$B62*Q$35","v":{"$error":"#VALUE!"}},{"$f":"+SUMIFS('Detall - Detalle'!$AA:$AA,'Detall - Detalle'!$Y:$Y,R$36,'Detall - Detalle'!$AF:$AF,'Pressupost - Pressupuesto'!$A29)+$B62*R$35","v":{"$error":"#VALUE!"}},{"$f":"+SUMIFS('Detall - Detalle'!$AA:$AA,'Detall - Detalle'!$Y:$Y,S$36,'Detall - Detalle'!$AF:$AF,'Pressupost - Pressupuesto'!$A29)+$B62*S$35","v":{"$error":"#VALUE!"}},{"$f":"+SUMIFS('Detall - Detalle'!$AA:$AA,'Detall - Detalle'!$Y:$Y,T$36,'Detall - Detalle'!$AF:$AF,'Pressupost - Pressupuesto'!$A29)+$B62*T$35","v":{"$error":"#VALUE!"}},{"$f":"+SUMIFS('Detall - Detalle'!$AA:$AA,'Detall - Detalle'!$Y:$Y,U$36,'Detall - Detalle'!$AF:$AF,'Pressupost - Pressupuesto'!$A29)+$B62*U$35","v":{"$error":"#VALUE!"}},{"$f":"+SUMIFS('Detall - Detalle'!$AA:$AA,'Detall - Detalle'!$Y:$Y,V$36,'Detall - Detalle'!$AF:$AF,'Pressupost - Pressupuesto'!$A29)+$B62*V$35","v":{"$error":"#VALUE!"}}]
["TOTAL DESPESES / TOTAL GASTOS",{"$f":"+B62+B61","v":0},{"$f":"+C62+C61","v":{"$error":"#VALUE!"}},{"$f":"+D62+D61","v":{"$error":"#VALUE!"}},{"$error":"#VALUE!"},{"$error":"#VALUE!"},{"$error":"#VALUE!"},{"$error":"#VALUE!"},{"$error":"#VALUE!"},{"$error":"#VALUE!"},{"$error":"#VALUE!"},{"$error":"#VALUE!"},{"$error":"#VALUE!"},{"$error":"#VALUE!"},{"$f":"+O62+O61","v":{"$error":"#VALUE!"}},{"$error":"#VALUE!"},{"$error":"#VALUE!"},{"$error":"#VALUE!"},{"$error":"#VALUE!"},{"$error":"#VALUE!"},{"$error":"#VALUE!"},{"$error":"#VALUE!"}]

{"sheet":"TDC_PMP","index":4,"n_rows":53,"n_cols":9,"rows_kept":53,"cut":false,"hidden":true,"merged":[[1,1,1,3],[2,7,2,8],[5,0,5,4]]}
[]
["Web Referència TDC","InforEuro, the exchange rate of the Euro currency (europa.eu)"]
[null,null,null,null,null,null,null,"Taula Resum PMP"]
["SISTEMA DE TIPUS DE CANVI","PMP",null,null,null,null,null,"TDC del Transaccions",{"$f":"IFERROR(AVERAGE(D:D),\"\")","v":""}]
[null,null,null,null,null,null,null,"TDC full detall",{"$f":"+IFERROR(AVERAGE('[2]Detall - Detalle'!R:R),\"\")","v":""}]
["Transaccions canvi de moneda"]
["Fecha","Moneda extranjera","Importe en Moneda Extranjera","Tipo de Cambio Aplicado","Importe en Euros",null,null,"Desviació",{"$f":"IFERROR((I4-I5)/I4,\"\")","v":""}]
[null,null,null,null,{"$f":"IF(D8<>\"\",+C8/D8,\"\")","v":""}]
[null,null,null,null,{"$f":"IF(D9<>\"\",+C9/D9,\"\")","v":""}]
[null,null,null,null,""]
[null,null,null,null,""]
[null,null,null,null,""]
[null,null,null,null,""]
[null,null,null,null,""]
[null,null,null,null,""]
[null,null,null,null,""]
[null,null,null,null,""]
[null,null,null,null,""]
[null,null,null,null,""]
[null,null,null,null,""]
[null,null,null,null,""]
[null,null,null,null,""]
[null,null,null,null,""]
[null,null,null,null,""]
[null,null,null,null,""]
[null,null,null,null,""]
[null,null,null,null,""]
[null,null,null,null,""]
[null,null,null,null,""]
[null,null,null,null,""]
[null,null,null,null,""]
[null,null,null,null,""]
[null,null,null,null,""]
[null,null,null,null,""]
[null,null,null,null,""]
[null,null,null,null,""]
[null,null,null,null,""]
[null,null,null,null,""]
[null,null,null,null,""]
[null,null,null,null,""]
[null,null,null,null,""]
[null,null,null,null,""]
[null,null,null,null,""]
[null,null,null,null,""]
[null,null,null,null,""]
[null,null,null,null,""]
[null,null,null,null,""]
[null,null,null,null,""]
[null,null,null,null,""]
[null,null,null,null,""]
[null,null,null,null,{"$f":"IF(D51<>\"\",+C51/D51,\"\")","v":""}]
[null,null,null,null,{"$f":"IF(D52<>\"\",+C52/D52,\"\")","v":""}]
[null,null,null,null,{"$f":"IF(D53<>\"\",+C53/D53,\"\")","v":""}]

{"sheet":"TDC_FIFO","index":5,"n_rows":47,"n_cols":6,"rows_kept":47,"cut":false,"hidden":true,"merged":[[1,1,1,3],[5,0,5,5]]}
[]
["Web Referència TDC","InforEuro, the exchange rate of the Euro currency (europa.eu)"]
[]
["SISTEMA DE TIPUS DE CANVI","FIFO"]
[]
["Transaccions canvi de moneda"]
["Nº Remesa","Fecha","Moneda extranjera","Importe en Moneda Extranjera","Tipo de Cambio Aplicado","Importe en Euros"]
[null,null,null,null,null,{"$f":"IF(E8<>\"\",+D8/E8,\"\")","v":""}]
[null,null,null,null,null,{"$f":"IF(E9<>\"\",+D9/E9,\"\")","v":""}]
[null,null,null,null,null,""]
[null,null,null,null,null,""]
[null,null,null,null,null,""]
[null,null,null,null,null,""]
[null,null,null,null,null,""]
[null,null,null,null,null,""]
[null,null,null,null,null,""]
[null,null,null,null,null,""]
[null,null,null,null,null,""]
[null,null,null,null,null,""]
[null,null,null,null,null,""]
[null,null,null,null,null,""]
[null,null,null,null,null,""]
[null,null,null,null,null,""]
[null,null,null,null,null,""]
[null,null,null,null,null,""]
[null,null,null,null,null,""]
[null,null,null,null,null,""]
[null,null,null,null,null,""]
[null,null,null,null,null,""]
[null,null,null,null,null,""]
[null,null,null,null,null,""]
[null,null,null,null,null,""]
[null,null,null,null,null,""]
[null,null,null,null,null,""]
[null,null,null,null,null,""]
[null,null,null,null,null,""]
[null,null,null,null,null,""]
[null,null,null,null,null,""]
[null,null,null,null,null,""]
[null,null,null,null,null,""]
[null,null,null,null,null,""]
[null,null,null,null,null,""]
[null,null,null,null,null,""]
[null,null,null,null,null,""]
[null,null,null,null,null,""]
[null,null,null,null,null,{"$f":"IF(E46<>\"\",+D46/E46,\"\")","v":""}]
[null,null,null,null,null,{"$f":"IF(E47<>\"\",+D47/E47,\"\")","v":""}]

{"sheet":"Llista desplegable","index":6,"n_rows":65,"n_cols":13,"rows_kept":65,"cut":false,"hidden":true,"merged":[]}
["Partida pressupostària",null,"Executor del projecte/finançador",null,"Valorització",null,"Unitats",null,"Tipus_projecte",null,"Limits subvencionables","Màxim","Mínim"]
["a1.1 Personal assalariat local / Personal asalariado local",null,"Líder",null,"Sí",null,"Hores",null,"Desenvolupament",null,"M.1 Solitari -Geo",300000,100000]
["a1.2 Personal assalariat expatriat / Personal asalariado expatriado",null,"Agrupada",null,null,null,"Dies",null,"Educació global",null,"M.1 Agrupada - Geo",500000,100000]
["a1.3 Personal assalariat a Catalunya / Personal asalariado Cataluña",null,"Soci_local",null,null,null,"Mesos",null,null,null,"M.1 Solitari - No.Geo",200000,100000]
["a2 Lloguers / Alquileres",null,"Col·lectius protagonistes",null,null,null,"Anys",null,null,null,"M.1 Agrupada - No.Geo",300000,100000]
["a3 Manteniment, conservació i reparació / Mantenimiento, conservación y reparación",null,"Tercer sector",null,null,null,"Unitats",null,null,null,"M.2 Solitari - Sect.",250000,100000]
["a4 Material ordinari / Material ordinario",null,null,null,null,null,"Servei",null,null,null,"M.2 Agrupada - Sect.",350000,100000]
["a5 Subministraments / Suministros",null,null,null,null,null,"Litres",null,null,null,"M.2 Solitari - No.Sect.",150000,100000]
["a6 Comunicacions, despeses postals i missatgeria / Comunicaciones, gastos postales y mensajería",null,"Agrupadas",null,null,null,"Kit",null,null,null,"M.2 Agrupada - No.Sect",250000,100000]
["a7 Reunions, conferències i formacions / Reuniones, conferencias y formaciones",null,{"$f":"'Dades i com... - Datos y com...'!D28","v":0},null,null,null,"Lot"]
["a8 Publicitat i difusió / Publicidad y difusión",null,{"$f":"'Dades i com... - Datos y com...'!D29","v":0},null,null,null,"Forfait"]
["a9 Publicacions / Publicaciones",null,{"$f":"'Dades i com... - Datos y com...'!D30","v":0},null,null,null,null,null,null,null,null,"Màxim No agrupada","Màxim agrupada"]
["a10 Treballs tècnics i professionals / Trabajos técnicos y profesionales",null,null,null,null,null,null,null,null,null,"DesenvolupamentTipologia 1",300000,500000]
["a11 Identificació i formulació / Identificación y formulación",null,null,null,null,null,"Hores",null,null,null,"DesenvolupamentTipologia 2",500000,1000000]
["a12 Avaluació / Evaluación",null,"Modalitat de la subvenció 1",null,null,null,"Anys",null,null,null,"Educació globalTipologia 1",200000,300000]
["a13 Dietes, locomoció, trasllats i allotjaments / Dietas, locomoción, traslados y alojamientos",null,"Compleix condició Geogràfica",null,null,null,null,null,null,null,"Educació globalTipologia 2",400000,700000]
["a14 Informe auditor / Informe de auditor",null,"No compleix condició Geogràfica"]
["a15 Despeses financeres / Gastos financieros"]
["a16 Despeses de suport legal / Gastos de soporte legal",null,null,null,null,null,null,null,null,null,null,"Mínim No agrupada","Mínim agrupada"]
["a17 Beques / Becas",null,null,null,null,null,null,null,null,null,"DesenvolupamentTipologia 1",100000,300000]
["a18 Imprevistos / Imprevistos",null,"Modalitat de la subvenció 2",null,null,null,null,null,null,null,"DesenvolupamentTipologia 2",301000,501000]
["b1 Béns inventariables / Bienes inventariables",null,"Tipologia 1",null,null,null,null,null,null,null,"Educació globalTipologia 1",100000,200000]
["DESPESES INDIRECTES (Cap IV) / GASTOS INDIRECTOS (Cap IV)",null,"Tipologia 2",null,null,null,null,null,null,null,"Educació globalTipologia 2",201000,301000]
[]
[null,null,null,null,"SI(D14=\"Desenvolupament\";'Llista desplegable'!$C$16:$C$17;SI(D14=\"Educació Global\";'Llista desplegable'!$C$22:$C$23;\"\"))"]
["Responable del projecte/finançador"]
["Líder"]
[{"$f":"+'Dades i com... - Datos y com...'!D28","v":0}]
[{"$f":"+'Dades i com... - Datos y com...'!D29","v":0}]
[{"$f":"+'Dades i com... - Datos y com...'!D30","v":0}]
[]
[]
["ACREDITACIÓN PAGO",null,"País",null,"Divisa"]
["Transferencia",null,"Guatemala",null,"Quetzal guatemalteco (GTQ)"]
["Targeta",null,"El Salvador",null,"Dólar estadounidense (USD)"]
["Efectiu",null,"Unión Europea (Eur)",null,"Euro (EUR)"]
["Xec",null,"Colombia",null,"Peso colombiano (COP)"]
["Otro",null,"República Democrática del Congo",null,"Franco congoleño (CDF)"]
[null,null,"Líbano",null,"Libra libanesa (LBP)"]
[null,null,"Palestina",null,"Nuevo séquel israelí (ILS)"]
[null,null,"Senegal",null,"Franco CFA de África Occidental (XOF)"]
[null,null,"Ecuador",null,"Dólar estadounidense (USD)"]
[null,null,"Marruecos",null,"Dirham marroquí (MAD)"]
[null,null,"Costa Rica",null,"Colón costarricense (CRC)"]
[null,null,"Bolivia",null,"Boliviano (BOB)"]
["Activitats",null,"Mozambique",null,"Metical mozambiqueño (MZN)"]
["Elaboració de Podcasts",null,"México",null,"Peso mexicano (MXN)"]
["Dossier ISBN"]
["Escola"]
[]
[]
[]
[]
[]
[]
[]
[]
[]
[]
[]
[]
[]
[null,null,null,null,{"$f":"457/2","v":228.5}]
[null,null,null,null,{"$f":"123/2","v":61.5}]
[null,null,null,null,{"$f":"+E63-E64","v":167}]